Body Name,Body,Organisational unit,Service division,Expenditure category,Date,Transacton number,Net amount,Supplier,Narrative
Tendring DC,http://statistics.data.gov.uk/id/local-authority-district/22UN,Corporate Services,1950 - Transport,3062 - Running Costs - Petrol,20/08/2013,2110598-1,177.51,2101825 - Allstar Business Solutions Ltd,Courier Fuel
Tendring DC,http://statistics.data.gov.uk/id/local-authority-district/22UN,Corporate Services,1700 - Insurance Recharge Account,1905 - Employee Insurances - Personal Accident,13/08/2013,2110359-1,1637.5,2104849 - Aon Limited,Personal Acc Ins Renewal 13/14
Tendring DC,http://statistics.data.gov.uk/id/local-authority-district/22UN,Corporate Services,1700 - Insurance Recharge Account,1906 - Employee Insurances - Fidelity Guarantee,13/08/2013,2110360-1,1268.82,2104849 - Aon Limited,Fidelity Ins Renewal 13/14
Tendring DC,http://statistics.data.gov.uk/id/local-authority-district/22UN,Corporate Services,1700 - Insurance Recharge Account,1907 - Employee Insurances - Employment Practices Liability,13/08/2013,2110361-1,11130,2104849 - Aon Limited,EPL Renewal 13/14
Tendring DC,http://statistics.data.gov.uk/id/local-authority-district/22UN,Corporate Services,1700 - Insurance Recharge Account,2805 - Premises Insurances - Work in Progress,13/08/2013,2110362-1,926.41,2104849 - Aon Limited,Contract Works 13/14
Tendring DC,http://statistics.data.gov.uk/id/local-authority-district/22UN,Corporate Services,1700 - Insurance Recharge Account,2806 - Premises Insurance - Material damage,13/08/2013,2110363-1,104891.52,2104849 - Aon Limited,Damage & Terror Ins Renewal
Tendring DC,http://statistics.data.gov.uk/id/local-authority-district/22UN,Corporate Services,1700 - Insurance Recharge Account,2813 - Premises Insurance - Terrorism,13/08/2013,2110363-2,9813.35,2104849 - Aon Limited,Damage & Terror Ins Renewal
Tendring DC,http://statistics.data.gov.uk/id/local-authority-district/22UN,Corporate Services,1700 - Insurance Recharge Account,3400 - Motor Fleet - general vehicles,13/08/2013,2110364-1,40576.8,2104849 - Aon Limited,Motor Renewal 13/14
Tendring DC,http://statistics.data.gov.uk/id/local-authority-district/22UN,Corporate Services,1700 - Insurance Recharge Account,4526 - AON - Brokerage Fees,13/08/2013,2110365-1,8500,2104849 - Aon Limited,Broking Fee 13/14
Tendring DC,http://statistics.data.gov.uk/id/local-authority-district/22UN,Corporate Services,1700 - Insurance Recharge Account,5000 - Other Insurance - Computer Equipment &  Loss of Data,13/08/2013,2110366-1,1622.48,2104849 - Aon Limited,Computer Renewal 13/14
Tendring DC,http://statistics.data.gov.uk/id/local-authority-district/22UN,Corporate Services,1700 - Insurance Recharge Account,5001 - Insurances - Dataguard,13/08/2013,2110367-1,8480,2104849 - Aon Limited,Dataguard Renewal 13/14
Tendring DC,http://statistics.data.gov.uk/id/local-authority-district/22UN,Corporate Services,1432 - TDC Website,4500 - Consultancy Fees,07/08/2013,1054004-1,1025,2109504 - Associated Knowledge Systems Ltd,ANNUAL FEE
Tendring DC,http://statistics.data.gov.uk/id/local-authority-district/22UN,Corporate Services,1320 - Print Unit Service Unit,4302 - External Print Unit Expenses,20/08/2013,2110572-1,60,2100069 - Autoprint,Job 238
Tendring DC,http://statistics.data.gov.uk/id/local-authority-district/22UN,Corporate Services,6580 - Member Support Cost,4300 - Printing & Stationery,07/08/2013,1053926-1,-30.92,2100111 - Banner Business Supplies Ltd,CREDIT BANNER ENVELOPES
Tendring DC,http://statistics.data.gov.uk/id/local-authority-district/22UN,Corporate Services,1100 - Corporate Director (Corporate Services) and Admin Service Unit,4300 - Printing & Stationery,13/08/2013,1054093-1,112.79,2100111 - Banner Business Supplies Ltd,BANNER
Tendring DC,http://statistics.data.gov.uk/id/local-authority-district/22UN,Corporate Services,1100 - Corporate Director (Corporate Services) and Admin Service Unit,4300 - Printing & Stationery,27/08/2013,1054514-1,109.7,2100111 - Banner Business Supplies Ltd,PAPER
Tendring DC,http://statistics.data.gov.uk/id/local-authority-district/22UN,Corporate Services,1100 - Corporate Director (Corporate Services) and Admin Service Unit,4300 - Printing & Stationery,13/08/2013,2110343-1,37.82,2100111 - Banner Business Supplies Ltd,Stationery
Tendring DC,http://statistics.data.gov.uk/id/local-authority-district/22UN,Corporate Services,1100 - Corporate Director (Corporate Services) and Admin Service Unit,4300 - Printing & Stationery,13/08/2013,2110343-2,7.09,2100111 - Banner Business Supplies Ltd,Stationery
Tendring DC,http://statistics.data.gov.uk/id/local-authority-district/22UN,Corporate Services,1100 - Corporate Director (Corporate Services) and Admin Service Unit,4300 - Printing & Stationery,20/08/2013,2110602-1,3.81,2100111 - Banner Business Supplies Ltd,Diary Part Order
Tendring DC,http://statistics.data.gov.uk/id/local-authority-district/22UN,Corporate Services,6980 - Essex Family Needs Project,4469 - Other Non - Legal Professional Services,20/08/2013,1054342-1,20000,2112862 - Barnardo Services Ltd,4TH QTR BARNARDOS
Tendring DC,http://statistics.data.gov.uk/id/local-authority-district/22UN,Corporate Services,1760 - IT Direct Service Costs,4715 - Data Communication Charge,20/08/2013,2110463-1,226.5,2100168 - British Telecommunications plc,3584991QA40 Jul 13
Tendring DC,http://statistics.data.gov.uk/id/local-authority-district/22UN,Corporate Services,1815 - Personnel and Human Resources Issues,1708 - Training - New Programme Development Courses,27/08/2013,1054551-1,100,2101866 - C.I.E.H.,TRAINER REACTIVATION FEE
Tendring DC,http://statistics.data.gov.uk/id/local-authority-district/22UN,Corporate Services,9900 - General Fund Balance Sheet,B879 - Charges made by Merchant Acquirer,06/08/2013,1054452-1,34.74,2100202 - Capita Business Services Ltd,CAPITA JULY 2013
Tendring DC,http://statistics.data.gov.uk/id/local-authority-district/22UN,Corporate Services,9900 - General Fund Balance Sheet,B879 - Charges made by Merchant Acquirer,06/08/2013,1054452-2,70.33,2100202 - Capita Business Services Ltd,CAPITA JULY 2013
Tendring DC,http://statistics.data.gov.uk/id/local-authority-district/22UN,Corporate Services,9900 - General Fund Balance Sheet,B879 - Charges made by Merchant Acquirer,06/08/2013,1054452-3,236.7,2100202 - Capita Business Services Ltd,CAPITA JULY 2013
Tendring DC,http://statistics.data.gov.uk/id/local-authority-district/22UN,Corporate Services,9900 - General Fund Balance Sheet,B879 - Charges made by Merchant Acquirer,06/08/2013,1054452-4,366.02,2100202 - Capita Business Services Ltd,CAPITA JULY 2013
Tendring DC,http://statistics.data.gov.uk/id/local-authority-district/22UN,Corporate Services,9900 - General Fund Balance Sheet,B879 - Charges made by Merchant Acquirer,06/08/2013,1054452-5,396.54,2100202 - Capita Business Services Ltd,CAPITA JULY 2013
Tendring DC,http://statistics.data.gov.uk/id/local-authority-district/22UN,Corporate Services,9900 - General Fund Balance Sheet,B879 - Charges made by Merchant Acquirer,06/08/2013,1054452-6,360.89,2100202 - Capita Business Services Ltd,CAPITA JULY 2013
Tendring DC,http://statistics.data.gov.uk/id/local-authority-district/22UN,Corporate Services,9900 - General Fund Balance Sheet,B879 - Charges made by Merchant Acquirer,06/08/2013,1054452-7,371.7,2100202 - Capita Business Services Ltd,CAPITA JULY 2013
Tendring DC,http://statistics.data.gov.uk/id/local-authority-district/22UN,Corporate Services,9900 - General Fund Balance Sheet,B879 - Charges made by Merchant Acquirer,06/08/2013,1054452-8,243.63,2100202 - Capita Business Services Ltd,CAPITA JULY 2013
Tendring DC,http://statistics.data.gov.uk/id/local-authority-district/22UN,Corporate Services,9900 - General Fund Balance Sheet,B879 - Charges made by Merchant Acquirer,06/08/2013,1054452-9,-0.25,2100202 - Capita Business Services Ltd,CAPITA JULY 2013
Tendring DC,http://statistics.data.gov.uk/id/local-authority-district/22UN,Corporate Services,1110 - Credit & Debit Card Payment System,4753 - Computer - Application Software,27/08/2013,2110686-1,522.08,2100202 - Capita Business Services Ltd,Additional TT Lines
Tendring DC,http://statistics.data.gov.uk/id/local-authority-district/22UN,Corporate Services,6460 - Career Track,1700 - Training - Courses,27/08/2013,1054534-1,1500,2113278 - Charles Derby Consultants,AGE GRANT-CHLOEANNE MATTEI
Tendring DC,http://statistics.data.gov.uk/id/local-authority-district/22UN,Corporate Services,1800 - Qualification and Other Training,1700 - Training - Courses,27/08/2013,2110674-1,2020,2100254 - Chartered Institute of Housing,Tuition Fee
Tendring DC,http://statistics.data.gov.uk/id/local-authority-district/22UN,Corporate Services,6640 - Treasury Management,5192 - Brokerage,01/08/2013,1054276-1,140,REDACTED COMMERCIAL CONFIDENTIALITY,REDACTED COMMERCIAL CONFIDENTIALITY
Tendring DC,http://statistics.data.gov.uk/id/local-authority-district/22UN,Corporate Services,6620 - Corporate Management - General,5190 - Bank Commission Charges,01/08/2013,1054276-2,235,REDACTED COMMERCIAL CONFIDENTIALITY,REDACTED COMMERCIAL CONFIDENTIALITY
Tendring DC,http://statistics.data.gov.uk/id/local-authority-district/22UN,Corporate Services,"1580 - Benefits, Revenues and Customer Contact SU",5186 - Paypoint/post office charges,01/08/2013,1054276-3,1456.73,REDACTED COMMERCIAL CONFIDENTIALITY,REDACTED COMMERCIAL CONFIDENTIALITY
Tendring DC,http://statistics.data.gov.uk/id/local-authority-district/22UN,Corporate Services,"1580 - Benefits, Revenues and Customer Contact SU",5186 - Paypoint/post office charges,01/08/2013,1054276-4,3169.81,REDACTED COMMERCIAL CONFIDENTIALITY,REDACTED COMMERCIAL CONFIDENTIALITY
Tendring DC,http://statistics.data.gov.uk/id/local-authority-district/22UN,Corporate Services,1210 - Facilities Management Service Unit,4300 - Printing & Stationery,01/08/2013,1054454-1,45.75,2100269 - Co operative Bank plc,KLN VISA AUG 13
Tendring DC,http://statistics.data.gov.uk/id/local-authority-district/22UN,Corporate Services,1210 - Facilities Management Service Unit,4300 - Printing & Stationery,01/08/2013,1054454-2,21,2100269 - Co operative Bank plc,KLN VISA AUG 13
Tendring DC,http://statistics.data.gov.uk/id/local-authority-district/22UN,Corporate Services,7025 - CDRP Support,4900 - Grants,01/08/2013,1054454-3,194.68,2100269 - Co operative Bank plc,KLN VISA AUG 13
Tendring DC,http://statistics.data.gov.uk/id/local-authority-district/22UN,Corporate Services,4720 - Dog Warden,4040 - Equipment & Tools,01/08/2013,1054454-4,87.47,2100269 - Co operative Bank plc,KLN VISA AUG 13
Tendring DC,http://statistics.data.gov.uk/id/local-authority-district/22UN,Corporate Services,6620 - Corporate Management - General,5190 - Bank Commission Charges,01/08/2013,1054454-5,2,2100269 - Co operative Bank plc,KLN VISA AUG 13
Tendring DC,http://statistics.data.gov.uk/id/local-authority-district/22UN,Corporate Services,6460 - Career Track,4688 - Career Track Exam Fees,20/08/2013,2110576-1,22,REDACTED PERSONAL DATA,REDACTED PERSONAL DATA
Tendring DC,http://statistics.data.gov.uk/id/local-authority-district/22UN,Corporate Services,1930 - Asset Management Service Unit,4469 - Other Non - Legal Professional Services,27/08/2013,1054537-1,100,2113249 - CPD Essentials,
Tendring DC,http://statistics.data.gov.uk/id/local-authority-district/22UN,Corporate Services,1760 - IT Direct Service Costs,4715 - Data Communication Charge,20/08/2013,2110458-1,5830,2106704 - Daisy Communications Ltd,Daisy July 13
Tendring DC,http://statistics.data.gov.uk/id/local-authority-district/22UN,Corporate Services,9920 - HRA Balance Sheet,B505 - DCLGM Capital Receipts Pooling Creditor,06/08/2013,2110297-1,112509.5,2100432 - DCLG,Housing Capital Receipts Pooling Payment Q1-2013/14
Tendring DC,http://statistics.data.gov.uk/id/local-authority-district/22UN,Corporate Services,1090 - Chief Executive and Support Service Unit,4400 - Maintenance Under Service Agreements,13/08/2013,1054092-1,8.5,2102826 - Eden Springs UK Ltd,BOTTLED WATER
Tendring DC,http://statistics.data.gov.uk/id/local-authority-district/22UN,Corporate Services,6620 - Corporate Management - General,5180 - External Audit Fees,13/08/2013,1054146-1,24119,2112514 - Ernst & Young,INSTALMENT 1 13/14
Tendring DC,http://statistics.data.gov.uk/id/local-authority-district/22UN,Corporate Services,7025 - CDRP Support,4900 - Grants,13/08/2013,1054094-1,500,2100498 - Essex County Council,CLIMBING WALL 3 AUG
Tendring DC,http://statistics.data.gov.uk/id/local-authority-district/22UN,Corporate Services,9880 - Collection Fund - Council Tax,R100 - Precept - ECC,15/08/2013,1054460-1,4616471,2100409 - Essex County Council,PRECEPT
Tendring DC,http://statistics.data.gov.uk/id/local-authority-district/22UN,Corporate Services,9880 - Collection Fund - Council Tax,R110 - Council Tax Balance - ECC,15/08/2013,1054460-2,92582,2100409 - Essex County Council,PRECEPT
Tendring DC,http://statistics.data.gov.uk/id/local-authority-district/22UN,Corporate Services,9890 - Collection Fund - NNDR,R127 - NNDR - Essex County Retention,15/08/2013,1054460-3,217766,2100409 - Essex County Council,PRECEPT
Tendring DC,http://statistics.data.gov.uk/id/local-authority-district/22UN,Corporate Services,6683 - Second Homes Discount Scheme,8109 - Second Homes Discount Scheme - ECC Contribution,15/08/2013,1054460-4,-37770,2100409 - Essex County Council,PRECEPT
Tendring DC,http://statistics.data.gov.uk/id/local-authority-district/22UN,Corporate Services,6680 - Other Corporate Costs,4589 - Hired Services - Actuaries Costs FRS17/IAS19,20/08/2013,2110569-1,426.12,2100498 - Essex County Council,IAS19 Charge 2013
Tendring DC,http://statistics.data.gov.uk/id/local-authority-district/22UN,Corporate Services,7025 - CDRP Support,4900 - Grants,20/08/2013,2110570-1,275,2100498 - Essex County Council,Danbury Outdoors
Tendring DC,http://statistics.data.gov.uk/id/local-authority-district/22UN,Corporate Services,8971 - MIRS - Contributions Payable to the Pension Scheme,1816 - Superannuation Deficiency Contribution,07/08/2013,7009464-3,137750,2100419 - Essex County Council,Pension 00013
Tendring DC,http://statistics.data.gov.uk/id/local-authority-district/22UN,Corporate Services,8971 - MIRS - Contributions Payable to the Pension Scheme,1810 - Superannuation - Financial Strain/Added Years,07/08/2013,7009464-4,17231.46,2100419 - Essex County Council,Pension 00013
Tendring DC,http://statistics.data.gov.uk/id/local-authority-district/22UN,Corporate Services,8971 - MIRS - Contributions Payable to the Pension Scheme,1822 - Superannuation - Port Health Pensions etc.,07/08/2013,7009465-2,726.01,2100419 - Essex County Council,Port Health Authority
Tendring DC,http://statistics.data.gov.uk/id/local-authority-district/22UN,Corporate Services,9880 - Collection Fund - Council Tax,R101 - Precept - Essex Fire,15/08/2013,1054458-1,282150,2100469 - Essex Fire Authority,PRECEPT
Tendring DC,http://statistics.data.gov.uk/id/local-authority-district/22UN,Corporate Services,9880 - Collection Fund - Council Tax,R111 - Council Tax Balance - Essex Fire,15/08/2013,1054458-2,5658,2100469 - Essex Fire Authority,PRECEPT
Tendring DC,http://statistics.data.gov.uk/id/local-authority-district/22UN,Corporate Services,9890 - Collection Fund - NNDR,R128 - NNDR - Fire Retention,15/08/2013,1054458-3,24196,2100469 - Essex Fire Authority,PRECEPT
Tendring DC,http://statistics.data.gov.uk/id/local-authority-district/22UN,Corporate Services,6683 - Second Homes Discount Scheme,8109 - Second Homes Discount Scheme - ECC Contribution,15/08/2013,1054458-4,-2106,2100469 - Essex Fire Authority,PRECEPT
Tendring DC,http://statistics.data.gov.uk/id/local-authority-district/22UN,Corporate Services,9880 - Collection Fund - Council Tax,R102 - Precept - Essex Police,15/08/2013,1054459-1,601001,2100500 - Essex Police Authority,PRECEPT
Tendring DC,http://statistics.data.gov.uk/id/local-authority-district/22UN,Corporate Services,9880 - Collection Fund - Council Tax,R112 - Council Tax Balance - Essex Police,15/08/2013,1054459-2,11647,2100500 - Essex Police Authority,PRECEPT
Tendring DC,http://statistics.data.gov.uk/id/local-authority-district/22UN,Corporate Services,1660 - Other Apportionable Overheads,4609 - Child Care Vouchers Management Fee,07/08/2013,1054048-2,80.9,REDACTED PERSONAL DATA,REDACTED PERSONAL DATA
Tendring DC,http://statistics.data.gov.uk/id/local-authority-district/22UN,Corporate Services,7025 - CDRP Support,4900 - Grants,27/08/2013,2110684-1,55,2100546 - GCS Alarms,Footage from CCTV (Nic)
Tendring DC,http://statistics.data.gov.uk/id/local-authority-district/22UN,Corporate Services,1800 - Qualification and Other Training,1510 - Interview Expenses - Recruitment,13/08/2013,1054067-1,50,2113274 - Gerard McHugh,
Tendring DC,http://statistics.data.gov.uk/id/local-authority-district/22UN,Corporate Services,1180 - Benefit Fraud Investigation Service Unit,4459 - External Legal Advice,27/08/2013,1054550-1,577.44,2100672 - Harris Cuffaro & Nichols Solicitors,
Tendring DC,http://statistics.data.gov.uk/id/local-authority-district/22UN,Corporate Services,1180 - Benefit Fraud Investigation Service Unit,4459 - External Legal Advice,27/08/2013,1054550-2,3,2100672 - Harris Cuffaro & Nichols Solicitors,
Tendring DC,http://statistics.data.gov.uk/id/local-authority-district/22UN,Corporate Services,C350 - Hardware rolling replacement programme,C275 - Hardware,20/08/2013,2110468-1,9300,2105003 - Hewlett Packard Ltd,
Tendring DC,http://statistics.data.gov.uk/id/local-authority-district/22UN,Corporate Services,1815 - Personnel and Human Resources Issues,1708 - Training - New Programme Development Courses,20/08/2013,2110574-1,82.9,2113297 - Highfield.co.uk Ltd,Highfield
Tendring DC,http://statistics.data.gov.uk/id/local-authority-district/22UN,Corporate Services,1815 - Personnel and Human Resources Issues,1708 - Training - New Programme Development Courses,20/08/2013,2110574-2,8,2113297 - Highfield.co.uk Ltd,Highfield
Tendring DC,http://statistics.data.gov.uk/id/local-authority-district/22UN,Corporate Services,1760 - IT Direct Service Costs,4751 - Hardware & Service Maintenance,20/08/2013,2110459-1,1840,2102228 - Incoms Systems PLC,
Tendring DC,http://statistics.data.gov.uk/id/local-authority-district/22UN,Corporate Services,8520 - Frinton & Walton Swimming Pool,2100 - Building Repairs,07/08/2013,1054005-1,17.31,2100782 - Insight Direct (uk) Limited,CS100692
Tendring DC,http://statistics.data.gov.uk/id/local-authority-district/22UN,Corporate Services,8520 - Frinton & Walton Swimming Pool,2100 - Building Repairs,07/08/2013,1054006-1,17.31,2100782 - Insight Direct (uk) Limited,CS100707
Tendring DC,http://statistics.data.gov.uk/id/local-authority-district/22UN,Corporate Services,8540 - Leisure Centre Clacton,5500 - Miscellaneous Expenses,20/08/2013,2110464-1,34.62,2100782 - Insight Direct (uk) Limited,
Tendring DC,http://statistics.data.gov.uk/id/local-authority-district/22UN,Corporate Services,1760 - IT Direct Service Costs,4751 - Hardware & Service Maintenance,20/08/2013,2110465-1,44.58,2100782 - Insight Direct (uk) Limited,
Tendring DC,http://statistics.data.gov.uk/id/local-authority-district/22UN,Corporate Services,1000 - Community Services Service Unit,3311 - Travelling Career Track,27/08/2013,1054538-1,36,REDACTED PERSONAL DATA,REDACTED PERSONAL DATA
Tendring DC,http://statistics.data.gov.uk/id/local-authority-district/22UN,Corporate Services,1300 - Legal Services Service Unit,4880 - Subscriptions Paid,27/08/2013,1054567-1,300,2113289 - Lawyers in Local Government,MEMBERSHIP FEE
Tendring DC,http://statistics.data.gov.uk/id/local-authority-district/22UN,Corporate Services,1760 - IT Direct Service Costs,6325 - Additional Services,07/08/2013,1054007-1,3377.01,2108077 - Liberata Financial Services Ltd,VARIOUS
Tendring DC,http://statistics.data.gov.uk/id/local-authority-district/22UN,Corporate Services,1760 - IT Direct Service Costs,4715 - Data Communication Charge,07/08/2013,1054007-2,175,2108077 - Liberata Financial Services Ltd,VARIOUS
Tendring DC,http://statistics.data.gov.uk/id/local-authority-district/22UN,Corporate Services,1760 - IT Direct Service Costs,4715 - Data Communication Charge,07/08/2013,1054007-3,229.41,2108077 - Liberata Financial Services Ltd,VARIOUS
Tendring DC,http://statistics.data.gov.uk/id/local-authority-district/22UN,Corporate Services,1520 - Head of Planning and Customer Services,1700 - Training - Courses,07/08/2013,1054007-4,30,2108077 - Liberata Financial Services Ltd,VARIOUS
Tendring DC,http://statistics.data.gov.uk/id/local-authority-district/22UN,Corporate Services,1240 - Housing Services Service Unit,1700 - Training - Courses,07/08/2013,1054007-5,120,2108077 - Liberata Financial Services Ltd,VARIOUS
Tendring DC,http://statistics.data.gov.uk/id/local-authority-district/22UN,Corporate Services,1760 - IT Direct Service Costs,6320 - IT Services Agreements Payment,07/08/2013,2110295-1,51622.01,2108077 - Liberata Financial Services Ltd,Jul-13
Tendring DC,http://statistics.data.gov.uk/id/local-authority-district/22UN,Corporate Services,1760 - IT Direct Service Costs,4715 - Data Communication Charge,20/08/2013,2110509-1,100,2108077 - Liberata Financial Services Ltd,Liberata Various
Tendring DC,http://statistics.data.gov.uk/id/local-authority-district/22UN,Corporate Services,1760 - IT Direct Service Costs,4715 - Data Communication Charge,20/08/2013,2110509-2,181.25,2108077 - Liberata Financial Services Ltd,Liberata Various
Tendring DC,http://statistics.data.gov.uk/id/local-authority-district/22UN,Corporate Services,1760 - IT Direct Service Costs,6325 - Additional Services,20/08/2013,2110509-3,1385,2108077 - Liberata Financial Services Ltd,Liberata Various
Tendring DC,http://statistics.data.gov.uk/id/local-authority-district/22UN,Corporate Services,1240 - Housing Services Service Unit,1700 - Training - Courses,20/08/2013,2110509-4,450,2108077 - Liberata Financial Services Ltd,Liberata Various
Tendring DC,http://statistics.data.gov.uk/id/local-authority-district/22UN,Corporate Services,7025 - CDRP Support,4900 - Grants,13/08/2013,1054095-1,315,2111739 - Love To Eat,TEEN FRIENDLY BUFFET 70
Tendring DC,http://statistics.data.gov.uk/id/local-authority-district/22UN,Corporate Services,1300 - Legal Services Service Unit,4503 - Counsels Fees,13/08/2013,2110413-1,2500,2101798 - Mr David Altaras,The Old Pumping Station
Tendring DC,http://statistics.data.gov.uk/id/local-authority-district/22UN,Corporate Services,5480 - HRA - Repair & Maintenance,2804 - Premises Insurance - General,27/08/2013,1054536-1,210.01,REDACTED PERSONAL DATA,REDACTED PERSONAL DATA
Tendring DC,http://statistics.data.gov.uk/id/local-authority-district/22UN,Corporate Services,6620 - Corporate Management - General,5160 - Advertising,07/08/2013,1053968-1,281.83,2100989 - Newsquest (London) Ltd,ACCOUNTS INSPECTION
Tendring DC,http://statistics.data.gov.uk/id/local-authority-district/22UN,Corporate Services,6460 - Career Track,4688 - Career Track Exam Fees,20/08/2013,2110575-1,78.4,REDACTED PERSONAL DATA,REDACTED PERSONAL DATA
Tendring DC,http://statistics.data.gov.uk/id/local-authority-district/22UN,Corporate Services,6460 - Career Track,4688 - Career Track Exam Fees,20/08/2013,2110581-1,78.4,REDACTED PERSONAL DATA,REDACTED PERSONAL DATA
Tendring DC,http://statistics.data.gov.uk/id/local-authority-district/22UN,Corporate Services,6460 - Career Track,4688 - Career Track Exam Fees,27/08/2013,2110655-1,78.4,REDACTED PERSONAL DATA,REDACTED PERSONAL DATA
Tendring DC,http://statistics.data.gov.uk/id/local-authority-district/22UN,Corporate Services,1320 - Print Unit Service Unit,4302 - External Print Unit Expenses,07/08/2013,1054013-1,150,2111844 - Optimumprint,JOB 267/268
Tendring DC,http://statistics.data.gov.uk/id/local-authority-district/22UN,Corporate Services,1320 - Print Unit Service Unit,4302 - External Print Unit Expenses,20/08/2013,2110571-1,10,2111844 - Optimumprint,Job 277
Tendring DC,http://statistics.data.gov.uk/id/local-authority-district/22UN,Corporate Services,6460 - Career Track,4688 - Career Track Exam Fees,27/08/2013,2110656-1,43.5,REDACTED PERSONAL DATA,REDACTED PERSONAL DATA
Tendring DC,http://statistics.data.gov.uk/id/local-authority-district/22UN,Corporate Services,6460 - Career Track,4688 - Career Track Exam Fees,27/08/2013,2110657-1,71.5,2100425 - Pearson,Pearson Reg
Tendring DC,http://statistics.data.gov.uk/id/local-authority-district/22UN,Corporate Services,6460 - Career Track,4688 - Career Track Exam Fees,27/08/2013,2110658-1,14.5,2100425 - Pearson,Pearson Reg
Tendring DC,http://statistics.data.gov.uk/id/local-authority-district/22UN,Corporate Services,6460 - Career Track,4688 - Career Track Exam Fees,27/08/2013,2110659-1,120,2100425 - Pearson,Pearson
Tendring DC,http://statistics.data.gov.uk/id/local-authority-district/22UN,Corporate Services,6460 - Career Track,4688 - Career Track Exam Fees,27/08/2013,2110660-1,101.5,2100425 - Pearson,Pearson FS Reg
Tendring DC,http://statistics.data.gov.uk/id/local-authority-district/22UN,Corporate Services,6460 - Career Track,4688 - Career Track Exam Fees,27/08/2013,2110661-1,14.5,2100425 - Pearson,Pearson Reg
Tendring DC,http://statistics.data.gov.uk/id/local-authority-district/22UN,Corporate Services,6460 - Career Track,4688 - Career Track Exam Fees,27/08/2013,2110662-1,29,2100425 - Pearson,Pearson Reg
Tendring DC,http://statistics.data.gov.uk/id/local-authority-district/22UN,Corporate Services,6460 - Career Track,4688 - Career Track Exam Fees,27/08/2013,2110663-1,58,REDACTED PERSONAL DATA,REDACTED PERSONAL DATA
Tendring DC,http://statistics.data.gov.uk/id/local-authority-district/22UN,Corporate Services,6460 - Career Track,4688 - Career Track Exam Fees,27/08/2013,2110664-1,29,REDACTED PERSONAL DATA,REDACTED PERSONAL DATA
Tendring DC,http://statistics.data.gov.uk/id/local-authority-district/22UN,Corporate Services,1760 - IT Direct Service Costs,4753 - Computer - Application Software,20/08/2013,2110462-1,945.96,2101038 - Phoenix Software Limited,
Tendring DC,http://statistics.data.gov.uk/id/local-authority-district/22UN,Corporate Services,1760 - IT Direct Service Costs,4753 - Computer - Application Software,20/08/2013,2110466-1,510.92,2101038 - Phoenix Software Limited,
Tendring DC,http://statistics.data.gov.uk/id/local-authority-district/22UN,Corporate Services,1760 - IT Direct Service Costs,4753 - Computer - Application Software,20/08/2013,2110467-1,501.6,2101038 - Phoenix Software Limited,
Tendring DC,http://statistics.data.gov.uk/id/local-authority-district/22UN,Corporate Services,1661 - Other Apportionable Overheads - Corporate Support,4700 - Postage,13/08/2013,1054156-1,5050,2104077 - Pitney Bowes Ltd,RE-CREDIT FRANKING MACHINE - CLACTON - PBP A/C10113561
Tendring DC,http://statistics.data.gov.uk/id/local-authority-district/22UN,Corporate Services,"1580 - Benefits, Revenues and Customer Contact SU",4718 - Fixed Communication Lines,20/08/2013,2110461-1,18.54,2106860 - ProcessFlows UK Ltd,Process Flows Jul 13
Tendring DC,http://statistics.data.gov.uk/id/local-authority-district/22UN,Corporate Services,9930 - Loans Fund Balance Sheet,B551 - Loans Maturing Within One Year - HRA,15/08/2013,1054231-1,275000,2101162 - Public Works Loan Board,PRINCIPAL AND INTEREST PAYMENTS
Tendring DC,http://statistics.data.gov.uk/id/local-authority-district/22UN,Corporate Services,5760 - HRA - Capital & Interest Charges,9831 - HRA Interest (formerly Item 8),15/08/2013,1054231-2,226437.5,2101162 - Public Works Loan Board,PRINCIPAL AND INTEREST PAYMENTS
Tendring DC,http://statistics.data.gov.uk/id/local-authority-district/22UN,Corporate Services,9900 - General Fund Balance Sheet,B886 - Rail Warrants Allocation Holding Account,16/08/2013,1054466-1,795,2101174 - R S P Ltd,RAIL WARRANTS
Tendring DC,http://statistics.data.gov.uk/id/local-authority-district/22UN,Corporate Services,1432 - TDC Website,4753 - Computer - Application Software,13/08/2013,1054109-1,900,2113205 - ReadSpeaker Limited,READSPEAKER
Tendring DC,http://statistics.data.gov.uk/id/local-authority-district/22UN,Corporate Services,6580 - Member Support Cost,4350 - Photocopier Hire,20/08/2013,1054417-1,240.58,2101090 - Ricoh UK Ltd,PHOTOCOPIER USE
Tendring DC,http://statistics.data.gov.uk/id/local-authority-district/22UN,Corporate Services,1100 - Corporate Director (Corporate Services) and Admin Service Unit,4300 - Printing & Stationery,27/08/2013,7700516-1,315.57,2101090 - Ricoh UK Ltd,PHOTOCOPIER CHARGES
Tendring DC,http://statistics.data.gov.uk/id/local-authority-district/22UN,Corporate Services,7220 - Election Expenses,4486 - Election Expenses,13/08/2013,1054096-1,86,2101139 - Royal Mail,ELECTORAL POSTAGE
Tendring DC,http://statistics.data.gov.uk/id/local-authority-district/22UN,Corporate Services,1432 - TDC Website,4500 - Consultancy Fees,07/08/2013,1054042-1,5500,2101296 - SOCITM Limited,DRUPAL
Tendring DC,http://statistics.data.gov.uk/id/local-authority-district/22UN,Corporate Services,1320 - Print Unit Service Unit,4080 - Materials & Consumables,13/08/2013,1054147-1,131.92,2108506 - Technology Business Services Ltd,RICOH INK
Tendring DC,http://statistics.data.gov.uk/id/local-authority-district/22UN,Corporate Services,7025 - CDRP Support,4900 - Grants,27/08/2013,2110683-1,216.4,2102088 - Tendring Community Transport,Transport for Alochol Awareness Event
Tendring DC,http://statistics.data.gov.uk/id/local-authority-district/22UN,Corporate Services,1090 - Chief Executive and Support Service Unit,4800 - Hospitality,13/08/2013,1054166-1,16.66,2106628 - Tendring District Council,PETTY CASH CHIEF EXE OFFICE
Tendring DC,http://statistics.data.gov.uk/id/local-authority-district/22UN,Corporate Services,1090 - Chief Executive and Support Service Unit,4800 - Hospitality,13/08/2013,1054166-10,3.33,2106628 - Tendring District Council,PETTY CASH CHIEF EXE OFFICE
Tendring DC,http://statistics.data.gov.uk/id/local-authority-district/22UN,Corporate Services,1090 - Chief Executive and Support Service Unit,4800 - Hospitality,13/08/2013,1054166-11,8.5,2106628 - Tendring District Council,PETTY CASH CHIEF EXE OFFICE
Tendring DC,http://statistics.data.gov.uk/id/local-authority-district/22UN,Corporate Services,1090 - Chief Executive and Support Service Unit,4800 - Hospitality,13/08/2013,1054166-12,9.18,2106628 - Tendring District Council,PETTY CASH CHIEF EXE OFFICE
Tendring DC,http://statistics.data.gov.uk/id/local-authority-district/22UN,Corporate Services,7040 - Civic Ceremonial Expenses,5316 - General Provisions,13/08/2013,1054166-13,3.75,2106628 - Tendring District Council,PETTY CASH CHIEF EXE OFFICE
Tendring DC,http://statistics.data.gov.uk/id/local-authority-district/22UN,Corporate Services,7040 - Civic Ceremonial Expenses,5316 - General Provisions,13/08/2013,1054166-14,2.49,2106628 - Tendring District Council,PETTY CASH CHIEF EXE OFFICE
Tendring DC,http://statistics.data.gov.uk/id/local-authority-district/22UN,Corporate Services,7040 - Civic Ceremonial Expenses,5316 - General Provisions,13/08/2013,1054166-15,1.04,2106628 - Tendring District Council,PETTY CASH CHIEF EXE OFFICE
Tendring DC,http://statistics.data.gov.uk/id/local-authority-district/22UN,Corporate Services,1090 - Chief Executive and Support Service Unit,4800 - Hospitality,13/08/2013,1054166-2,16.6,2106628 - Tendring District Council,PETTY CASH CHIEF EXE OFFICE
Tendring DC,http://statistics.data.gov.uk/id/local-authority-district/22UN,Corporate Services,1090 - Chief Executive and Support Service Unit,4800 - Hospitality,13/08/2013,1054166-3,2.14,2106628 - Tendring District Council,PETTY CASH CHIEF EXE OFFICE
Tendring DC,http://statistics.data.gov.uk/id/local-authority-district/22UN,Corporate Services,1090 - Chief Executive and Support Service Unit,4800 - Hospitality,13/08/2013,1054166-4,8.3,2106628 - Tendring District Council,PETTY CASH CHIEF EXE OFFICE
Tendring DC,http://statistics.data.gov.uk/id/local-authority-district/22UN,Corporate Services,1090 - Chief Executive and Support Service Unit,4800 - Hospitality,13/08/2013,1054166-5,7.05,2106628 - Tendring District Council,PETTY CASH CHIEF EXE OFFICE
Tendring DC,http://statistics.data.gov.uk/id/local-authority-district/22UN,Corporate Services,1090 - Chief Executive and Support Service Unit,4800 - Hospitality,13/08/2013,1054166-6,1.67,2106628 - Tendring District Council,PETTY CASH CHIEF EXE OFFICE
Tendring DC,http://statistics.data.gov.uk/id/local-authority-district/22UN,Corporate Services,1090 - Chief Executive and Support Service Unit,4800 - Hospitality,13/08/2013,1054166-7,16.99,2106628 - Tendring District Council,PETTY CASH CHIEF EXE OFFICE
Tendring DC,http://statistics.data.gov.uk/id/local-authority-district/22UN,Corporate Services,1090 - Chief Executive and Support Service Unit,4800 - Hospitality,13/08/2013,1054166-8,9.9,2106628 - Tendring District Council,PETTY CASH CHIEF EXE OFFICE
Tendring DC,http://statistics.data.gov.uk/id/local-authority-district/22UN,Corporate Services,1090 - Chief Executive and Support Service Unit,4800 - Hospitality,13/08/2013,1054166-9,8,2106628 - Tendring District Council,PETTY CASH CHIEF EXE OFFICE
Tendring DC,http://statistics.data.gov.uk/id/local-authority-district/22UN,Corporate Services,9900 - General Fund Balance Sheet,B658 - Cash Floats,20/08/2013,1054260-1,120,REDACTED COMMERCIAL CONFIDENTIALITY,REDACTED COMMERCIAL CONFIDENTIALITY
Tendring DC,http://statistics.data.gov.uk/id/local-authority-district/22UN,Corporate Services,1100 - Corporate Director (Corporate Services) and Admin Service Unit,1700 - Training - Courses,07/08/2013,1054034-1,180,2104780 - The Association of Electoral Administrators,ADSO DELEGATE
Tendring DC,http://statistics.data.gov.uk/id/local-authority-district/22UN,Corporate Services,1300 - Legal Services Service Unit,4880 - Subscriptions Paid,07/08/2013,1054043-1,100,2103637 - The Law Society,
Tendring DC,http://statistics.data.gov.uk/id/local-authority-district/22UN,Corporate Services,7040 - Civic Ceremonial Expenses,4080 - Materials & Consumables,13/08/2013,1054110-1,249.92,2112989 - Thomas Fattorini Ltd,REGALIA CASE FOR CIVIC CHAIN
Tendring DC,http://statistics.data.gov.uk/id/local-authority-district/22UN,Corporate Services,1300 - Legal Services Service Unit,4355 - Books & Periodicals,07/08/2013,1054036-1,239,2111580 - Thomson Reuters,CROSSON LOCAL GOV
Tendring DC,http://statistics.data.gov.uk/id/local-authority-district/22UN,Corporate Services,2040 - Land Drainage - General Maintenance,2116 - Watercourse Maintenance,07/08/2013,1054044-1,1000,REDACTED COMMERCIAL CONFIDENTIALITY,REDACTED COMMERCIAL CONFIDENTIALITY
Tendring DC,http://statistics.data.gov.uk/id/local-authority-district/22UN,Corporate Services,1760 - IT Direct Service Costs,4751 - Hardware & Service Maintenance,20/08/2013,2110460-1,40.9,2101521 - Videk Limited,
Tendring DC,http://statistics.data.gov.uk/id/local-authority-district/22UN,Corporate Services,1815 - Personnel and Human Resources Issues,1708 - Training - New Programme Development Courses,20/08/2013,2110588-1,17.99,2104262 - Waterstones Booksellers,Waterstones
Tendring DC,http://statistics.data.gov.uk/id/local-authority-district/22UN,Corporate Services,1320 - Print Unit Service Unit,4350 - Photocopier Hire,27/08/2013,7700518-1,1869.9,2101527 - Xerox Finance Ltd,4127 RENTAL
Tendring DC,http://statistics.data.gov.uk/id/local-authority-district/22UN,Corporate Services,1320 - Print Unit Service Unit,4302 - External Print Unit Expenses,20/08/2013,2110573-1,30,2101635 - Xpressions.com,Job 281
Tendring DC,http://statistics.data.gov.uk/id/local-authority-district/22UN,Corporate Services,6040 - Miscellaneous Seafront Activities,4040 - Equipment & Tools,20/08/2013,1054419-1,1000,2107672 - Zurich Municipal Insurance,EXCESS PL11/11/14/22
Tendring DC,http://statistics.data.gov.uk/id/local-authority-district/22UN,Corporate Services,8540 - Leisure Centre Clacton,5500 - Miscellaneous Expenses,20/08/2013,1054419-2,1000,2107672 - Zurich Municipal Insurance,EXCESS PL11/11/14/22
Tendring DC,http://statistics.data.gov.uk/id/local-authority-district/22UN,Corporate Services,5960 - Recreation Grounds,2820 - Premises - Insurance Excesses,20/08/2013,1054419-3,250,2107672 - Zurich Municipal Insurance,EXCESS PL11/11/14/22
Tendring DC,http://statistics.data.gov.uk/id/local-authority-district/22UN,Corporate Services,1700 - Insurance Recharge Account,5010 - Other Insurances - Public & Products Liability,13/08/2013,2110357-1,118306.59,2107672 - Zurich Municipal Insurance,Policy Renewal 13/14
Tendring DC,http://statistics.data.gov.uk/id/local-authority-district/22UN,Corporate Services,1700 - Insurance Recharge Account,1904 - Employee Insurances - Officials Indemnity,13/08/2013,2110357-2,4162.2,2107672 - Zurich Municipal Insurance,Policy Renewal 13/14
Tendring DC,http://statistics.data.gov.uk/id/local-authority-district/22UN,Corporate Services,1700 - Insurance Recharge Account,5010 - Other Insurances - Public & Products Liability,13/08/2013,2110357-3,25638.17,2107672 - Zurich Municipal Insurance,Policy Renewal 13/14
Tendring DC,http://statistics.data.gov.uk/id/local-authority-district/22UN,Corporate Services,1700 - Insurance Recharge Account,1903 - Insurances - Libel & Slander,13/08/2013,2110357-4,1101.15,2107672 - Zurich Municipal Insurance,Policy Renewal 13/14
Tendring DC,http://statistics.data.gov.uk/id/local-authority-district/22UN,Corporate Services,1700 - Insurance Recharge Account,2802 - Premises Insurance - Engineering,13/08/2013,2110357-5,2672.56,2107672 - Zurich Municipal Insurance,Policy Renewal 13/14
Tendring DC,http://statistics.data.gov.uk/id/local-authority-district/22UN,Corporate Services,1700 - Insurance Recharge Account,1902 - Insurances - Land Charges,13/08/2013,2110357-6,5774.37,2107672 - Zurich Municipal Insurance,Policy Renewal 13/14
Tendring DC,http://statistics.data.gov.uk/id/local-authority-district/22UN,Corporate Services,1700 - Insurance Recharge Account,2802 - Premises Insurance - Engineering,13/08/2013,2110358-1,20843.24,2107672 - Zurich Municipal Insurance,Engineering Insp 13/14
Tendring DC,http://statistics.data.gov.uk/id/local-authority-district/22UN,Life Opportunities,5480 - HRA - Repair & Maintenance,2017 - Mechanical Equipment /Extract Fans,07/08/2013,1053981-1,537.66,REDACTED PERSONAL DATA,REDACTED PERSONAL DATA
Tendring DC,http://statistics.data.gov.uk/id/local-authority-district/22UN,Life Opportunities,5480 - HRA - Repair & Maintenance,2017 - Mechanical Equipment /Extract Fans,13/08/2013,1054074-1,216.3,REDACTED PERSONAL DATA,REDACTED PERSONAL DATA
Tendring DC,http://statistics.data.gov.uk/id/local-authority-district/22UN,Life Opportunities,5480 - HRA - Repair & Maintenance,2017 - Mechanical Equipment /Extract Fans,13/08/2013,1054075-1,216.3,REDACTED PERSONAL DATA,REDACTED PERSONAL DATA
Tendring DC,http://statistics.data.gov.uk/id/local-authority-district/22UN,Life Opportunities,1880 - Office Accommodation Expenses,2100 - Building Repairs,13/08/2013,1054076-1,378,2100072 - Acorn Pressurisation Services Ltd,ACORN
Tendring DC,http://statistics.data.gov.uk/id/local-authority-district/22UN,Life Opportunities,8540 - Leisure Centre Clacton,4400 - Maintenance Under Service Agreements,13/08/2013,1054077-1,256.22,2100072 - Acorn Pressurisation Services Ltd,SCHEDULED MAINTENANCE
Tendring DC,http://statistics.data.gov.uk/id/local-authority-district/22UN,Life Opportunities,1880 - Office Accommodation Expenses,2100 - Building Repairs,20/08/2013,2110482-1,99.5,2101609 - Adcock Refrigeration & Air Conditioning Ltd,Adcock
Tendring DC,http://statistics.data.gov.uk/id/local-authority-district/22UN,Life Opportunities,1880 - Office Accommodation Expenses,2100 - Building Repairs,20/08/2013,2110519-1,468.11,2101609 - Adcock Refrigeration & Air Conditioning Ltd,Adcock
Tendring DC,http://statistics.data.gov.uk/id/local-authority-district/22UN,Life Opportunities,1880 - Office Accommodation Expenses,2500 - Water Services - Metered,13/08/2013,1054226-1,13.38,2112518 - Affinity Water Ltd (East Region),AFFINITY WATER
Tendring DC,http://statistics.data.gov.uk/id/local-authority-district/22UN,Life Opportunities,1880 - Office Accommodation Expenses,2520 - Sewerage & Environmental Charges,13/08/2013,1054226-2,71.5,2112518 - Affinity Water Ltd (East Region),AFFINITY WATER
Tendring DC,http://statistics.data.gov.uk/id/local-authority-district/22UN,Life Opportunities,8510 - Dovercourt Swimming Pool & All Weather Facilities,2510 - Water Services - Unmetered,20/08/2013,1054369-1,1005.85,2112518 - Affinity Water Ltd (East Region),WATER DSP
Tendring DC,http://statistics.data.gov.uk/id/local-authority-district/22UN,Life Opportunities,8540 - Leisure Centre Clacton,2510 - Water Services - Unmetered,20/08/2013,1054402-1,1844.86,2112518 - Affinity Water Ltd (East Region),JULY WATER
Tendring DC,http://statistics.data.gov.uk/id/local-authority-district/22UN,Life Opportunities,8540 - Leisure Centre Clacton,2510 - Water Services - Unmetered,07/08/2013,2110182-1,1376.85,2112518 - Affinity Water Ltd (East Region),May Water
Tendring DC,http://statistics.data.gov.uk/id/local-authority-district/22UN,Life Opportunities,5480 - HRA - Repair & Maintenance,2017 - Mechanical Equipment /Extract Fans,07/08/2013,1053963-1,681,REDACTED PERSONAL DATA,REDACTED PERSONAL DATA
Tendring DC,http://statistics.data.gov.uk/id/local-authority-district/22UN,Life Opportunities,5480 - HRA - Repair & Maintenance,2017 - Mechanical Equipment /Extract Fans,27/08/2013,1054547-1,814.5,REDACTED PERSONAL DATA,REDACTED PERSONAL DATA
Tendring DC,http://statistics.data.gov.uk/id/local-authority-district/22UN,Life Opportunities,C021 - Mercury Abatement Equipment and Cremator replacement,C200 - Main Contractor,13/08/2013,1054133-1,1000,REDACTED COMMERCIAL CONFIDENTIALITY,REDACTED COMMERCIAL CONFIDENTIALITY
Tendring DC,http://statistics.data.gov.uk/id/local-authority-district/22UN,Life Opportunities,C021 - Mercury Abatement Equipment and Cremator replacement,C200 - Main Contractor,20/08/2013,2110555-1,1200,REDACTED COMMERCIAL CONFIDENTIALITY,REDACTED COMMERCIAL CONFIDENTIALITY
Tendring DC,http://statistics.data.gov.uk/id/local-authority-district/22UN,Life Opportunities,6740 - Careline,3060 - Running Costs - Diesel,27/08/2013,1054517-1,546.91,2101825 - Allstar Business Solutions Ltd,ALLSTAR-FUEL CARDS JULY
Tendring DC,http://statistics.data.gov.uk/id/local-authority-district/22UN,Life Opportunities,5880 - Management Of Sport & Leisure Facilities,5166 - Marketing and Promotion,07/08/2013,1054023-1,462.31,2113123 - Amazing Promotional Merchanise Ltd,TEND SHOW PROMO
Tendring DC,http://statistics.data.gov.uk/id/local-authority-district/22UN,Life Opportunities,8540 - Leisure Centre Clacton,2520 - Sewerage & Environmental Charges,07/08/2013,2110181-1,1899.06,2112315 - Anglian Water Business,Jan-Jun Sewerage
Tendring DC,http://statistics.data.gov.uk/id/local-authority-district/22UN,Life Opportunities,7620 - Air Show,5014 - Insurance - Air Show Insurance,13/08/2013,2110368-1,500,2104849 - Aon Limited,Broking Fee Airshow 2013
Tendring DC,http://statistics.data.gov.uk/id/local-authority-district/22UN,Life Opportunities,7620 - Air Show,5014 - Insurance - Air Show Insurance,13/08/2013,2110369-1,8745,2104849 - Aon Limited,Special Events Liability Airshow 13
Tendring DC,http://statistics.data.gov.uk/id/local-authority-district/22UN,Life Opportunities,6740 - Careline,5160 - Advertising,20/08/2013,1052166-1,-50,2102337 - Archant Regional Ltd,CREDIT FOR OVERPAYMENT
Tendring DC,http://statistics.data.gov.uk/id/local-authority-district/22UN,Life Opportunities,6160 - Princes Theatre,5160 - Advertising,20/08/2013,2110450-1,184,2102337 - Archant Regional Ltd,E Anglian Daily Times
Tendring DC,http://statistics.data.gov.uk/id/local-authority-district/22UN,Life Opportunities,8540 - Leisure Centre Clacton,5160 - Advertising,07/08/2013,1053909-1,3.96,2100048 - Argos Business Solutions,MOUNTAIN BIKE MAN ORDER CHARGE
Tendring DC,http://statistics.data.gov.uk/id/local-authority-district/22UN,Life Opportunities,8540 - Leisure Centre Clacton,5160 - Advertising,07/08/2013,1053910-1,79.98,2100048 - Argos Business Solutions,PROMO BIKE
Tendring DC,http://statistics.data.gov.uk/id/local-authority-district/22UN,Life Opportunities,1230 - Private Sector Housing Service Unit,4300 - Printing & Stationery,27/08/2013,1054509-1,7.59,2100048 - Argos Business Solutions,MEMORY CARD FOR PSH
Tendring DC,http://statistics.data.gov.uk/id/local-authority-district/22UN,Life Opportunities,5360 - HRA - Sheltered Units,4040 - Equipment & Tools,13/08/2013,2110349-1,22.44,REDACTED COMMERCIAL CONFIDENTIALITY,REDACTED COMMERCIAL CONFIDENTIALITY
Tendring DC,http://statistics.data.gov.uk/id/local-authority-district/22UN,Life Opportunities,5360 - HRA - Sheltered Units,4080 - Materials & Consumables,20/08/2013,2110596-1,15.23,2100048 - Argos Business Solutions,Argos Order 29/7/13
Tendring DC,http://statistics.data.gov.uk/id/local-authority-district/22UN,Life Opportunities,5480 - HRA - Repair & Maintenance,2088 - Disabled Adaptations,20/08/2013,1054288-1,70,REDACTED PERSONAL DATA,REDACTED PERSONAL DATA
Tendring DC,http://statistics.data.gov.uk/id/local-authority-district/22UN,Life Opportunities,5480 - HRA - Repair & Maintenance,2088 - Disabled Adaptations,20/08/2013,1054288-2,260,REDACTED PERSONAL DATA,REDACTED PERSONAL DATA
Tendring DC,http://statistics.data.gov.uk/id/local-authority-district/22UN,Life Opportunities,8510 - Dovercourt Swimming Pool & All Weather Facilities,5300 - Resaleable Items,13/08/2013,1054192-1,93.3,2100088 - ASA Merchandising Ltd,DOVERCOURT POOL
Tendring DC,http://statistics.data.gov.uk/id/local-authority-district/22UN,Life Opportunities,8520 - Frinton & Walton Swimming Pool,5300 - Resaleable Items,20/08/2013,1054382-1,177.09,2100088 - ASA Merchandising Ltd,FWSP-ASA AWARDS
Tendring DC,http://statistics.data.gov.uk/id/local-authority-district/22UN,Life Opportunities,8520 - Frinton & Walton Swimming Pool,5300 - Resaleable Items,20/08/2013,1054383-1,6.84,2100088 - ASA Merchandising Ltd,FWSP-ASA AWARDS
Tendring DC,http://statistics.data.gov.uk/id/local-authority-district/22UN,Life Opportunities,8540 - Leisure Centre Clacton,5300 - Resaleable Items,20/08/2013,1054407-1,110.4,2100088 - ASA Merchandising Ltd,ASA BADGES
Tendring DC,http://statistics.data.gov.uk/id/local-authority-district/22UN,Life Opportunities,8520 - Frinton & Walton Swimming Pool,5300 - Resaleable Items,13/08/2013,2110414-1,88.17,2100088 - ASA Merchandising Ltd,Frinton & Walton Pool
Tendring DC,http://statistics.data.gov.uk/id/local-authority-district/22UN,Life Opportunities,8520 - Frinton & Walton Swimming Pool,5300 - Resaleable Items,27/08/2013,7700503-1,39.1,2100088 - ASA Merchandising Ltd,FRINTON & WALTON POOL
Tendring DC,http://statistics.data.gov.uk/id/local-authority-district/22UN,Life Opportunities,5860 - Manningtree Sports Centre,4597 - Hired Services - Payments to Contractors,13/08/2013,1054178-1,180,2110101 - ASM Ltd,FOOTBALL COACHING FOR JULY
Tendring DC,http://statistics.data.gov.uk/id/local-authority-district/22UN,Life Opportunities,8510 - Dovercourt Swimming Pool & All Weather Facilities,4400 - Maintenance Under Service Agreements,13/08/2013,1054190-1,126.45,2112129 - Autobar Vending Services Ltd,DOVERCOURT POOL
Tendring DC,http://statistics.data.gov.uk/id/local-authority-district/22UN,Life Opportunities,8520 - Frinton & Walton Swimming Pool,4400 - Maintenance Under Service Agreements,13/08/2013,2110350-1,81.07,REDACTED COMMERCIAL CONFIDENTIALITY,REDACTED COMMERCIAL CONFIDENTIALITY
Tendring DC,http://statistics.data.gov.uk/id/local-authority-district/22UN,Life Opportunities,1880 - Office Accommodation Expenses,4080 - Materials & Consumables,27/08/2013,1054546-1,23.32,2100099 - B & Q Trade Account,BQ
Tendring DC,http://statistics.data.gov.uk/id/local-authority-district/22UN,Life Opportunities,1880 - Office Accommodation Expenses,4080 - Materials & Consumables,13/08/2013,2110410-1,35.62,2100099 - B & Q Trade Account,B&Q
Tendring DC,http://statistics.data.gov.uk/id/local-authority-district/22UN,Life Opportunities,1880 - Office Accommodation Expenses,4080 - Materials & Consumables,13/08/2013,2110411-1,44.06,2100099 - B & Q Trade Account,B&Q
Tendring DC,http://statistics.data.gov.uk/id/local-authority-district/22UN,Life Opportunities,1880 - Office Accommodation Expenses,4080 - Materials & Consumables,13/08/2013,2110412-1,18.3,2100099 - B & Q Trade Account,B&Q
Tendring DC,http://statistics.data.gov.uk/id/local-authority-district/22UN,Life Opportunities,8540 - Leisure Centre Clacton,4200 - Clothing & Uniforms,07/08/2013,2110174-1,69.65,2106876 - Badgemaster Ltd,Name Badge
Tendring DC,http://statistics.data.gov.uk/id/local-authority-district/22UN,Life Opportunities,8540 - Leisure Centre Clacton,5500 - Miscellaneous Expenses,07/08/2013,1054024-1,77.67,2106358 - Baker Ross Ltd,ART CLASS MATERIALS
Tendring DC,http://statistics.data.gov.uk/id/local-authority-district/22UN,Life Opportunities,5860 - Manningtree Sports Centre,4040 - Equipment & Tools,20/08/2013,1054373-1,55.7,2106358 - Baker Ross Ltd,ART & CRAFT SUPPLIES
Tendring DC,http://statistics.data.gov.uk/id/local-authority-district/22UN,Life Opportunities,8540 - Leisure Centre Clacton,4200 - Clothing & Uniforms,07/08/2013,1052609-1,-59.93,2109068 - Ballantyne Edwards Ltd,STAFF UNIFORM CREDIT
Tendring DC,http://statistics.data.gov.uk/id/local-authority-district/22UN,Life Opportunities,6160 - Princes Theatre,4200 - Clothing & Uniforms,13/08/2013,1054184-1,130.8,2109068 - Ballantyne Edwards Ltd,UNIFORMS FOR THEATRE STAFF
Tendring DC,http://statistics.data.gov.uk/id/local-authority-district/22UN,Life Opportunities,8520 - Frinton & Walton Swimming Pool,4200 - Clothing & Uniforms,20/08/2013,1054385-1,57.89,2109068 - Ballantyne Edwards Ltd,FWSP-UNIFORMS
Tendring DC,http://statistics.data.gov.uk/id/local-authority-district/22UN,Life Opportunities,7620 - Air Show,5500 - Miscellaneous Expenses,27/08/2013,1054561-1,352.75,2109068 - Ballantyne Edwards Ltd,T SHIRTS FOR AIRSHOW 2013
Tendring DC,http://statistics.data.gov.uk/id/local-authority-district/22UN,Life Opportunities,7620 - Air Show,5500 - Miscellaneous Expenses,07/08/2013,2110272-1,892.24,REDACTED COMMERCIAL CONFIDENTIALITY,REDACTED COMMERCIAL CONFIDENTIALITY
Tendring DC,http://statistics.data.gov.uk/id/local-authority-district/22UN,Life Opportunities,"1580 - Benefits, Revenues and Customer Contact SU",4300 - Printing & Stationery,07/08/2013,1053913-1,30.01,2100111 - Banner Business Supplies Ltd,CALCULATORS/BATTERIES/PAPER
Tendring DC,http://statistics.data.gov.uk/id/local-authority-district/22UN,Life Opportunities,5240 - HRA - Managing Tenancies,4312 - Tenancy Stationery,07/08/2013,1053914-1,71.14,REDACTED COMMERCIAL CONFIDENTIALITY,REDACTED COMMERCIAL CONFIDENTIALITY
Tendring DC,http://statistics.data.gov.uk/id/local-authority-district/22UN,Life Opportunities,5820 - Harwich Sports Centre,4300 - Printing & Stationery,13/08/2013,1054175-1,1.04,2100111 - Banner Business Supplies Ltd,YEAR PLANNER
Tendring DC,http://statistics.data.gov.uk/id/local-authority-district/22UN,Life Opportunities,8510 - Dovercourt Swimming Pool & All Weather Facilities,4300 - Printing & Stationery,13/08/2013,1054191-1,6.23,2100111 - Banner Business Supplies Ltd,DOVERCOURT POOL
Tendring DC,http://statistics.data.gov.uk/id/local-authority-district/22UN,Life Opportunities,5240 - HRA - Managing Tenancies,4312 - Tenancy Stationery,27/08/2013,1054512-1,11.67,2100111 - Banner Business Supplies Ltd,DESK FAN BANNER ORDER 15/7
Tendring DC,http://statistics.data.gov.uk/id/local-authority-district/22UN,Life Opportunities,5240 - HRA - Managing Tenancies,4312 - Tenancy Stationery,27/08/2013,1054513-1,118.02,2100111 - Banner Business Supplies Ltd,BANNER ORDER 12/8
Tendring DC,http://statistics.data.gov.uk/id/local-authority-district/22UN,Life Opportunities,6160 - Princes Theatre,4040 - Equipment & Tools,27/08/2013,1054513-2,0.8,2100111 - Banner Business Supplies Ltd,BANNER ORDER 12/8
Tendring DC,http://statistics.data.gov.uk/id/local-authority-district/22UN,Life Opportunities,5820 - Harwich Sports Centre,4300 - Printing & Stationery,27/08/2013,1054579-1,17.94,2100111 - Banner Business Supplies Ltd,STATIONERY
Tendring DC,http://statistics.data.gov.uk/id/local-authority-district/22UN,Life Opportunities,5820 - Harwich Sports Centre,4300 - Printing & Stationery,27/08/2013,1054580-1,8.69,2100111 - Banner Business Supplies Ltd,DIARY
Tendring DC,http://statistics.data.gov.uk/id/local-authority-district/22UN,Life Opportunities,"1580 - Benefits, Revenues and Customer Contact SU",4300 - Printing & Stationery,13/08/2013,2110344-1,38.77,2100111 - Banner Business Supplies Ltd,"Wrist Rest, Paper, Finger Cones"
Tendring DC,http://statistics.data.gov.uk/id/local-authority-district/22UN,Life Opportunities,5240 - HRA - Managing Tenancies,4312 - Tenancy Stationery,13/08/2013,2110348-1,81.76,REDACTED COMMERCIAL CONFIDENTIALITY,REDACTED COMMERCIAL CONFIDENTIALITY
Tendring DC,http://statistics.data.gov.uk/id/local-authority-district/22UN,Life Opportunities,"1580 - Benefits, Revenues and Customer Contact SU",4300 - Printing & Stationery,20/08/2013,2110603-1,120.16,2100111 - Banner Business Supplies Ltd,Stapler/Paper/Diaries
Tendring DC,http://statistics.data.gov.uk/id/local-authority-district/22UN,Life Opportunities,1210 - Facilities Management Service Unit,4300 - Printing & Stationery,20/08/2013,2110604-1,9.8,2100111 - Banner Business Supplies Ltd,Banner
Tendring DC,http://statistics.data.gov.uk/id/local-authority-district/22UN,Life Opportunities,1565 - Careline / CCTV Service Unit,4300 - Printing & Stationery,20/08/2013,2110605-1,228.11,2100111 - Banner Business Supplies Ltd,Banner - Stationery Aug 13
Tendring DC,http://statistics.data.gov.uk/id/local-authority-district/22UN,Life Opportunities,8540 - Leisure Centre Clacton,4300 - Printing & Stationery,20/08/2013,2110606-1,46.48,2100111 - Banner Business Supplies Ltd,Stationery
Tendring DC,http://statistics.data.gov.uk/id/local-authority-district/22UN,Life Opportunities,5240 - HRA - Managing Tenancies,4312 - Tenancy Stationery,20/08/2013,2110607-1,57.58,2100111 - Banner Business Supplies Ltd,Banner Order 5/8/13
Tendring DC,http://statistics.data.gov.uk/id/local-authority-district/22UN,Life Opportunities,6160 - Princes Theatre,4040 - Equipment & Tools,20/08/2013,2110607-2,6.17,2100111 - Banner Business Supplies Ltd,Banner Order 5/8/13
Tendring DC,http://statistics.data.gov.uk/id/local-authority-district/22UN,Life Opportunities,5140 - Homelessness,4683 - Other Homelessness Expenses,27/08/2013,1054441-1,550,REDACTED PERSONAL DATA,REDACTED PERSONAL DATA
Tendring DC,http://statistics.data.gov.uk/id/local-authority-district/22UN,Life Opportunities,7520 - Tourism Publicity Marketing Promotion,5160 - Advertising,27/08/2013,2110649-1,80,REDACTED PERSONAL DATA,REDACTED PERSONAL DATA
Tendring DC,http://statistics.data.gov.uk/id/local-authority-district/22UN,Life Opportunities,5820 - Harwich Sports Centre,4597 - Hired Services - Payments to Contractors,20/08/2013,1054395-1,39,2105048 - Berendsen UK Ltd,ROLLER TOWEL RENTAL
Tendring DC,http://statistics.data.gov.uk/id/local-authority-district/22UN,Life Opportunities,8540 - Leisure Centre Clacton,2300 - Energy Costs - Fuel Oil,20/08/2013,1054333-1,1650.13,2112681 - BIRLEM Ltd,2416 LT GAS OIL
Tendring DC,http://statistics.data.gov.uk/id/local-authority-district/22UN,Life Opportunities,8540 - Leisure Centre Clacton,2300 - Energy Costs - Fuel Oil,27/08/2013,1054586-1,1591.2,2112681 - BIRLEM Ltd,2400 LT
Tendring DC,http://statistics.data.gov.uk/id/local-authority-district/22UN,Life Opportunities,8540 - Leisure Centre Clacton,2300 - Energy Costs - Fuel Oil,13/08/2013,2110420-1,1725,2112681 - BIRLEM Ltd,2500 Lt Gas Oil
Tendring DC,http://statistics.data.gov.uk/id/local-authority-district/22UN,Life Opportunities,H805 - Major Refurbishment of Heating,C200 - Main Contractor,13/08/2013,1054233-1,35649.37,2100155 - Blue Flame (Colchester) Ltd,Heating refurbishment & upgrade contract-Valuation 9
Tendring DC,http://statistics.data.gov.uk/id/local-authority-district/22UN,Life Opportunities,5140 - Homelessness,4683 - Other Homelessness Expenses,27/08/2013,1054437-1,550,REDACTED PERSONAL DATA,REDACTED PERSONAL DATA
Tendring DC,http://statistics.data.gov.uk/id/local-authority-district/22UN,Life Opportunities,6160 - Princes Theatre,4105 - Bar/Catering Expenses,27/08/2013,1054555-1,20.98,2113279 - Booker,SAXON WINE X 2 PRINCES THEATRE
Tendring DC,http://statistics.data.gov.uk/id/local-authority-district/22UN,Life Opportunities,5480 - HRA - Repair & Maintenance,2008 - Responsive Maintenance - Floor Wall And Ceiling Fi,13/08/2013,1054134-1,150,REDACTED PERSONAL DATA,REDACTED PERSONAL DATA
Tendring DC,http://statistics.data.gov.uk/id/local-authority-district/22UN,Life Opportunities,5480 - HRA - Repair & Maintenance,2008 - Responsive Maintenance - Floor Wall And Ceiling Fi,27/08/2013,2110637-1,55,REDACTED PERSONAL DATA,REDACTED PERSONAL DATA
Tendring DC,http://statistics.data.gov.uk/id/local-authority-district/22UN,Life Opportunities,8520 - Frinton & Walton Swimming Pool,2304 - Energy Costs - Electricity,27/08/2013,1054563-1,174.37,2100197 - British Gas Trading Ltd,WALTON POOL-ELEC
Tendring DC,http://statistics.data.gov.uk/id/local-authority-district/22UN,Life Opportunities,5340 - HRA - Communal Central Heating,2304 - Energy Costs - Electricity,20/08/2013,2110609-1,800.48,2100197 - British Gas Trading Ltd,Elec July 13
Tendring DC,http://statistics.data.gov.uk/id/local-authority-district/22UN,Life Opportunities,5360 - HRA - Sheltered Units,2304 - Energy Costs - Electricity,20/08/2013,2110609-2,333.89,2100197 - British Gas Trading Ltd,Elec July 13
Tendring DC,http://statistics.data.gov.uk/id/local-authority-district/22UN,Life Opportunities,5440 - HRA - Communal Electricity,2304 - Energy Costs - Electricity,20/08/2013,2110609-3,7471.13,2100197 - British Gas Trading Ltd,Elec July 13
Tendring DC,http://statistics.data.gov.uk/id/local-authority-district/22UN,Life Opportunities,5440 - HRA - Communal Electricity,2304 - Energy Costs - Electricity,20/08/2013,2110609-4,547.62,2100197 - British Gas Trading Ltd,Elec July 13
Tendring DC,http://statistics.data.gov.uk/id/local-authority-district/22UN,Life Opportunities,5440 - HRA - Communal Electricity,2304 - Energy Costs - Electricity,20/08/2013,2110609-5,-1633.33,2100197 - British Gas Trading Ltd,Elec July 13
Tendring DC,http://statistics.data.gov.uk/id/local-authority-district/22UN,Life Opportunities,5360 - HRA - Sheltered Units,2304 - Energy Costs - Electricity,20/08/2013,2110609-6,-43.69,2100197 - British Gas Trading Ltd,Elec July 13
Tendring DC,http://statistics.data.gov.uk/id/local-authority-district/22UN,Life Opportunities,6740 - Careline,2304 - Energy Costs - Electricity,20/08/2013,2110610-1,24,2100197 - British Gas Trading Ltd,Aug-13
Tendring DC,http://statistics.data.gov.uk/id/local-authority-district/22UN,Life Opportunities,6740 - Careline,4710 - Telephones - Charges,13/08/2013,1054115-1,213.36,2100168 - British Telecommunications plc,BT-BARNES HOUSE SERVER ROOM
Tendring DC,http://statistics.data.gov.uk/id/local-authority-district/22UN,Life Opportunities,1840 - Central Telephone Service,4710 - Telephones - Charges,27/08/2013,1054545-1,5610.83,2100168 - British Telecommunications plc,BT-686000
Tendring DC,http://statistics.data.gov.uk/id/local-authority-district/22UN,Life Opportunities,6740 - Careline,4710 - Telephones - Charges,27/08/2013,2110665-1,91.7,2100168 - British Telecommunications plc,BT Bill - Disaster Recov
Tendring DC,http://statistics.data.gov.uk/id/local-authority-district/22UN,Life Opportunities,C263 - Replacement of Careline alarms in Group Schemes,C251 - Other Furniture,27/08/2013,1054449-1,144.85,2113248 - BT Payment Services Ltd,BT BILL FOR GROUPED SHEME SERVICE USER
Tendring DC,http://statistics.data.gov.uk/id/local-authority-district/22UN,Life Opportunities,8520 - Frinton & Walton Swimming Pool,2700 - Cleaning Materials,13/08/2013,1054177-1,135.98,2101624 - Bunzl,CLEANING ITEMS
Tendring DC,http://statistics.data.gov.uk/id/local-authority-district/22UN,Life Opportunities,8150 - Office Cleaning,4080 - Materials & Consumables,13/08/2013,1054216-1,511.17,2101624 - Bunzl,BUNZL
Tendring DC,http://statistics.data.gov.uk/id/local-authority-district/22UN,Life Opportunities,8150 - Office Cleaning,4080 - Materials & Consumables,13/08/2013,1054225-1,154.44,2101624 - Bunzl,BUNZL
Tendring DC,http://statistics.data.gov.uk/id/local-authority-district/22UN,Life Opportunities,8150 - Office Cleaning,4080 - Materials & Consumables,27/08/2013,1054540-1,185.33,2101624 - Bunzl,BUNZL
Tendring DC,http://statistics.data.gov.uk/id/local-authority-district/22UN,Life Opportunities,5800 - Brightlingsea Sports Centre,4080 - Materials & Consumables,27/08/2013,1054564-1,76.81,2101624 - Bunzl,BUNZL
Tendring DC,http://statistics.data.gov.uk/id/local-authority-district/22UN,Life Opportunities,5360 - HRA - Sheltered Units,2700 - Cleaning Materials,07/08/2013,2110278-1,162.52,REDACTED COMMERCIAL CONFIDENTIALITY,REDACTED COMMERCIAL CONFIDENTIALITY
Tendring DC,http://statistics.data.gov.uk/id/local-authority-district/22UN,Life Opportunities,5360 - HRA - Sheltered Units,2700 - Cleaning Materials,07/08/2013,2110279-1,6.21,REDACTED COMMERCIAL CONFIDENTIALITY,REDACTED COMMERCIAL CONFIDENTIALITY
Tendring DC,http://statistics.data.gov.uk/id/local-authority-district/22UN,Life Opportunities,5800 - Brightlingsea Sports Centre,4000 - Furniture,07/08/2013,2110280-1,157.13,2101624 - Bunzl,Cleaning Supplies
Tendring DC,http://statistics.data.gov.uk/id/local-authority-district/22UN,Life Opportunities,8530 - Brightlingsea Swimming Pool,4000 - Furniture,07/08/2013,2110281-1,55.4,2101624 - Bunzl,Cleaning Supplies BSC
Tendring DC,http://statistics.data.gov.uk/id/local-authority-district/22UN,Life Opportunities,8540 - Leisure Centre Clacton,2700 - Cleaning Materials,13/08/2013,2110415-1,228.6,2101624 - Bunzl,Cleaning Materials
Tendring DC,http://statistics.data.gov.uk/id/local-authority-district/22UN,Life Opportunities,8510 - Dovercourt Swimming Pool & All Weather Facilities,2100 - Building Repairs,13/08/2013,1054196-1,1088,2100280 - C H Lindsey & Son Ltd,DOVERCOURT POOL
Tendring DC,http://statistics.data.gov.uk/id/local-authority-district/22UN,Life Opportunities,8520 - Frinton & Walton Swimming Pool,2100 - Building Repairs,27/08/2013,1054572-1,628,2100280 - C H Lindsey & Son Ltd,FRINTON POOL-IGNITORS
Tendring DC,http://statistics.data.gov.uk/id/local-authority-district/22UN,Life Opportunities,8510 - Dovercourt Swimming Pool & All Weather Facilities,4400 - Maintenance Under Service Agreements,07/08/2013,2110263-1,266.99,2100280 - C H Lindsey & Son Ltd,Filter Maint
Tendring DC,http://statistics.data.gov.uk/id/local-authority-district/22UN,Life Opportunities,8520 - Frinton & Walton Swimming Pool,4400 - Maintenance Under Service Agreements,07/08/2013,2110263-2,266.99,2100280 - C H Lindsey & Son Ltd,Filter Maint
Tendring DC,http://statistics.data.gov.uk/id/local-authority-district/22UN,Life Opportunities,8540 - Leisure Centre Clacton,4400 - Maintenance Under Service Agreements,07/08/2013,2110263-3,275.09,2100280 - C H Lindsey & Son Ltd,Filter Maint
Tendring DC,http://statistics.data.gov.uk/id/local-authority-district/22UN,Life Opportunities,8540 - Leisure Centre Clacton,2100 - Building Repairs,07/08/2013,2110264-1,1363,2100280 - C H Lindsey & Son Ltd,Panel & Bag Filters
Tendring DC,http://statistics.data.gov.uk/id/local-authority-district/22UN,Life Opportunities,8520 - Frinton & Walton Swimming Pool,2100 - Building Repairs,07/08/2013,2110266-1,981,2100280 - C H Lindsey & Son Ltd,Panel Filters
Tendring DC,http://statistics.data.gov.uk/id/local-authority-district/22UN,Life Opportunities,8540 - Leisure Centre Clacton,4400 - Maintenance Under Service Agreements,07/08/2013,2110177-1,318.36,2100281 - Cannon Hygiene,July Sept
Tendring DC,http://statistics.data.gov.uk/id/local-authority-district/22UN,Life Opportunities,5260 - HRA - Rent Collection And Accounting,4312 - Tenancy Stationery,27/08/2013,2110616-1,160,2100202 - Capita Business Services Ltd,Thryon Accessories
Tendring DC,http://statistics.data.gov.uk/id/local-authority-district/22UN,Life Opportunities,1560 - Cashiers Service Unit,4753 - Computer - Application Software,27/08/2013,2110681-1,6995,2100202 - Capita Business Services Ltd,Software per quote AMT5282
Tendring DC,http://statistics.data.gov.uk/id/local-authority-district/22UN,Life Opportunities,5240 - HRA - Managing Tenancies,5249 - Housing ASB Expenses,27/08/2013,2110645-1,2000,REDACTED PERSONAL DATA,REDACTED PERSONAL DATA
Tendring DC,http://statistics.data.gov.uk/id/local-authority-district/22UN,Life Opportunities,1880 - Office Accommodation Expenses,2100 - Building Repairs,20/08/2013,2110474-1,580,2100858 - Chelmer Electrical Ltd,Chelmer Electrical
Tendring DC,http://statistics.data.gov.uk/id/local-authority-district/22UN,Life Opportunities,1880 - Office Accommodation Expenses,2100 - Building Repairs,20/08/2013,2110474-2,524,2100858 - Chelmer Electrical Ltd,Chelmer Electrical
Tendring DC,http://statistics.data.gov.uk/id/local-authority-district/22UN,Life Opportunities,1860 - Depots General,2100 - Building Repairs,20/08/2013,2110474-3,176,2100858 - Chelmer Electrical Ltd,Chelmer Electrical
Tendring DC,http://statistics.data.gov.uk/id/local-authority-district/22UN,Life Opportunities,1880 - Office Accommodation Expenses,2100 - Building Repairs,20/08/2013,2110474-4,232,2100858 - Chelmer Electrical Ltd,Chelmer Electrical
Tendring DC,http://statistics.data.gov.uk/id/local-authority-district/22UN,Life Opportunities,1880 - Office Accommodation Expenses,2100 - Building Repairs,20/08/2013,2110474-5,176,2100858 - Chelmer Electrical Ltd,Chelmer Electrical
Tendring DC,http://statistics.data.gov.uk/id/local-authority-district/22UN,Life Opportunities,1650 - Building Services Service Unit,4040 - Equipment & Tools,13/08/2013,1054131-1,224.24,REDACTED COMMERCIAL CONFIDENTIALITY,REDACTED COMMERCIAL CONFIDENTIALITY
Tendring DC,http://statistics.data.gov.uk/id/local-authority-district/22UN,Life Opportunities,5220 - HRA - Policy & Management,5253 - HRA Health & Safety Expenses,20/08/2013,2110455-1,127.2,2100205 - Chelmsford Safety Supplies Ltd,Health & Safety Supplies
Tendring DC,http://statistics.data.gov.uk/id/local-authority-district/22UN,Life Opportunities,1880 - Office Accommodation Expenses,2100 - Building Repairs,20/08/2013,2110486-1,26,2100205 - Chelmsford Safety Supplies Ltd,Chelmsford Safety
Tendring DC,http://statistics.data.gov.uk/id/local-authority-district/22UN,Life Opportunities,8510 - Dovercourt Swimming Pool & All Weather Facilities,4000 - Furniture,20/08/2013,2110559-1,74.85,2100205 - Chelmsford Safety Supplies Ltd,PPE
Tendring DC,http://statistics.data.gov.uk/id/local-authority-district/22UN,Life Opportunities,8520 - Frinton & Walton Swimming Pool,4200 - Clothing & Uniforms,27/08/2013,7700504-1,199.5,2100205 - Chelmsford Safety Supplies Ltd,FWSP - UNIFORMS
Tendring DC,http://statistics.data.gov.uk/id/local-authority-district/22UN,Life Opportunities,5140 - Homelessness,4680 - Bed & Breakfast Accommodation,07/08/2013,2110270-1,100,REDACTED PERSONAL DATA,REDACTED PERSONAL DATA
Tendring DC,http://statistics.data.gov.uk/id/local-authority-district/22UN,Life Opportunities,5140 - Homelessness,4680 - Bed & Breakfast Accommodation,07/08/2013,2110271-1,175,REDACTED PERSONAL DATA,REDACTED PERSONAL DATA
Tendring DC,http://statistics.data.gov.uk/id/local-authority-district/22UN,Life Opportunities,5140 - Homelessness,4680 - Bed & Breakfast Accommodation,27/08/2013,2110617-1,175,REDACTED PERSONAL DATA,REDACTED PERSONAL DATA
Tendring DC,http://statistics.data.gov.uk/id/local-authority-district/22UN,Life Opportunities,5140 - Homelessness,4680 - Bed & Breakfast Accommodation,27/08/2013,2110650-1,175,REDACTED PERSONAL DATA,REDACTED PERSONAL DATA
Tendring DC,http://statistics.data.gov.uk/id/local-authority-district/22UN,Life Opportunities,5240 - HRA - Managing Tenancies,4644 - Energy Performance Certificate Costs,20/08/2013,1054393-1,45,REDACTED PERSONAL DATA,REDACTED PERSONAL DATA
Tendring DC,http://statistics.data.gov.uk/id/local-authority-district/22UN,Life Opportunities,5240 - HRA - Managing Tenancies,4644 - Energy Performance Certificate Costs,20/08/2013,1054394-1,50,REDACTED PERSONAL DATA,REDACTED PERSONAL DATA
Tendring DC,http://statistics.data.gov.uk/id/local-authority-district/22UN,Life Opportunities,5240 - HRA - Managing Tenancies,4644 - Energy Performance Certificate Costs,20/08/2013,1054397-1,45,REDACTED PERSONAL DATA,REDACTED PERSONAL DATA
Tendring DC,http://statistics.data.gov.uk/id/local-authority-district/22UN,Life Opportunities,5240 - HRA - Managing Tenancies,4644 - Energy Performance Certificate Costs,20/08/2013,1054398-1,45,REDACTED PERSONAL DATA,REDACTED PERSONAL DATA
Tendring DC,http://statistics.data.gov.uk/id/local-authority-district/22UN,Life Opportunities,5240 - HRA - Managing Tenancies,4644 - Energy Performance Certificate Costs,20/08/2013,1054399-1,45,REDACTED PERSONAL DATA,REDACTED PERSONAL DATA
Tendring DC,http://statistics.data.gov.uk/id/local-authority-district/22UN,Life Opportunities,5240 - HRA - Managing Tenancies,4644 - Energy Performance Certificate Costs,07/08/2013,2110286-1,45,REDACTED PERSONAL DATA,REDACTED PERSONAL DATA
Tendring DC,http://statistics.data.gov.uk/id/local-authority-district/22UN,Life Opportunities,6355 - Community Activity Network,4597 - Hired Services - Payments to Contractors,07/08/2013,1053959-1,300,2102155 - Chris A Vine,FUNDING SUPPORT
Tendring DC,http://statistics.data.gov.uk/id/local-authority-district/22UN,Life Opportunities,6160 - Princes Theatre,5308 - Ice Cream,20/08/2013,1054392-1,395.08,2108623 - CICC Ltd,ICE CREAM
Tendring DC,http://statistics.data.gov.uk/id/local-authority-district/22UN,Life Opportunities,"1580 - Benefits, Revenues and Customer Contact SU",4461 - Court Fees,01/08/2013,1054278-1,2441,2100269 - Co operative Bank plc,HM COURTS/SCREAM/IRRV
Tendring DC,http://statistics.data.gov.uk/id/local-authority-district/22UN,Life Opportunities,1560 - Cashiers Service Unit,4753 - Computer - Application Software,01/08/2013,1054278-2,241.2,2100269 - Co operative Bank plc,HM COURTS/SCREAM/IRRV
Tendring DC,http://statistics.data.gov.uk/id/local-authority-district/22UN,Life Opportunities,"1580 - Benefits, Revenues and Customer Contact SU",4355 - Books & Periodicals,01/08/2013,1054278-3,280,2100269 - Co operative Bank plc,HM COURTS/SCREAM/IRRV
Tendring DC,http://statistics.data.gov.uk/id/local-authority-district/22UN,Life Opportunities,5260 - HRA - Rent Collection And Accounting,4461 - Court Fees,23/08/2013,1054607-1,860,2100269 - Co operative Bank plc,CREDIT CARD JULY 2013
Tendring DC,http://statistics.data.gov.uk/id/local-authority-district/22UN,Life Opportunities,6620 - Corporate Management - General,5190 - Bank Commission Charges,23/08/2013,1054607-2,2,2100269 - Co operative Bank plc,CREDIT CARD JULY 2013
Tendring DC,http://statistics.data.gov.uk/id/local-authority-district/22UN,Life Opportunities,1300 - Legal Services Service Unit,4461 - Court Fees,23/08/2013,1054607-3,4,2100269 - Co operative Bank plc,CREDIT CARD JULY 2013
Tendring DC,http://statistics.data.gov.uk/id/local-authority-district/22UN,Life Opportunities,6740 - Careline,1700 - Training - Courses,23/08/2013,1054607-4,1068,2100269 - Co operative Bank plc,CREDIT CARD JULY 2013
Tendring DC,http://statistics.data.gov.uk/id/local-authority-district/22UN,Life Opportunities,"1580 - Benefits, Revenues and Customer Contact SU",4462 - Bailiffs and Tracing Agent Fees re debt recovery,07/08/2013,1053966-1,33.34,2100381 - Collect Services Ltd,VAT ON FEES COLLECTED CT
Tendring DC,http://statistics.data.gov.uk/id/local-authority-district/22UN,Life Opportunities,"1580 - Benefits, Revenues and Customer Contact SU",4462 - Bailiffs and Tracing Agent Fees re debt recovery,07/08/2013,1053966-2,-33.34,2100381 - Collect Services Ltd,VAT ON FEES COLLECTED CT
Tendring DC,http://statistics.data.gov.uk/id/local-authority-district/22UN,Life Opportunities,"1580 - Benefits, Revenues and Customer Contact SU",4462 - Bailiffs and Tracing Agent Fees re debt recovery,07/08/2013,1053966-3,2221.97,2100381 - Collect Services Ltd,VAT ON FEES COLLECTED CT
Tendring DC,http://statistics.data.gov.uk/id/local-authority-district/22UN,Life Opportunities,"1580 - Benefits, Revenues and Customer Contact SU",4462 - Bailiffs and Tracing Agent Fees re debt recovery,07/08/2013,1053966-4,-2221.97,2100381 - Collect Services Ltd,VAT ON FEES COLLECTED CT
Tendring DC,http://statistics.data.gov.uk/id/local-authority-district/22UN,Life Opportunities,"1580 - Benefits, Revenues and Customer Contact SU",4462 - Bailiffs and Tracing Agent Fees re debt recovery,07/08/2013,1053967-1,527.64,2100381 - Collect Services Ltd,VAT ON FEES COLLECTED NNDR
Tendring DC,http://statistics.data.gov.uk/id/local-authority-district/22UN,Life Opportunities,"1580 - Benefits, Revenues and Customer Contact SU",4462 - Bailiffs and Tracing Agent Fees re debt recovery,07/08/2013,1053967-2,-527.64,2100381 - Collect Services Ltd,VAT ON FEES COLLECTED NNDR
Tendring DC,http://statistics.data.gov.uk/id/local-authority-district/22UN,Life Opportunities,"1580 - Benefits, Revenues and Customer Contact SU",4462 - Bailiffs and Tracing Agent Fees re debt recovery,13/08/2013,1054102-1,5,2100381 - Collect Services Ltd,VAT ON FEES COLLECTED NNDR
Tendring DC,http://statistics.data.gov.uk/id/local-authority-district/22UN,Life Opportunities,"1580 - Benefits, Revenues and Customer Contact SU",4462 - Bailiffs and Tracing Agent Fees re debt recovery,13/08/2013,1054102-2,-5,2100381 - Collect Services Ltd,VAT ON FEES COLLECTED NNDR
Tendring DC,http://statistics.data.gov.uk/id/local-authority-district/22UN,Life Opportunities,"1580 - Benefits, Revenues and Customer Contact SU",4462 - Bailiffs and Tracing Agent Fees re debt recovery,13/08/2013,1054103-1,25,2100381 - Collect Services Ltd,VAT ON FEES COLLECTED CT
Tendring DC,http://statistics.data.gov.uk/id/local-authority-district/22UN,Life Opportunities,"1580 - Benefits, Revenues and Customer Contact SU",4462 - Bailiffs and Tracing Agent Fees re debt recovery,13/08/2013,1054103-2,-25,2100381 - Collect Services Ltd,VAT ON FEES COLLECTED CT
Tendring DC,http://statistics.data.gov.uk/id/local-authority-district/22UN,Life Opportunities,"1580 - Benefits, Revenues and Customer Contact SU",4462 - Bailiffs and Tracing Agent Fees re debt recovery,13/08/2013,1054103-3,2916.14,2100381 - Collect Services Ltd,VAT ON FEES COLLECTED CT
Tendring DC,http://statistics.data.gov.uk/id/local-authority-district/22UN,Life Opportunities,"1580 - Benefits, Revenues and Customer Contact SU",4462 - Bailiffs and Tracing Agent Fees re debt recovery,13/08/2013,1054103-4,-2916.14,2100381 - Collect Services Ltd,VAT ON FEES COLLECTED CT
Tendring DC,http://statistics.data.gov.uk/id/local-authority-district/22UN,Life Opportunities,"1580 - Benefits, Revenues and Customer Contact SU",4462 - Bailiffs and Tracing Agent Fees re debt recovery,13/08/2013,1054120-1,5,2100381 - Collect Services Ltd,VAT ON FEES COLLECTED CT
Tendring DC,http://statistics.data.gov.uk/id/local-authority-district/22UN,Life Opportunities,"1580 - Benefits, Revenues and Customer Contact SU",4462 - Bailiffs and Tracing Agent Fees re debt recovery,13/08/2013,1054120-2,-5,2100381 - Collect Services Ltd,VAT ON FEES COLLECTED CT
Tendring DC,http://statistics.data.gov.uk/id/local-authority-district/22UN,Life Opportunities,"1580 - Benefits, Revenues and Customer Contact SU",4462 - Bailiffs and Tracing Agent Fees re debt recovery,13/08/2013,1054120-3,13.75,2100381 - Collect Services Ltd,VAT ON FEES COLLECTED CT
Tendring DC,http://statistics.data.gov.uk/id/local-authority-district/22UN,Life Opportunities,"1580 - Benefits, Revenues and Customer Contact SU",4462 - Bailiffs and Tracing Agent Fees re debt recovery,13/08/2013,1054120-4,-13.75,2100381 - Collect Services Ltd,VAT ON FEES COLLECTED CT
Tendring DC,http://statistics.data.gov.uk/id/local-authority-district/22UN,Life Opportunities,"1580 - Benefits, Revenues and Customer Contact SU",4462 - Bailiffs and Tracing Agent Fees re debt recovery,13/08/2013,1054120-5,3001.61,2100381 - Collect Services Ltd,VAT ON FEES COLLECTED CT
Tendring DC,http://statistics.data.gov.uk/id/local-authority-district/22UN,Life Opportunities,"1580 - Benefits, Revenues and Customer Contact SU",4462 - Bailiffs and Tracing Agent Fees re debt recovery,13/08/2013,1054120-6,-3001.61,2100381 - Collect Services Ltd,VAT ON FEES COLLECTED CT
Tendring DC,http://statistics.data.gov.uk/id/local-authority-district/22UN,Life Opportunities,"1580 - Benefits, Revenues and Customer Contact SU",4462 - Bailiffs and Tracing Agent Fees re debt recovery,13/08/2013,1054121-1,-532.91,2100381 - Collect Services Ltd,VAT ON FEES COLLECTED NNDR
Tendring DC,http://statistics.data.gov.uk/id/local-authority-district/22UN,Life Opportunities,"1580 - Benefits, Revenues and Customer Contact SU",4462 - Bailiffs and Tracing Agent Fees re debt recovery,13/08/2013,1054121-2,532.91,2100381 - Collect Services Ltd,VAT ON FEES COLLECTED NNDR
Tendring DC,http://statistics.data.gov.uk/id/local-authority-district/22UN,Life Opportunities,"1580 - Benefits, Revenues and Customer Contact SU",5189 - External Debt Recovery Commission,13/08/2013,1054122-1,119.81,2100381 - Collect Services Ltd,15% COMMISSION RECOVERED
Tendring DC,http://statistics.data.gov.uk/id/local-authority-district/22UN,Life Opportunities,"1580 - Benefits, Revenues and Customer Contact SU",4462 - Bailiffs and Tracing Agent Fees re debt recovery,27/08/2013,1054553-1,40,2100381 - Collect Services Ltd,VAT ON FEES COLLECTED NNDR
Tendring DC,http://statistics.data.gov.uk/id/local-authority-district/22UN,Life Opportunities,"1580 - Benefits, Revenues and Customer Contact SU",4462 - Bailiffs and Tracing Agent Fees re debt recovery,27/08/2013,1054553-2,-40,2100381 - Collect Services Ltd,VAT ON FEES COLLECTED NNDR
Tendring DC,http://statistics.data.gov.uk/id/local-authority-district/22UN,Life Opportunities,"1580 - Benefits, Revenues and Customer Contact SU",4462 - Bailiffs and Tracing Agent Fees re debt recovery,27/08/2013,1054554-1,13.75,2100381 - Collect Services Ltd,VAT ON FEES COLLECTED C/T
Tendring DC,http://statistics.data.gov.uk/id/local-authority-district/22UN,Life Opportunities,"1580 - Benefits, Revenues and Customer Contact SU",4462 - Bailiffs and Tracing Agent Fees re debt recovery,27/08/2013,1054554-2,-13.75,2100381 - Collect Services Ltd,VAT ON FEES COLLECTED C/T
Tendring DC,http://statistics.data.gov.uk/id/local-authority-district/22UN,Life Opportunities,"1580 - Benefits, Revenues and Customer Contact SU",4462 - Bailiffs and Tracing Agent Fees re debt recovery,27/08/2013,1054554-3,3367.47,2100381 - Collect Services Ltd,VAT ON FEES COLLECTED C/T
Tendring DC,http://statistics.data.gov.uk/id/local-authority-district/22UN,Life Opportunities,"1580 - Benefits, Revenues and Customer Contact SU",4462 - Bailiffs and Tracing Agent Fees re debt recovery,27/08/2013,1054554-4,-3367.47,2100381 - Collect Services Ltd,VAT ON FEES COLLECTED C/T
Tendring DC,http://statistics.data.gov.uk/id/local-authority-district/22UN,Life Opportunities,9900 - General Fund Balance Sheet,B863 - Bailiff Payments Holding Account,20/08/2013,1054412-1,3831.96,REDACTED COMMERCIAL CONFIDENTIALITY,REDACTED COMMERCIAL CONFIDENTIALITY
Tendring DC,http://statistics.data.gov.uk/id/local-authority-district/22UN,Life Opportunities,9900 - General Fund Balance Sheet,B863 - Bailiff Payments Holding Account,27/08/2013,1054601-1,1490,REDACTED COMMERCIAL CONFIDENTIALITY,REDACTED COMMERCIAL CONFIDENTIALITY
Tendring DC,http://statistics.data.gov.uk/id/local-authority-district/22UN,Life Opportunities,9900 - General Fund Balance Sheet,B863 - Bailiff Payments Holding Account,07/08/2013,2110294-1,4099.62,2112596 - Collect Services Ltd Clients Account,
Tendring DC,http://statistics.data.gov.uk/id/local-authority-district/22UN,Life Opportunities,9900 - General Fund Balance Sheet,B382 - Rechargeable Works - Other,13/08/2013,1054139-1,1380,REDACTED PERSONAL DATA,REDACTED PERSONAL DATA
Tendring DC,http://statistics.data.gov.uk/id/local-authority-district/22UN,Life Opportunities,5240 - HRA - Managing Tenancies,5248 - Estate Management Expenses,27/08/2013,7700509-1,65,2103418 - Command Pest Control Limited T/A Pestclear,INVESTIGATE 75-85 ALTON PARK ROAD
Tendring DC,http://statistics.data.gov.uk/id/local-authority-district/22UN,Life Opportunities,5240 - HRA - Managing Tenancies,5248 - Estate Management Expenses,27/08/2013,7700510-1,65,2103418 - Command Pest Control Limited T/A Pestclear,TREATMENT ALTON PARK ROAD
Tendring DC,http://statistics.data.gov.uk/id/local-authority-district/22UN,Life Opportunities,5240 - HRA - Managing Tenancies,5248 - Estate Management Expenses,27/08/2013,7700511-1,65,2103418 - Command Pest Control Limited T/A Pestclear,TREATMENT - ABBOTT ROAD
Tendring DC,http://statistics.data.gov.uk/id/local-authority-district/22UN,Life Opportunities,"1580 - Benefits, Revenues and Customer Contact SU",4469 - Other Non - Legal Professional Services,01/08/2013,1054275-1,7,2103209 - Companies House,COMPANIES HOUSE AUG 13
Tendring DC,http://statistics.data.gov.uk/id/local-authority-district/22UN,Life Opportunities,5140 - Homelessness,4683 - Other Homelessness Expenses,20/08/2013,1054241-1,475,REDACTED PERSONAL DATA,REDACTED PERSONAL DATA
Tendring DC,http://statistics.data.gov.uk/id/local-authority-district/22UN,Life Opportunities,8540 - Leisure Centre Clacton,2100 - Building Repairs,20/08/2013,1054303-1,290.44,2100314 - Cooper & Brome (Plumbing & Heating) Ltd,SHOWER CARTRIDGES
Tendring DC,http://statistics.data.gov.uk/id/local-authority-district/22UN,Life Opportunities,H700 - First time Heating,C200 - Main Contractor,27/08/2013,1054435-1,619,2100314 - Cooper & Brome (Plumbing & Heating) Ltd,KATE DANIELS HSE APPLICATION 2
Tendring DC,http://statistics.data.gov.uk/id/local-authority-district/22UN,Life Opportunities,5480 - HRA - Repair & Maintenance,2076 - Gas Service Contract Other Refurbishment/Repairs (,27/08/2013,1054436-1,102.33,REDACTED PERSONAL DATA,REDACTED PERSONAL DATA
Tendring DC,http://statistics.data.gov.uk/id/local-authority-district/22UN,Life Opportunities,5480 - HRA - Repair & Maintenance,2088 - Disabled Adaptations,27/08/2013,2110635-1,40.75,2105729 - Co-operative Mobility,Window Pull
Tendring DC,http://statistics.data.gov.uk/id/local-authority-district/22UN,Life Opportunities,8510 - Dovercourt Swimming Pool & All Weather Facilities,2308 - Energy Costs - Gas (Including LPG),20/08/2013,1054371-1,1403.1,2104620 - Corona Energy Retail 4 Limited,DSP-GAS
Tendring DC,http://statistics.data.gov.uk/id/local-authority-district/22UN,Life Opportunities,8520 - Frinton & Walton Swimming Pool,2308 - Energy Costs - Gas (Including LPG),20/08/2013,1054372-1,2476.7,2104620 - Corona Energy Retail 4 Limited,FRINTON POOL-GAS
Tendring DC,http://statistics.data.gov.uk/id/local-authority-district/22UN,Life Opportunities,8540 - Leisure Centre Clacton,2308 - Energy Costs - Gas (Including LPG),20/08/2013,1054404-1,1096.21,2104620 - Corona Energy Retail 4 Limited,GAS JULY
Tendring DC,http://statistics.data.gov.uk/id/local-authority-district/22UN,Life Opportunities,8540 - Leisure Centre Clacton,2308 - Energy Costs - Gas (Including LPG),07/08/2013,2110183-1,1363.22,2104620 - Corona Energy Retail 4 Limited,June Gas
Tendring DC,http://statistics.data.gov.uk/id/local-authority-district/22UN,Life Opportunities,6040 - Miscellaneous Seafront Activities,4040 - Equipment & Tools,27/08/2013,1054497-1,83.33,2102038 - Crispins Sandwich Bar Ltd,BUFFET FOR GUNFLEET CLUB
Tendring DC,http://statistics.data.gov.uk/id/local-authority-district/22UN,Life Opportunities,H860 - Disabled Adaptations,C200 - Main Contractor,07/08/2013,1053980-1,4620,REDACTED PERSONAL DATA,REDACTED PERSONAL DATA
Tendring DC,http://statistics.data.gov.uk/id/local-authority-district/22UN,Life Opportunities,5360 - HRA - Sheltered Units,4710 - Telephones - Charges,27/08/2013,2110666-1,278.97,2106704 - Daisy Communications Ltd,Daisy Bill July
Tendring DC,http://statistics.data.gov.uk/id/local-authority-district/22UN,Life Opportunities,6160 - Princes Theatre,4597 - Hired Services - Payments to Contractors,13/08/2013,1054182-1,5.27,2100397 - Danes of Colchester Ltd,TABLECLOTH-ROUND LARGE
Tendring DC,http://statistics.data.gov.uk/id/local-authority-district/22UN,Life Opportunities,6160 - Princes Theatre,4597 - Hired Services - Payments to Contractors,13/08/2013,1054185-1,14.48,2100397 - Danes of Colchester Ltd,TABLECLOTH BANQUET
Tendring DC,http://statistics.data.gov.uk/id/local-authority-district/22UN,Life Opportunities,8510 - Dovercourt Swimming Pool & All Weather Facilities,2100 - Building Repairs,13/08/2013,1054197-1,45,2100359 - Derek Taylor Engineering,DOVERCOURT POOL
Tendring DC,http://statistics.data.gov.uk/id/local-authority-district/22UN,Life Opportunities,5480 - HRA - Repair & Maintenance,2068 - Other Minor Equipment Repairs,27/08/2013,1054506-1,145.63,2100490 - DORMA UK Ltd - Service Division,VYNTONER HOUSE
Tendring DC,http://statistics.data.gov.uk/id/local-authority-district/22UN,Life Opportunities,5800 - Brightlingsea Sports Centre,2100 - Building Repairs,27/08/2013,1054565-1,325.79,2100490 - DORMA UK Ltd - Service Division,DORMA UK LTD
Tendring DC,http://statistics.data.gov.uk/id/local-authority-district/22UN,Life Opportunities,5480 - HRA - Repair & Maintenance,2068 - Other Minor Equipment Repairs,20/08/2013,2110456-1,257.98,2100490 - DORMA UK Ltd - Service Division,32 Old School Lane
Tendring DC,http://statistics.data.gov.uk/id/local-authority-district/22UN,Life Opportunities,C021 - Mercury Abatement Equipment and Cremator replacement,C200 - Main Contractor,13/08/2013,1054132-1,850,REDACTED COMMERCIAL CONFIDENTIALITY,REDACTED COMMERCIAL CONFIDENTIALITY
Tendring DC,http://statistics.data.gov.uk/id/local-authority-district/22UN,Life Opportunities,C021 - Mercury Abatement Equipment and Cremator replacement,C200 - Main Contractor,07/08/2013,2110254-1,690,REDACTED COMMERCIAL CONFIDENTIALITY,REDACTED COMMERCIAL CONFIDENTIALITY
Tendring DC,http://statistics.data.gov.uk/id/local-authority-district/22UN,Life Opportunities,H710 - Selected Improvements,C200 - Main Contractor,27/08/2013,2110636-1,25,2110558 - E Sign,Fire Signage for Crooked Elms
Tendring DC,http://statistics.data.gov.uk/id/local-authority-district/22UN,Life Opportunities,8520 - Frinton & Walton Swimming Pool,4081 - Chemicals,20/08/2013,1054376-1,163.75,2100433 - East Essex Pool Care,FWSP-EEPC CHEMICALS
Tendring DC,http://statistics.data.gov.uk/id/local-authority-district/22UN,Life Opportunities,8520 - Frinton & Walton Swimming Pool,4081 - Chemicals,20/08/2013,1054377-1,205.4,2100433 - East Essex Pool Care,FWSP-EEPC CHEMICALS
Tendring DC,http://statistics.data.gov.uk/id/local-authority-district/22UN,Life Opportunities,8520 - Frinton & Walton Swimming Pool,4081 - Chemicals,20/08/2013,1054378-1,400.4,2100433 - East Essex Pool Care,FWSP-EEPC CHEMICALS
Tendring DC,http://statistics.data.gov.uk/id/local-authority-district/22UN,Life Opportunities,8540 - Leisure Centre Clacton,4081 - Chemicals,27/08/2013,1054487-1,137.5,2100433 - East Essex Pool Care,ACID
Tendring DC,http://statistics.data.gov.uk/id/local-authority-district/22UN,Life Opportunities,8540 - Leisure Centre Clacton,4081 - Chemicals,27/08/2013,1054488-1,364.5,2100433 - East Essex Pool Care,POOL CHEMICALS
Tendring DC,http://statistics.data.gov.uk/id/local-authority-district/22UN,Life Opportunities,8540 - Leisure Centre Clacton,4081 - Chemicals,27/08/2013,1054489-1,30.2,2100433 - East Essex Pool Care,POOL CHEMICALS
Tendring DC,http://statistics.data.gov.uk/id/local-authority-district/22UN,Life Opportunities,8540 - Leisure Centre Clacton,4081 - Chemicals,27/08/2013,1054490-1,38.5,2100433 - East Essex Pool Care,POOL CHEMICALS
Tendring DC,http://statistics.data.gov.uk/id/local-authority-district/22UN,Life Opportunities,8530 - Brightlingsea Swimming Pool,4081 - Chemicals,27/08/2013,1054491-1,506.75,2100433 - East Essex Pool Care,BSP CHEMICALS
Tendring DC,http://statistics.data.gov.uk/id/local-authority-district/22UN,Life Opportunities,8530 - Brightlingsea Swimming Pool,4081 - Chemicals,27/08/2013,1054492-1,503.25,2100433 - East Essex Pool Care,BSP CHEMICALS
Tendring DC,http://statistics.data.gov.uk/id/local-authority-district/22UN,Life Opportunities,8530 - Brightlingsea Swimming Pool,4081 - Chemicals,27/08/2013,1054493-1,337,2100433 - East Essex Pool Care,BSP CHEMICALS
Tendring DC,http://statistics.data.gov.uk/id/local-authority-district/22UN,Life Opportunities,8530 - Brightlingsea Swimming Pool,4081 - Chemicals,27/08/2013,1054494-1,332.5,2100433 - East Essex Pool Care,BSP CHEMICALS
Tendring DC,http://statistics.data.gov.uk/id/local-authority-district/22UN,Life Opportunities,8540 - Leisure Centre Clacton,2100 - Building Repairs,27/08/2013,1054585-1,890.12,2100433 - East Essex Pool Care,SPLIT PIPE PLANT ROOM
Tendring DC,http://statistics.data.gov.uk/id/local-authority-district/22UN,Life Opportunities,8540 - Leisure Centre Clacton,2100 - Building Repairs,27/08/2013,1054587-1,387,2100433 - East Essex Pool Care,REF PROBE EZETROL
Tendring DC,http://statistics.data.gov.uk/id/local-authority-district/22UN,Life Opportunities,8540 - Leisure Centre Clacton,4081 - Chemicals,27/08/2013,1054588-1,493.4,2100433 - East Essex Pool Care,POOL CHEMICALS
Tendring DC,http://statistics.data.gov.uk/id/local-authority-district/22UN,Life Opportunities,8540 - Leisure Centre Clacton,4081 - Chemicals,27/08/2013,1054589-1,71,2100433 - East Essex Pool Care,ACID
Tendring DC,http://statistics.data.gov.uk/id/local-authority-district/22UN,Life Opportunities,8510 - Dovercourt Swimming Pool & All Weather Facilities,2100 - Building Repairs,27/08/2013,1054590-1,637.5,2100433 - East Essex Pool Care,DSP-PUMP 2
Tendring DC,http://statistics.data.gov.uk/id/local-authority-district/22UN,Life Opportunities,8510 - Dovercourt Swimming Pool & All Weather Facilities,4081 - Chemicals,20/08/2013,2110561-1,266.7,2100433 - East Essex Pool Care,Pool Chemicals
Tendring DC,http://statistics.data.gov.uk/id/local-authority-district/22UN,Life Opportunities,8510 - Dovercourt Swimming Pool & All Weather Facilities,4081 - Chemicals,20/08/2013,2110562-1,132,2100433 - East Essex Pool Care,Pool Chemicals
Tendring DC,http://statistics.data.gov.uk/id/local-authority-district/22UN,Life Opportunities,8510 - Dovercourt Swimming Pool & All Weather Facilities,4081 - Chemicals,20/08/2013,2110563-1,305.85,2100433 - East Essex Pool Care,Pool Chemicals
Tendring DC,http://statistics.data.gov.uk/id/local-authority-district/22UN,Life Opportunities,8540 - Leisure Centre Clacton,2304 - Energy Costs - Electricity,20/08/2013,1054330-1,7441.17,2105146 - EDF Energy 1 Ltd,JULY ELECTRIC
Tendring DC,http://statistics.data.gov.uk/id/local-authority-district/22UN,Life Opportunities,1880 - Office Accommodation Expenses,2304 - Energy Costs - Electricity,20/08/2013,2110488-1,4362.28,2105146 - EDF Energy 1 Ltd,EDF Energy
Tendring DC,http://statistics.data.gov.uk/id/local-authority-district/22UN,Life Opportunities,6160 - Princes Theatre,2304 - Energy Costs - Electricity,20/08/2013,2110488-2,484.7,2105146 - EDF Energy 1 Ltd,EDF Energy
Tendring DC,http://statistics.data.gov.uk/id/local-authority-district/22UN,Life Opportunities,8510 - Dovercourt Swimming Pool & All Weather Facilities,2304 - Energy Costs - Electricity,20/08/2013,2110489-1,2748.7,2105146 - EDF Energy 1 Ltd,EDF
Tendring DC,http://statistics.data.gov.uk/id/local-authority-district/22UN,Life Opportunities,6160 - Princes Theatre,4622 - Hired Services - Artistes and Production Companies,13/08/2013,1054172-1,4000,2111197 - Entertainers Management Ltd,AN EVENING OF BURLESQUE
Tendring DC,http://statistics.data.gov.uk/id/local-authority-district/22UN,Life Opportunities,5360 - HRA - Sheltered Units,2304 - Energy Costs - Electricity,13/08/2013,1053702-1,-5.36,2107644 - Eon,WARDEN KDH CREDIT
Tendring DC,http://statistics.data.gov.uk/id/local-authority-district/22UN,Life Opportunities,5360 - HRA - Sheltered Units,2304 - Energy Costs - Electricity,13/08/2013,1054179-1,33.78,2107644 - Eon,15 HC 08734
Tendring DC,http://statistics.data.gov.uk/id/local-authority-district/22UN,Life Opportunities,5360 - HRA - Sheltered Units,2304 - Energy Costs - Electricity,13/08/2013,1054180-1,22.12,2107644 - Eon,27 HC 12489
Tendring DC,http://statistics.data.gov.uk/id/local-authority-district/22UN,Life Opportunities,8540 - Leisure Centre Clacton,4400 - Maintenance Under Service Agreements,20/08/2013,1054332-1,272,2111548 - Essex Lift Services Ltd,LIFT MAINT
Tendring DC,http://statistics.data.gov.uk/id/local-authority-district/22UN,Life Opportunities,1880 - Office Accommodation Expenses,4632 - Security,13/08/2013,1054219-1,11,2100531 - Euro-Fire Ltd,EURO FIRE
Tendring DC,http://statistics.data.gov.uk/id/local-authority-district/22UN,Life Opportunities,5480 - HRA - Repair & Maintenance,2059 - Fire Fighting Equipment Servicing,27/08/2013,1054498-1,166.27,2100531 - Euro-Fire Ltd,VYNTONER HOUSE
Tendring DC,http://statistics.data.gov.uk/id/local-authority-district/22UN,Life Opportunities,5480 - HRA - Repair & Maintenance,2060 - Fire Fighting Equipment Repairs,27/08/2013,1054499-1,52.65,2100531 - Euro-Fire Ltd,SPENDELLS HOUSE
Tendring DC,http://statistics.data.gov.uk/id/local-authority-district/22UN,Life Opportunities,5480 - HRA - Repair & Maintenance,2060 - Fire Fighting Equipment Repairs,27/08/2013,1054500-1,52.65,2100531 - Euro-Fire Ltd,MEAD HOUSE
Tendring DC,http://statistics.data.gov.uk/id/local-authority-district/22UN,Life Opportunities,5480 - HRA - Repair & Maintenance,2060 - Fire Fighting Equipment Repairs,27/08/2013,1054501-1,52.65,2100531 - Euro-Fire Ltd,BELMANS COURT
Tendring DC,http://statistics.data.gov.uk/id/local-authority-district/22UN,Life Opportunities,5480 - HRA - Repair & Maintenance,2060 - Fire Fighting Equipment Repairs,27/08/2013,1054502-1,52.65,2100531 - Euro-Fire Ltd,HONEYCROFT
Tendring DC,http://statistics.data.gov.uk/id/local-authority-district/22UN,Life Opportunities,5480 - HRA - Repair & Maintenance,2060 - Fire Fighting Equipment Repairs,27/08/2013,1054503-1,52.65,2100531 - Euro-Fire Ltd,GREENFIELDS
Tendring DC,http://statistics.data.gov.uk/id/local-authority-district/22UN,Life Opportunities,8540 - Leisure Centre Clacton,2100 - Building Repairs,07/08/2013,2110180-1,40,2100531 - Euro-Fire Ltd,Recharge Fire Ext
Tendring DC,http://statistics.data.gov.uk/id/local-authority-district/22UN,Life Opportunities,5480 - HRA - Repair & Maintenance,2060 - Fire Fighting Equipment Repairs,13/08/2013,2110375-1,52.65,REDACTED PERSONAL DATA,REDACTED PERSONAL DATA
Tendring DC,http://statistics.data.gov.uk/id/local-authority-district/22UN,Life Opportunities,5480 - HRA - Repair & Maintenance,2060 - Fire Fighting Equipment Repairs,13/08/2013,2110376-1,56.55,REDACTED PERSONAL DATA,REDACTED PERSONAL DATA
Tendring DC,http://statistics.data.gov.uk/id/local-authority-district/22UN,Life Opportunities,5480 - HRA - Repair & Maintenance,2060 - Fire Fighting Equipment Repairs,13/08/2013,2110377-1,52.65,REDACTED PERSONAL DATA,REDACTED PERSONAL DATA
Tendring DC,http://statistics.data.gov.uk/id/local-authority-district/22UN,Life Opportunities,5480 - HRA - Repair & Maintenance,2060 - Fire Fighting Equipment Repairs,13/08/2013,2110378-1,52.65,REDACTED PERSONAL DATA,REDACTED PERSONAL DATA
Tendring DC,http://statistics.data.gov.uk/id/local-authority-district/22UN,Life Opportunities,5480 - HRA - Repair & Maintenance,2060 - Fire Fighting Equipment Repairs,13/08/2013,2110379-1,52.65,REDACTED PERSONAL DATA,REDACTED PERSONAL DATA
Tendring DC,http://statistics.data.gov.uk/id/local-authority-district/22UN,Life Opportunities,1230 - Private Sector Housing Service Unit,4300 - Printing & Stationery,20/08/2013,2110552-1,99,2100503 - Ferret Information Systems Ltd,DFG Forms Suite
Tendring DC,http://statistics.data.gov.uk/id/local-authority-district/22UN,Life Opportunities,5480 - HRA - Repair & Maintenance,2058 - Fire Alarms Repairs,07/08/2013,1053960-1,140,REDACTED PERSONAL DATA,REDACTED PERSONAL DATA
Tendring DC,http://statistics.data.gov.uk/id/local-authority-district/22UN,Life Opportunities,5480 - HRA - Repair & Maintenance,2058 - Fire Alarms Repairs,07/08/2013,1053961-1,485,REDACTED PERSONAL DATA,REDACTED PERSONAL DATA
Tendring DC,http://statistics.data.gov.uk/id/local-authority-district/22UN,Life Opportunities,5480 - HRA - Repair & Maintenance,2058 - Fire Alarms Repairs,27/08/2013,1054504-1,50,2108583 - Firesite,GREENFIELDS
Tendring DC,http://statistics.data.gov.uk/id/local-authority-district/22UN,Life Opportunities,5480 - HRA - Repair & Maintenance,2058 - Fire Alarms Repairs,27/08/2013,1054505-1,440,2108583 - Firesite,MEAD HOUSE
Tendring DC,http://statistics.data.gov.uk/id/local-authority-district/22UN,Life Opportunities,7600 - Tourist Information Centres,9356 - Commission Sales,13/08/2013,1054153-1,1566.72,2103743 - First Essex Buses Ltd,FIRST ESSEX BUSES JULY 13
Tendring DC,http://statistics.data.gov.uk/id/local-authority-district/22UN,Life Opportunities,7600 - Tourist Information Centres,9356 - Commission Sales,20/08/2013,2110566-1,264.6,2107423 - Fizz Coach Trips,July 2013 FIZZ
Tendring DC,http://statistics.data.gov.uk/id/local-authority-district/22UN,Life Opportunities,"1580 - Benefits, Revenues and Customer Contact SU",4635 - Cash Collection Contract,27/08/2013,1054599-1,10,2101233 - G4S Cash Services (UK) Limited,CASH DELIVERY/JULY/AUG 13
Tendring DC,http://statistics.data.gov.uk/id/local-authority-district/22UN,Life Opportunities,"1580 - Benefits, Revenues and Customer Contact SU",4635 - Cash Collection Contract,27/08/2013,1054600-1,470.49,2101233 - G4S Cash Services (UK) Limited,G4S SEPT 13
Tendring DC,http://statistics.data.gov.uk/id/local-authority-district/22UN,Life Opportunities,8560 - Happy Valley Recreation Ground Pitch & Putt,4635 - Cash Collection Contract,27/08/2013,1054600-10,69.57,2101233 - G4S Cash Services (UK) Limited,G4S SEPT 13
Tendring DC,http://statistics.data.gov.uk/id/local-authority-district/22UN,Life Opportunities,5820 - Harwich Sports Centre,4635 - Cash Collection Contract,27/08/2013,1054600-11,69.57,2101233 - G4S Cash Services (UK) Limited,G4S SEPT 13
Tendring DC,http://statistics.data.gov.uk/id/local-authority-district/22UN,Life Opportunities,8025 - Car Parks - Off St,4635 - Cash Collection Contract,27/08/2013,1054600-12,47.8,2101233 - G4S Cash Services (UK) Limited,G4S SEPT 13
Tendring DC,http://statistics.data.gov.uk/id/local-authority-district/22UN,Life Opportunities,5260 - HRA - Rent Collection And Accounting,4635 - Cash Collection Contract,27/08/2013,1054600-2,119.64,2101233 - G4S Cash Services (UK) Limited,G4S SEPT 13
Tendring DC,http://statistics.data.gov.uk/id/local-authority-district/22UN,Life Opportunities,5260 - HRA - Rent Collection And Accounting,4635 - Cash Collection Contract,27/08/2013,1054600-3,19.58,2101233 - G4S Cash Services (UK) Limited,G4S SEPT 13
Tendring DC,http://statistics.data.gov.uk/id/local-authority-district/22UN,Life Opportunities,"1580 - Benefits, Revenues and Customer Contact SU",4635 - Cash Collection Contract,27/08/2013,1054600-4,29.11,2101233 - G4S Cash Services (UK) Limited,G4S SEPT 13
Tendring DC,http://statistics.data.gov.uk/id/local-authority-district/22UN,Life Opportunities,8025 - Car Parks - Off St,4635 - Cash Collection Contract,27/08/2013,1054600-5,68.11,2101233 - G4S Cash Services (UK) Limited,G4S SEPT 13
Tendring DC,http://statistics.data.gov.uk/id/local-authority-district/22UN,Life Opportunities,8540 - Leisure Centre Clacton,4635 - Cash Collection Contract,27/08/2013,1054600-6,208.7,2101233 - G4S Cash Services (UK) Limited,G4S SEPT 13
Tendring DC,http://statistics.data.gov.uk/id/local-authority-district/22UN,Life Opportunities,8510 - Dovercourt Swimming Pool & All Weather Facilities,4635 - Cash Collection Contract,27/08/2013,1054600-7,139.13,2101233 - G4S Cash Services (UK) Limited,G4S SEPT 13
Tendring DC,http://statistics.data.gov.uk/id/local-authority-district/22UN,Life Opportunities,5800 - Brightlingsea Sports Centre,4635 - Cash Collection Contract,27/08/2013,1054600-8,69.57,2101233 - G4S Cash Services (UK) Limited,G4S SEPT 13
Tendring DC,http://statistics.data.gov.uk/id/local-authority-district/22UN,Life Opportunities,8520 - Frinton & Walton Swimming Pool,4635 - Cash Collection Contract,27/08/2013,1054600-9,139.13,2101233 - G4S Cash Services (UK) Limited,G4S SEPT 13
Tendring DC,http://statistics.data.gov.uk/id/local-authority-district/22UN,Life Opportunities,"1580 - Benefits, Revenues and Customer Contact SU",4635 - Cash Collection Contract,27/08/2013,7700517-1,3.1,2101233 - G4S Cash Services (UK) Limited,CASH DELIVERY JULY 13
Tendring DC,http://statistics.data.gov.uk/id/local-authority-district/22UN,Life Opportunities,H920 - DFGs,C400 - Grant payments,07/08/2013,1053933-1,7077.61,REDACTED PERSONAL DATA,REDACTED PERSONAL DATA
Tendring DC,http://statistics.data.gov.uk/id/local-authority-district/22UN,Life Opportunities,H920 - DFGs,C400 - Grant payments,07/08/2013,1053934-1,2000,REDACTED PERSONAL DATA,REDACTED PERSONAL DATA
Tendring DC,http://statistics.data.gov.uk/id/local-authority-district/22UN,Life Opportunities,H920 - DFGs,C400 - Grant payments,07/08/2013,1053935-1,2538,REDACTED PERSONAL DATA,REDACTED PERSONAL DATA
Tendring DC,http://statistics.data.gov.uk/id/local-authority-district/22UN,Life Opportunities,H920 - DFGs,C400 - Grant payments,07/08/2013,1053936-1,4345,REDACTED PERSONAL DATA,REDACTED PERSONAL DATA
Tendring DC,http://statistics.data.gov.uk/id/local-authority-district/22UN,Life Opportunities,H920 - DFGs,C400 - Grant payments,13/08/2013,1054053-1,10848.4,REDACTED PERSONAL DATA,REDACTED PERSONAL DATA
Tendring DC,http://statistics.data.gov.uk/id/local-authority-district/22UN,Life Opportunities,H920 - DFGs,C400 - Grant payments,20/08/2013,1054265-1,4212.76,REDACTED PERSONAL DATA,REDACTED PERSONAL DATA
Tendring DC,http://statistics.data.gov.uk/id/local-authority-district/22UN,Life Opportunities,H920 - DFGs,C400 - Grant payments,27/08/2013,1054450-1,644,REDACTED PERSONAL DATA,REDACTED PERSONAL DATA
Tendring DC,http://statistics.data.gov.uk/id/local-authority-district/22UN,Life Opportunities,1880 - Office Accommodation Expenses,4632 - Security,13/08/2013,1054221-1,80,2100546 - GCS Alarms,GCS
Tendring DC,http://statistics.data.gov.uk/id/local-authority-district/22UN,Life Opportunities,1880 - Office Accommodation Expenses,4632 - Security,13/08/2013,1054222-1,65,2100546 - GCS Alarms,GCS
Tendring DC,http://statistics.data.gov.uk/id/local-authority-district/22UN,Life Opportunities,8025 - Car Parks - Off St,4040 - Equipment & Tools,07/08/2013,2110250-1,607,2100546 - GCS Alarms,Train Station Fibre Board
Tendring DC,http://statistics.data.gov.uk/id/local-authority-district/22UN,Life Opportunities,8540 - Leisure Centre Clacton,4400 - Maintenance Under Service Agreements,07/08/2013,2110257-1,80,2100546 - GCS Alarms,Turnstile Maint
Tendring DC,http://statistics.data.gov.uk/id/local-authority-district/22UN,Life Opportunities,8540 - Leisure Centre Clacton,2100 - Building Repairs,07/08/2013,2110258-1,93,2100546 - GCS Alarms,Check Fire Alarm
Tendring DC,http://statistics.data.gov.uk/id/local-authority-district/22UN,Life Opportunities,8540 - Leisure Centre Clacton,2100 - Building Repairs,07/08/2013,2110259-1,145.63,2100546 - GCS Alarms,Replace Faulty Sounder
Tendring DC,http://statistics.data.gov.uk/id/local-authority-district/22UN,Life Opportunities,8540 - Leisure Centre Clacton,2100 - Building Repairs,07/08/2013,2110260-1,75,2100546 - GCS Alarms,Sounder Fault
Tendring DC,http://statistics.data.gov.uk/id/local-authority-district/22UN,Life Opportunities,8540 - Leisure Centre Clacton,2100 - Building Repairs,13/08/2013,2110416-1,100,2100546 - GCS Alarms,SPA Button Fault
Tendring DC,http://statistics.data.gov.uk/id/local-authority-district/22UN,Life Opportunities,8520 - Frinton & Walton Swimming Pool,9228 - Swimming Lessons,20/08/2013,1054256-1,47.3,2113286 - Gemma Moss,REFUND
Tendring DC,http://statistics.data.gov.uk/id/local-authority-district/22UN,Life Opportunities,8540 - Leisure Centre Clacton,4597 - Hired Services - Payments to Contractors,07/08/2013,2110184-1,720,2111734 - Georgina Hill,Gymnastics Coach - April - July
Tendring DC,http://statistics.data.gov.uk/id/local-authority-district/22UN,Life Opportunities,H815 - Re-roofing,C200 - Main Contractor,27/08/2013,1054433-1,145.53,REDACTED PERSONAL DATA,REDACTED PERSONAL DATA
Tendring DC,http://statistics.data.gov.uk/id/local-authority-district/22UN,Life Opportunities,H815 - Re-roofing,C200 - Main Contractor,27/08/2013,1054434-1,232,REDACTED PERSONAL DATA,REDACTED PERSONAL DATA
Tendring DC,http://statistics.data.gov.uk/id/local-authority-district/22UN,Life Opportunities,6160 - Princes Theatre,4105 - Bar/Catering Expenses,07/08/2013,1053915-1,290.72,2112641 - Greene King Brewing and Retailing Ltd,BAR PRODUCTS FOR THEATRE
Tendring DC,http://statistics.data.gov.uk/id/local-authority-district/22UN,Life Opportunities,6160 - Princes Theatre,4105 - Bar/Catering Expenses,13/08/2013,2110354-1,147.34,2112641 - Greene King Brewing and Retailing Ltd,Drinks for Theatre Bar
Tendring DC,http://statistics.data.gov.uk/id/local-authority-district/22UN,Life Opportunities,6160 - Princes Theatre,4105 - Bar/Catering Expenses,13/08/2013,2110355-1,704.45,2112641 - Greene King Brewing and Retailing Ltd,Drinks for Theatre Bar
Tendring DC,http://statistics.data.gov.uk/id/local-authority-district/22UN,Life Opportunities,1880 - Office Accommodation Expenses,2100 - Building Repairs,13/08/2013,1054215-1,210,2106272 - Greenleaf Pest Control Services,GPCS
Tendring DC,http://statistics.data.gov.uk/id/local-authority-district/22UN,Life Opportunities,6740 - Careline,5160 - Advertising,07/08/2013,2110249-1,783,2113293 - Greenshoots,3000 User Service Manuals
Tendring DC,http://statistics.data.gov.uk/id/local-authority-district/22UN,Life Opportunities,5860 - Manningtree Sports Centre,5300 - Resaleable Items,07/08/2013,1053958-1,108.31,2100641 - Gymnastic Enterprises Ltd,GYM BADGES AND CERTS
Tendring DC,http://statistics.data.gov.uk/id/local-authority-district/22UN,Life Opportunities,8540 - Leisure Centre Clacton,9278 - Advantage - DD,20/08/2013,1054257-1,46.67,2107433 - H Russell,
Tendring DC,http://statistics.data.gov.uk/id/local-authority-district/22UN,Life Opportunities,7600 - Tourist Information Centres,9356 - Commission Sales,13/08/2013,1054186-1,810.79,2103622 - Hedingham & District Omnibuses Ltd,JULY EXCURSIONS
Tendring DC,http://statistics.data.gov.uk/id/local-authority-district/22UN,Life Opportunities,1880 - Office Accommodation Expenses,2100 - Building Repairs,13/08/2013,1054220-1,820.5,2112468 - Henry Ashe Projects Ltd,HENRY ASHE
Tendring DC,http://statistics.data.gov.uk/id/local-authority-district/22UN,Life Opportunities,8540 - Leisure Centre Clacton,5160 - Advertising,10/08/2013,1054453-1,52,2111275 - hibu (UK) Ltd,YELLOW PAGES AD AUGUST
Tendring DC,http://statistics.data.gov.uk/id/local-authority-district/22UN,Life Opportunities,7520 - Tourism Publicity Marketing Promotion,8460 - Sponsored Events income,20/08/2013,2110567-1,116,2100616 - Hillside Tabling Ltd,Furtniture for Taste of Tendring
Tendring DC,http://statistics.data.gov.uk/id/local-authority-district/22UN,Life Opportunities,"1580 - Benefits, Revenues and Customer Contact SU",4466 - Land Registry Fees,12/08/2013,2110682-1,303,2100636 - HM Land Registry,Ownership Change Indicator
Tendring DC,http://statistics.data.gov.uk/id/local-authority-district/22UN,Life Opportunities,"1580 - Benefits, Revenues and Customer Contact SU",4466 - Land Registry Fees,27/08/2013,1054594-1,303,2112599 - HM Land Registry - NW,OWNERSHIP CHANGE INDICATOR
Tendring DC,http://statistics.data.gov.uk/id/local-authority-district/22UN,Life Opportunities,8520 - Frinton & Walton Swimming Pool,2100 - Building Repairs,20/08/2013,1054374-1,201,2111080 - Homecraft Contracts Electrical Ltd,FWSP-REAPIR & MAINTENANCE
Tendring DC,http://statistics.data.gov.uk/id/local-authority-district/22UN,Life Opportunities,8510 - Dovercourt Swimming Pool & All Weather Facilities,2100 - Building Repairs,20/08/2013,2110560-1,110,2111080 - Homecraft Contracts Electrical Ltd,Homecraft - Lights
Tendring DC,http://statistics.data.gov.uk/id/local-authority-district/22UN,Life Opportunities,H920 - DFGs,C400 - Grant payments,07/08/2013,1053928-1,2764,REDACTED PERSONAL DATA,REDACTED PERSONAL DATA
Tendring DC,http://statistics.data.gov.uk/id/local-authority-district/22UN,Life Opportunities,8520 - Frinton & Walton Swimming Pool,2100 - Building Repairs,20/08/2013,1054375-1,168,2101848 - Homecraft Contracts Ltd,FWSP-REPAIR & MAINTENANCE
Tendring DC,http://statistics.data.gov.uk/id/local-authority-district/22UN,Life Opportunities,8540 - Leisure Centre Clacton,2100 - Building Repairs,20/08/2013,1054405-1,85,2101848 - Homecraft Contracts Ltd,
Tendring DC,http://statistics.data.gov.uk/id/local-authority-district/22UN,Life Opportunities,H920 - DFGs,C400 - Grant payments,27/08/2013,1054521-1,1700,REDACTED PERSONAL DATA,REDACTED PERSONAL DATA
Tendring DC,http://statistics.data.gov.uk/id/local-authority-district/22UN,Life Opportunities,5220 - HRA - Policy & Management,5930 - Business Planning Expenses,13/08/2013,2110384-1,5306.99,REDACTED COMMERCIAL CONFIDENTIALITY,REDACTED COMMERCIAL CONFIDENTIALITY
Tendring DC,http://statistics.data.gov.uk/id/local-authority-district/22UN,Life Opportunities,5860 - Manningtree Sports Centre,4597 - Hired Services - Payments to Contractors,13/08/2013,1054128-1,140,2113090 - HRC All Stars,CHEERLEADING INSTRUCTOR
Tendring DC,http://statistics.data.gov.uk/id/local-authority-district/22UN,Life Opportunities,5880 - Management Of Sport & Leisure Facilities,4597 - Hired Services - Payments to Contractors,13/08/2013,2110373-1,1950,REDACTED COMMERCIAL CONFIDENTIALITY,REDACTED COMMERCIAL CONFIDENTIALITY
Tendring DC,http://statistics.data.gov.uk/id/local-authority-district/22UN,Life Opportunities,1880 - Office Accommodation Expenses,4666 - Hygiene Services,13/08/2013,2110409-1,15,2104976 - Initial Washroom Solutions,Initial
Tendring DC,http://statistics.data.gov.uk/id/local-authority-district/22UN,Life Opportunities,1860 - Depots General,4666 - Hygiene Services,13/08/2013,2110409-2,7.5,2104976 - Initial Washroom Solutions,Initial
Tendring DC,http://statistics.data.gov.uk/id/local-authority-district/22UN,Life Opportunities,1880 - Office Accommodation Expenses,4666 - Hygiene Services,13/08/2013,2110409-3,15,2104976 - Initial Washroom Solutions,Initial
Tendring DC,http://statistics.data.gov.uk/id/local-authority-district/22UN,Life Opportunities,1880 - Office Accommodation Expenses,4666 - Hygiene Services,13/08/2013,2110409-4,83.75,2104976 - Initial Washroom Solutions,Initial
Tendring DC,http://statistics.data.gov.uk/id/local-authority-district/22UN,Life Opportunities,4820 - Public Conveniences,4080 - Materials & Consumables,13/08/2013,2110409-5,103.75,2104976 - Initial Washroom Solutions,Initial
Tendring DC,http://statistics.data.gov.uk/id/local-authority-district/22UN,Life Opportunities,1880 - Office Accommodation Expenses,4666 - Hygiene Services,13/08/2013,2110409-6,7.5,2104976 - Initial Washroom Solutions,Initial
Tendring DC,http://statistics.data.gov.uk/id/local-authority-district/22UN,Life Opportunities,1880 - Office Accommodation Expenses,4666 - Hygiene Services,20/08/2013,2110520-1,15,2104976 - Initial Washroom Solutions,Initial
Tendring DC,http://statistics.data.gov.uk/id/local-authority-district/22UN,Life Opportunities,1860 - Depots General,4666 - Hygiene Services,20/08/2013,2110520-2,7.5,2104976 - Initial Washroom Solutions,Initial
Tendring DC,http://statistics.data.gov.uk/id/local-authority-district/22UN,Life Opportunities,1880 - Office Accommodation Expenses,4666 - Hygiene Services,20/08/2013,2110520-3,15,2104976 - Initial Washroom Solutions,Initial
Tendring DC,http://statistics.data.gov.uk/id/local-authority-district/22UN,Life Opportunities,1880 - Office Accommodation Expenses,4666 - Hygiene Services,20/08/2013,2110520-4,83.75,2104976 - Initial Washroom Solutions,Initial
Tendring DC,http://statistics.data.gov.uk/id/local-authority-district/22UN,Life Opportunities,4820 - Public Conveniences,4080 - Materials & Consumables,20/08/2013,2110520-5,103.75,2104976 - Initial Washroom Solutions,Initial
Tendring DC,http://statistics.data.gov.uk/id/local-authority-district/22UN,Life Opportunities,1880 - Office Accommodation Expenses,4666 - Hygiene Services,20/08/2013,2110520-6,7.5,2104976 - Initial Washroom Solutions,Initial
Tendring DC,http://statistics.data.gov.uk/id/local-authority-district/22UN,Life Opportunities,"1580 - Benefits, Revenues and Customer Contact SU",4448 - Confidential Waste,13/08/2013,1054105-1,65.8,2110936 - IPPlus (UK) Ltd,CONFIDENTIAL WASTE COLLECTION
Tendring DC,http://statistics.data.gov.uk/id/local-authority-district/22UN,Life Opportunities,6740 - Careline,4448 - Confidential Waste,13/08/2013,1054114-1,11.75,2110936 - IPPlus (UK) Ltd,ANCORA-JULY 2013
Tendring DC,http://statistics.data.gov.uk/id/local-authority-district/22UN,Life Opportunities,1880 - Office Accommodation Expenses,4448 - Confidential Waste,20/08/2013,2110469-1,37.6,2110936 - IPPlus (UK) Ltd,Ancora
Tendring DC,http://statistics.data.gov.uk/id/local-authority-district/22UN,Life Opportunities,1880 - Office Accommodation Expenses,4448 - Confidential Waste,20/08/2013,2110470-1,23.5,2110936 - IPPlus (UK) Ltd,Ancora
Tendring DC,http://statistics.data.gov.uk/id/local-authority-district/22UN,Life Opportunities,8510 - Dovercourt Swimming Pool & All Weather Facilities,1700 - Training - Courses,27/08/2013,7700506-1,115,2100724 - IQL UK Ltd,DOVERCOURT POOL - IQL
Tendring DC,http://statistics.data.gov.uk/id/local-authority-district/22UN,Life Opportunities,8510 - Dovercourt Swimming Pool & All Weather Facilities,5300 - Resaleable Items,13/08/2013,1054195-1,119.16,2100755 - J P Lennard Ltd,DOVERCOURT POOL
Tendring DC,http://statistics.data.gov.uk/id/local-authority-district/22UN,Life Opportunities,8530 - Brightlingsea Swimming Pool,4000 - Furniture,20/08/2013,1054329-1,133.4,2100755 - J P Lennard Ltd,BRUSH HEAD/TORPEDO
Tendring DC,http://statistics.data.gov.uk/id/local-authority-district/22UN,Life Opportunities,8520 - Frinton & Walton Swimming Pool,4200 - Clothing & Uniforms,27/08/2013,1054575-1,78,2100755 - J P Lennard Ltd,FRINTON POOL-SHORTS
Tendring DC,http://statistics.data.gov.uk/id/local-authority-district/22UN,Life Opportunities,8520 - Frinton & Walton Swimming Pool,5300 - Resaleable Items,27/08/2013,1054576-1,608.64,2100755 - J P Lennard Ltd,FWSP-SALEABLES
Tendring DC,http://statistics.data.gov.uk/id/local-authority-district/22UN,Life Opportunities,8540 - Leisure Centre Clacton,4000 - Furniture,07/08/2013,2110179-1,165.8,2100755 - J P Lennard Ltd,Sports Equipment
Tendring DC,http://statistics.data.gov.uk/id/local-authority-district/22UN,Life Opportunities,8530 - Brightlingsea Swimming Pool,2100 - Building Repairs,07/08/2013,2110185-1,137.57,2100755 - J P Lennard Ltd,J P Lennard
Tendring DC,http://statistics.data.gov.uk/id/local-authority-district/22UN,Life Opportunities,8530 - Brightlingsea Swimming Pool,4000 - Furniture,07/08/2013,2110186-1,33.05,2100755 - J P Lennard Ltd,J P Lennard
Tendring DC,http://statistics.data.gov.uk/id/local-authority-district/22UN,Life Opportunities,8530 - Brightlingsea Swimming Pool,4000 - Furniture,07/08/2013,2110187-1,10.75,2100755 - J P Lennard Ltd,J P LEnnard
Tendring DC,http://statistics.data.gov.uk/id/local-authority-district/22UN,Life Opportunities,8530 - Brightlingsea Swimming Pool,4000 - Furniture,07/08/2013,2110282-1,5.2,2100755 - J P Lennard Ltd,Padlock BSP
Tendring DC,http://statistics.data.gov.uk/id/local-authority-district/22UN,Life Opportunities,8540 - Leisure Centre Clacton,4597 - Hired Services - Payments to Contractors,20/08/2013,1054336-1,150,2100785 - J W Goding,ARCHERY JULY
Tendring DC,http://statistics.data.gov.uk/id/local-authority-district/22UN,Life Opportunities,1240 - Housing Services Service Unit,3302 - Car Allowances - Officers,07/08/2013,1053944-1,64.6,REDACTED PERSONAL DATA,REDACTED PERSONAL DATA
Tendring DC,http://statistics.data.gov.uk/id/local-authority-district/22UN,Life Opportunities,1240 - Housing Services Service Unit,3302 - Car Allowances - Officers,27/08/2013,1054446-1,21.2,REDACTED PERSONAL DATA,REDACTED PERSONAL DATA
Tendring DC,http://statistics.data.gov.uk/id/local-authority-district/22UN,Life Opportunities,1240 - Housing Services Service Unit,3302 - Car Allowances - Officers,27/08/2013,1054447-1,21.3,REDACTED PERSONAL DATA,REDACTED PERSONAL DATA
Tendring DC,http://statistics.data.gov.uk/id/local-authority-district/22UN,Life Opportunities,5140 - Homelessness,4683 - Other Homelessness Expenses,27/08/2013,1054443-1,800,REDACTED PERSONAL DATA,REDACTED PERSONAL DATA
Tendring DC,http://statistics.data.gov.uk/id/local-authority-district/22UN,Life Opportunities,1880 - Office Accommodation Expenses,2100 - Building Repairs,13/08/2013,1054070-1,203,2111266 - JW Plumbing and Heating,JW PLUMBING
Tendring DC,http://statistics.data.gov.uk/id/local-authority-district/22UN,Life Opportunities,1880 - Office Accommodation Expenses,2100 - Building Repairs,13/08/2013,1054070-2,82,2111266 - JW Plumbing and Heating,JW PLUMBING
Tendring DC,http://statistics.data.gov.uk/id/local-authority-district/22UN,Life Opportunities,1880 - Office Accommodation Expenses,2100 - Building Repairs,13/08/2013,1054071-1,180,2111266 - JW Plumbing and Heating,JW PLUMBING
Tendring DC,http://statistics.data.gov.uk/id/local-authority-district/22UN,Life Opportunities,1880 - Office Accommodation Expenses,2100 - Building Repairs,13/08/2013,1054071-2,305,2111266 - JW Plumbing and Heating,JW PLUMBING
Tendring DC,http://statistics.data.gov.uk/id/local-authority-district/22UN,Life Opportunities,1880 - Office Accommodation Expenses,2100 - Building Repairs,20/08/2013,1054287-1,140,2111266 - JW Plumbing and Heating,JW PLUMBING
Tendring DC,http://statistics.data.gov.uk/id/local-authority-district/22UN,Life Opportunities,1880 - Office Accommodation Expenses,2100 - Building Repairs,20/08/2013,1054287-2,42,2111266 - JW Plumbing and Heating,JW PLUMBING
Tendring DC,http://statistics.data.gov.uk/id/local-authority-district/22UN,Life Opportunities,5140 - Homelessness,4683 - Other Homelessness Expenses,20/08/2013,1054244-1,500,REDACTED PERSONAL DATA,REDACTED PERSONAL DATA
Tendring DC,http://statistics.data.gov.uk/id/local-authority-district/22UN,Life Opportunities,1560 - Cashiers Service Unit,3302 - Car Allowances - Officers,13/08/2013,1054158-1,7.2,REDACTED PERSONAL DATA,REDACTED PERSONAL DATA
Tendring DC,http://statistics.data.gov.uk/id/local-authority-district/22UN,Life Opportunities,H800 - Structural Repairs,C200 - Main Contractor,13/08/2013,2110381-1,330,REDACTED PERSONAL DATA,REDACTED PERSONAL DATA
Tendring DC,http://statistics.data.gov.uk/id/local-authority-district/22UN,Life Opportunities,6160 - Princes Theatre,5160 - Advertising,20/08/2013,2110449-1,175,2100850 - KidAround Ltd,� Page Advert
Tendring DC,http://statistics.data.gov.uk/id/local-authority-district/22UN,Life Opportunities,5820 - Harwich Sports Centre,5300 - Resaleable Items,20/08/2013,1054400-1,95.8,REDACTED PERSONAL DATA,REDACTED PERSONAL DATA
Tendring DC,http://statistics.data.gov.uk/id/local-authority-district/22UN,Life Opportunities,8540 - Leisure Centre Clacton,4597 - Hired Services - Payments to Contractors,20/08/2013,1054331-1,50,2100851 - KO-SHEEN Contract Cleaning Ltd,JULY CLEANING
Tendring DC,http://statistics.data.gov.uk/id/local-authority-district/22UN,Life Opportunities,5360 - HRA - Sheltered Units,4601 - Hired services - Cleaning,20/08/2013,2110451-1,476,2100851 - KO-SHEEN Contract Cleaning Ltd,Cleaning @ Groom & Honeycroft
Tendring DC,http://statistics.data.gov.uk/id/local-authority-district/22UN,Life Opportunities,5360 - HRA - Sheltered Units,4601 - Hired services - Cleaning,20/08/2013,2110452-1,238,2100851 - KO-SHEEN Contract Cleaning Ltd,Cleaning @ Spendells Hse
Tendring DC,http://statistics.data.gov.uk/id/local-authority-district/22UN,Life Opportunities,5360 - HRA - Sheltered Units,4601 - Hired services - Cleaning,20/08/2013,2110453-1,588.88,2100851 - KO-SHEEN Contract Cleaning Ltd,Cleaning @ Belmans Court
Tendring DC,http://statistics.data.gov.uk/id/local-authority-district/22UN,Life Opportunities,5860 - Manningtree Sports Centre,4601 - Hired services - Cleaning,27/08/2013,7700508-1,255,2100851 - KO-SHEEN Contract Cleaning Ltd,CONTRACT CLEANING JULY 13
Tendring DC,http://statistics.data.gov.uk/id/local-authority-district/22UN,Life Opportunities,7520 - Tourism Publicity Marketing Promotion,5160 - Advertising,07/08/2013,2110287-1,395,REDACTED PERSONAL DATA,REDACTED PERSONAL DATA
Tendring DC,http://statistics.data.gov.uk/id/local-authority-district/22UN,Life Opportunities,5880 - Management Of Sport & Leisure Facilities,4597 - Hired Services - Payments to Contractors,07/08/2013,2110256-1,727.85,REDACTED COMMERCIAL CONFIDENTIALITY,REDACTED COMMERCIAL CONFIDENTIALITY
Tendring DC,http://statistics.data.gov.uk/id/local-authority-district/22UN,Life Opportunities,8520 - Frinton & Walton Swimming Pool,1700 - Training - Courses,27/08/2013,7700505-1,719.62,2104749 - Leisure Lockers Ltd,FWSP - LEISURE LOCKERS
Tendring DC,http://statistics.data.gov.uk/id/local-authority-district/22UN,Life Opportunities,"1580 - Benefits, Revenues and Customer Contact SU",4459 - External Legal Advice,13/08/2013,1054123-1,1168,2111904 - Lester Aldridge LLP,CHARGES + DISBURSEMENTS
Tendring DC,http://statistics.data.gov.uk/id/local-authority-district/22UN,Life Opportunities,"1580 - Benefits, Revenues and Customer Contact SU",4459 - External Legal Advice,13/08/2013,1054123-2,630,2111904 - Lester Aldridge LLP,CHARGES + DISBURSEMENTS
Tendring DC,http://statistics.data.gov.uk/id/local-authority-district/22UN,Life Opportunities,"1580 - Benefits, Revenues and Customer Contact SU",1350 - Agency Staff,27/08/2013,7700521-1,49.74,2108077 - Liberata Financial Services Ltd,RECONSIDERATIONS
Tendring DC,http://statistics.data.gov.uk/id/local-authority-district/22UN,Life Opportunities,8540 - Leisure Centre Clacton,5160 - Advertising,20/08/2013,1054334-1,298,2107277 - Look 5 Ltd,AD LOOK 5&6 SEPT
Tendring DC,http://statistics.data.gov.uk/id/local-authority-district/22UN,Life Opportunities,6740 - Careline,3300 - Public Transport - Officers,13/08/2013,1054157-1,44.5,REDACTED PERSONAL DATA,REDACTED PERSONAL DATA
Tendring DC,http://statistics.data.gov.uk/id/local-authority-district/22UN,Life Opportunities,8540 - Leisure Centre Clacton,4400 - Maintenance Under Service Agreements,20/08/2013,1054406-1,80,2100837 - M A Williams,STOCKTAKE 6-8-13
Tendring DC,http://statistics.data.gov.uk/id/local-authority-district/22UN,Life Opportunities,6160 - Princes Theatre,4040 - Equipment & Tools,20/08/2013,2110556-1,119.53,REDACTED COMMERCIAL CONFIDENTIALITY,REDACTED COMMERCIAL CONFIDENTIALITY
Tendring DC,http://statistics.data.gov.uk/id/local-authority-district/22UN,Life Opportunities,5240 - HRA - Managing Tenancies,5242 - Tenant Relations,20/08/2013,1054401-1,196,2113137 - Manningtree Taxis,MANNINGTREE TAXIS 9/7 16/7 23/7/13
Tendring DC,http://statistics.data.gov.uk/id/local-authority-district/22UN,Life Opportunities,8540 - Leisure Centre Clacton,2100 - Building Repairs,20/08/2013,1054335-1,271.35,2111673 - Maplin Mechanical Services Ltd,MENERGA TRIPPING
Tendring DC,http://statistics.data.gov.uk/id/local-authority-district/22UN,Life Opportunities,5140 - Homelessness,4680 - Bed & Breakfast Accommodation,13/08/2013,1054208-1,140,REDACTED PERSONAL DATA,REDACTED PERSONAL DATA
Tendring DC,http://statistics.data.gov.uk/id/local-authority-district/22UN,Life Opportunities,5140 - Homelessness,9032 - Homelessness Accommodation Charges,13/08/2013,1054208-2,-16.45,REDACTED PERSONAL DATA,REDACTED PERSONAL DATA
Tendring DC,http://statistics.data.gov.uk/id/local-authority-district/22UN,Life Opportunities,5140 - Homelessness,4680 - Bed & Breakfast Accommodation,13/08/2013,1054209-1,140,REDACTED PERSONAL DATA,REDACTED PERSONAL DATA
Tendring DC,http://statistics.data.gov.uk/id/local-authority-district/22UN,Life Opportunities,5140 - Homelessness,9032 - Homelessness Accommodation Charges,13/08/2013,1054209-2,-16.45,REDACTED PERSONAL DATA,REDACTED PERSONAL DATA
Tendring DC,http://statistics.data.gov.uk/id/local-authority-district/22UN,Life Opportunities,5140 - Homelessness,4680 - Bed & Breakfast Accommodation,13/08/2013,1054210-1,140,REDACTED PERSONAL DATA,REDACTED PERSONAL DATA
Tendring DC,http://statistics.data.gov.uk/id/local-authority-district/22UN,Life Opportunities,5140 - Homelessness,9032 - Homelessness Accommodation Charges,13/08/2013,1054210-2,-16.45,REDACTED PERSONAL DATA,REDACTED PERSONAL DATA
Tendring DC,http://statistics.data.gov.uk/id/local-authority-district/22UN,Life Opportunities,5140 - Homelessness,4680 - Bed & Breakfast Accommodation,13/08/2013,1054211-1,240,REDACTED PERSONAL DATA,REDACTED PERSONAL DATA
Tendring DC,http://statistics.data.gov.uk/id/local-authority-district/22UN,Life Opportunities,5140 - Homelessness,9032 - Homelessness Accommodation Charges,13/08/2013,1054211-2,-7.05,REDACTED PERSONAL DATA,REDACTED PERSONAL DATA
Tendring DC,http://statistics.data.gov.uk/id/local-authority-district/22UN,Life Opportunities,5140 - Homelessness,4680 - Bed & Breakfast Accommodation,27/08/2013,1054507-1,80,REDACTED PERSONAL DATA,REDACTED PERSONAL DATA
Tendring DC,http://statistics.data.gov.uk/id/local-authority-district/22UN,Life Opportunities,5140 - Homelessness,4680 - Bed & Breakfast Accommodation,27/08/2013,1054508-1,560,REDACTED PERSONAL DATA,REDACTED PERSONAL DATA
Tendring DC,http://statistics.data.gov.uk/id/local-authority-district/22UN,Life Opportunities,5140 - Homelessness,9032 - Homelessness Accommodation Charges,27/08/2013,1054508-2,-16.45,REDACTED PERSONAL DATA,REDACTED PERSONAL DATA
Tendring DC,http://statistics.data.gov.uk/id/local-authority-district/22UN,Life Opportunities,5140 - Homelessness,4680 - Bed & Breakfast Accommodation,20/08/2013,2110589-1,560,REDACTED PERSONAL DATA,REDACTED PERSONAL DATA
Tendring DC,http://statistics.data.gov.uk/id/local-authority-district/22UN,Life Opportunities,5140 - Homelessness,9032 - Homelessness Accommodation Charges,20/08/2013,2110589-2,-16.45,REDACTED PERSONAL DATA,REDACTED PERSONAL DATA
Tendring DC,http://statistics.data.gov.uk/id/local-authority-district/22UN,Life Opportunities,5140 - Homelessness,4680 - Bed & Breakfast Accommodation,20/08/2013,2110590-1,240,REDACTED PERSONAL DATA,REDACTED PERSONAL DATA
Tendring DC,http://statistics.data.gov.uk/id/local-authority-district/22UN,Life Opportunities,5140 - Homelessness,9032 - Homelessness Accommodation Charges,20/08/2013,2110590-2,-7.05,REDACTED PERSONAL DATA,REDACTED PERSONAL DATA
Tendring DC,http://statistics.data.gov.uk/id/local-authority-district/22UN,Life Opportunities,5140 - Homelessness,4680 - Bed & Breakfast Accommodation,20/08/2013,2110591-1,20,REDACTED PERSONAL DATA,REDACTED PERSONAL DATA
Tendring DC,http://statistics.data.gov.uk/id/local-authority-district/22UN,Life Opportunities,5140 - Homelessness,9032 - Homelessness Accommodation Charges,20/08/2013,2110591-2,-2.35,REDACTED PERSONAL DATA,REDACTED PERSONAL DATA
Tendring DC,http://statistics.data.gov.uk/id/local-authority-district/22UN,Life Opportunities,5140 - Homelessness,4680 - Bed & Breakfast Accommodation,20/08/2013,2110592-1,200,REDACTED PERSONAL DATA,REDACTED PERSONAL DATA
Tendring DC,http://statistics.data.gov.uk/id/local-authority-district/22UN,Life Opportunities,5140 - Homelessness,9032 - Homelessness Accommodation Charges,20/08/2013,2110592-2,-4.7,REDACTED PERSONAL DATA,REDACTED PERSONAL DATA
Tendring DC,http://statistics.data.gov.uk/id/local-authority-district/22UN,Life Opportunities,5140 - Homelessness,4680 - Bed & Breakfast Accommodation,20/08/2013,2110593-1,120,REDACTED PERSONAL DATA,REDACTED PERSONAL DATA
Tendring DC,http://statistics.data.gov.uk/id/local-authority-district/22UN,Life Opportunities,5140 - Homelessness,9032 - Homelessness Accommodation Charges,20/08/2013,2110593-2,-4.7,REDACTED PERSONAL DATA,REDACTED PERSONAL DATA
Tendring DC,http://statistics.data.gov.uk/id/local-authority-district/22UN,Life Opportunities,1090 - Chief Executive and Support Service Unit,4355 - Books & Periodicals,13/08/2013,2110356-1,35.3,2112734 - Matt's Carousel,Newspapers July 13
Tendring DC,http://statistics.data.gov.uk/id/local-authority-district/22UN,Life Opportunities,1100 - Corporate Director (Corporate Services) and Admin Service Unit,4355 - Books & Periodicals,13/08/2013,2110356-2,44.6,2112734 - Matt's Carousel,Newspapers July 13
Tendring DC,http://statistics.data.gov.uk/id/local-authority-district/22UN,Life Opportunities,1040 - Regeneration Service Unit,4355 - Books & Periodicals,13/08/2013,2110356-3,20.35,2112734 - Matt's Carousel,Newspapers July 13
Tendring DC,http://statistics.data.gov.uk/id/local-authority-district/22UN,Life Opportunities,"1580 - Benefits, Revenues and Customer Contact SU",4355 - Books & Periodicals,13/08/2013,2110356-4,20.35,2112734 - Matt's Carousel,Newspapers July 13
Tendring DC,http://statistics.data.gov.uk/id/local-authority-district/22UN,Life Opportunities,7040 - Civic Ceremonial Expenses,4355 - Books & Periodicals,13/08/2013,2110356-5,3.2,2112734 - Matt's Carousel,Newspapers July 13
Tendring DC,http://statistics.data.gov.uk/id/local-authority-district/22UN,Life Opportunities,1090 - Chief Executive and Support Service Unit,4355 - Books & Periodicals,13/08/2013,2110356-6,38,2112734 - Matt's Carousel,Newspapers July 13
Tendring DC,http://statistics.data.gov.uk/id/local-authority-district/22UN,Life Opportunities,1880 - Office Accommodation Expenses,2100 - Building Repairs,13/08/2013,1054218-1,28.7,2101791 - Medlock Electrical,MEDLOCK
Tendring DC,http://statistics.data.gov.uk/id/local-authority-district/22UN,Life Opportunities,8540 - Leisure Centre Clacton,2100 - Building Repairs,07/08/2013,2110175-1,4.5,2101791 - Medlock Electrical,Light Bulbs
Tendring DC,http://statistics.data.gov.uk/id/local-authority-district/22UN,Life Opportunities,7520 - Tourism Publicity Marketing Promotion,5160 - Advertising,13/08/2013,2110372-1,199,2102946 - Mellow 1557 Ltd,Promo of Taste of tendring
Tendring DC,http://statistics.data.gov.uk/id/local-authority-district/22UN,Life Opportunities,7520 - Tourism Publicity Marketing Promotion,5160 - Advertising,27/08/2013,1054559-1,250,2109596 - Metropolis Business Media,QUARTER PAGE 7/8/13
Tendring DC,http://statistics.data.gov.uk/id/local-authority-district/22UN,Life Opportunities,8540 - Leisure Centre Clacton,1700 - Training - Courses,13/08/2013,1054066-1,60,2110522 - Miss K Tann,
Tendring DC,http://statistics.data.gov.uk/id/local-authority-district/22UN,Life Opportunities,5240 - HRA - Managing Tenancies,6620 - Under Occupation Incentive Scheme,07/08/2013,1053943-1,750,REDACTED PERSONAL DATA,REDACTED PERSONAL DATA
Tendring DC,http://statistics.data.gov.uk/id/local-authority-district/22UN,Life Opportunities,5240 - HRA - Managing Tenancies,6625 - Tenants Compensation Scheme,13/08/2013,1054063-1,50,REDACTED PERSONAL DATA,REDACTED PERSONAL DATA
Tendring DC,http://statistics.data.gov.uk/id/local-authority-district/22UN,Life Opportunities,5240 - HRA - Managing Tenancies,6625 - Tenants Compensation Scheme,13/08/2013,1054064-1,1.5,REDACTED PERSONAL DATA,REDACTED PERSONAL DATA
Tendring DC,http://statistics.data.gov.uk/id/local-authority-district/22UN,Life Opportunities,9920 - HRA Balance Sheet,B860 - Housing Rents - Cash,20/08/2013,1054262-1,146.04,REDACTED PERSONAL DATA,REDACTED PERSONAL DATA
Tendring DC,http://statistics.data.gov.uk/id/local-authority-district/22UN,Life Opportunities,8540 - Leisure Centre Clacton,4400 - Maintenance Under Service Agreements,20/08/2013,1054403-1,62.2,2104791 - Mobile Mini Uk Ltd,CONTAINER HIRE 31/7/13-27/8/13
Tendring DC,http://statistics.data.gov.uk/id/local-authority-district/22UN,Life Opportunities,8540 - Leisure Centre Clacton,4400 - Maintenance Under Service Agreements,07/08/2013,2110178-1,62.2,2104791 - Mobile Mini Uk Ltd,3/7/13 - 30/7/13
Tendring DC,http://statistics.data.gov.uk/id/local-authority-district/22UN,Life Opportunities,H920 - DFGs,C400 - Grant payments,07/08/2013,1053927-1,5519,REDACTED PERSONAL DATA,REDACTED PERSONAL DATA
Tendring DC,http://statistics.data.gov.uk/id/local-authority-district/22UN,Life Opportunities,6160 - Princes Theatre,4622 - Hired Services - Artistes and Production Companies,27/08/2013,1054557-1,2171.18,REDACTED PERSONAL DATA,REDACTED PERSONAL DATA
Tendring DC,http://statistics.data.gov.uk/id/local-authority-district/22UN,Life Opportunities,9920 - HRA Balance Sheet,B860 - Housing Rents - Cash,27/08/2013,1054532-1,11.68,REDACTED PERSONAL DATA,REDACTED PERSONAL DATA
Tendring DC,http://statistics.data.gov.uk/id/local-authority-district/22UN,Life Opportunities,6160 - Princes Theatre,9352 - Opportunity Bookings,13/08/2013,1054057-1,32.5,REDACTED PERSONAL DATA,REDACTED PERSONAL DATA
Tendring DC,http://statistics.data.gov.uk/id/local-authority-district/22UN,Life Opportunities,5140 - Homelessness,4683 - Other Homelessness Expenses,27/08/2013,1054442-1,550,REDACTED PERSONAL DATA,REDACTED PERSONAL DATA
Tendring DC,http://statistics.data.gov.uk/id/local-authority-district/22UN,Life Opportunities,5240 - HRA - Managing Tenancies,5242 - Tenant Relations,13/08/2013,1054060-1,10,REDACTED PERSONAL DATA,REDACTED PERSONAL DATA
Tendring DC,http://statistics.data.gov.uk/id/local-authority-district/22UN,Life Opportunities,5240 - HRA - Managing Tenancies,5242 - Tenant Relations,20/08/2013,1054267-1,100,REDACTED PERSONAL DATA,REDACTED PERSONAL DATA
Tendring DC,http://statistics.data.gov.uk/id/local-authority-district/22UN,Life Opportunities,5240 - HRA - Managing Tenancies,6625 - Tenants Compensation Scheme,13/08/2013,1054061-1,60,REDACTED PERSONAL DATA,REDACTED PERSONAL DATA
Tendring DC,http://statistics.data.gov.uk/id/local-authority-district/22UN,Life Opportunities,9920 - HRA Balance Sheet,B860 - Housing Rents - Cash,27/08/2013,1054530-1,27.93,REDACTED PERSONAL DATA,REDACTED PERSONAL DATA
Tendring DC,http://statistics.data.gov.uk/id/local-authority-district/22UN,Life Opportunities,9920 - HRA Balance Sheet,B860 - Housing Rents - Cash,07/08/2013,1053952-1,1013.6,REDACTED PERSONAL DATA,REDACTED PERSONAL DATA
Tendring DC,http://statistics.data.gov.uk/id/local-authority-district/22UN,Life Opportunities,9920 - HRA Balance Sheet,B860 - Housing Rents - Cash,07/08/2013,1054049-1,509.86,REDACTED PERSONAL DATA,REDACTED PERSONAL DATA
Tendring DC,http://statistics.data.gov.uk/id/local-authority-district/22UN,Life Opportunities,5240 - HRA - Managing Tenancies,5242 - Tenant Relations,07/08/2013,1053939-1,10,REDACTED PERSONAL DATA,REDACTED PERSONAL DATA
Tendring DC,http://statistics.data.gov.uk/id/local-authority-district/22UN,Life Opportunities,5140 - Homelessness,4683 - Other Homelessness Expenses,20/08/2013,1054239-1,695,REDACTED PERSONAL DATA,REDACTED PERSONAL DATA
Tendring DC,http://statistics.data.gov.uk/id/local-authority-district/22UN,Life Opportunities,9920 - HRA Balance Sheet,B860 - Housing Rents - Cash,27/08/2013,1054531-1,18.62,REDACTED PERSONAL DATA,REDACTED PERSONAL DATA
Tendring DC,http://statistics.data.gov.uk/id/local-authority-district/22UN,Life Opportunities,6160 - Princes Theatre,4040 - Equipment & Tools,13/08/2013,1054171-1,1837.4,2103915 - MRL Productions,TECHNICAL EQUIPMENT FOR PROCLAIMERS
Tendring DC,http://statistics.data.gov.uk/id/local-authority-district/22UN,Life Opportunities,7620 - Air Show,4094 - Other Equipment Hire/Leasing,27/08/2013,1054560-1,3200,2103915 - MRL Productions,AUDIO EQUIPMENT AIRSHOW 2013
Tendring DC,http://statistics.data.gov.uk/id/local-authority-district/22UN,Life Opportunities,5240 - HRA - Managing Tenancies,6620 - Under Occupation Incentive Scheme,07/08/2013,1053942-1,750,REDACTED PERSONAL DATA,REDACTED PERSONAL DATA
Tendring DC,http://statistics.data.gov.uk/id/local-authority-district/22UN,Life Opportunities,6160 - Princes Theatre,9352 - Opportunity Bookings,05/08/2013,1054154-1,20,REDACTED PERSONAL DATA,REDACTED PERSONAL DATA
Tendring DC,http://statistics.data.gov.uk/id/local-authority-district/22UN,Life Opportunities,9920 - HRA Balance Sheet,B860 - Housing Rents - Cash,13/08/2013,1054059-1,543.12,REDACTED PERSONAL DATA,REDACTED PERSONAL DATA
Tendring DC,http://statistics.data.gov.uk/id/local-authority-district/22UN,Life Opportunities,9920 - HRA Balance Sheet,B860 - Housing Rents - Cash,07/08/2013,1053954-1,481.05,REDACTED PERSONAL DATA,REDACTED PERSONAL DATA
Tendring DC,http://statistics.data.gov.uk/id/local-authority-district/22UN,Life Opportunities,9920 - HRA Balance Sheet,B860 - Housing Rents - Cash,20/08/2013,1054261-1,473.68,REDACTED PERSONAL DATA,REDACTED PERSONAL DATA
Tendring DC,http://statistics.data.gov.uk/id/local-authority-district/22UN,Life Opportunities,9920 - HRA Balance Sheet,B860 - Housing Rents - Cash,27/08/2013,1054533-1,1115.97,REDACTED PERSONAL DATA,REDACTED PERSONAL DATA
Tendring DC,http://statistics.data.gov.uk/id/local-authority-district/22UN,Life Opportunities,6160 - Princes Theatre,9352 - Opportunity Bookings,05/08/2013,1054155-1,20,REDACTED PERSONAL DATA,REDACTED PERSONAL DATA
Tendring DC,http://statistics.data.gov.uk/id/local-authority-district/22UN,Life Opportunities,9920 - HRA Balance Sheet,B860 - Housing Rents - Cash,07/08/2013,1053953-1,300,REDACTED PERSONAL DATA,REDACTED PERSONAL DATA
Tendring DC,http://statistics.data.gov.uk/id/local-authority-district/22UN,Life Opportunities,9920 - HRA Balance Sheet,B860 - Housing Rents - Cash,07/08/2013,1053951-1,1210.21,REDACTED PERSONAL DATA,REDACTED PERSONAL DATA
Tendring DC,http://statistics.data.gov.uk/id/local-authority-district/22UN,Life Opportunities,5240 - HRA - Managing Tenancies,6625 - Tenants Compensation Scheme,13/08/2013,1054062-1,1.5,REDACTED PERSONAL DATA,REDACTED PERSONAL DATA
Tendring DC,http://statistics.data.gov.uk/id/local-authority-district/22UN,Life Opportunities,1860 - Depots General,2100 - Building Repairs,27/08/2013,1054541-1,192,2100967 - N Rudelhoff,NR ELECTRICAL
Tendring DC,http://statistics.data.gov.uk/id/local-authority-district/22UN,Life Opportunities,1880 - Office Accommodation Expenses,2100 - Building Repairs,27/08/2013,1054541-2,48,2100967 - N Rudelhoff,NR ELECTRICAL
Tendring DC,http://statistics.data.gov.uk/id/local-authority-district/22UN,Life Opportunities,1880 - Office Accommodation Expenses,2100 - Building Repairs,27/08/2013,1054541-3,468,2100967 - N Rudelhoff,NR ELECTRICAL
Tendring DC,http://statistics.data.gov.uk/id/local-authority-district/22UN,Life Opportunities,1880 - Office Accommodation Expenses,2100 - Building Repairs,27/08/2013,1054542-1,63,2100967 - N Rudelhoff,NR ELECTRICAL
Tendring DC,http://statistics.data.gov.uk/id/local-authority-district/22UN,Life Opportunities,1860 - Depots General,2100 - Building Repairs,27/08/2013,1054542-2,192,2100967 - N Rudelhoff,NR ELECTRICAL
Tendring DC,http://statistics.data.gov.uk/id/local-authority-district/22UN,Life Opportunities,1860 - Depots General,2100 - Building Repairs,27/08/2013,1054542-3,387,2100967 - N Rudelhoff,NR ELECTRICAL
Tendring DC,http://statistics.data.gov.uk/id/local-authority-district/22UN,Life Opportunities,1880 - Office Accommodation Expenses,2100 - Building Repairs,27/08/2013,1054543-1,123,2100967 - N Rudelhoff,NR ELECTRICAL
Tendring DC,http://statistics.data.gov.uk/id/local-authority-district/22UN,Life Opportunities,1860 - Depots General,2100 - Building Repairs,27/08/2013,1054543-2,144,2100967 - N Rudelhoff,NR ELECTRICAL
Tendring DC,http://statistics.data.gov.uk/id/local-authority-district/22UN,Life Opportunities,1860 - Depots General,2100 - Building Repairs,27/08/2013,1054543-3,192,2100967 - N Rudelhoff,NR ELECTRICAL
Tendring DC,http://statistics.data.gov.uk/id/local-authority-district/22UN,Life Opportunities,1880 - Office Accommodation Expenses,2100 - Building Repairs,27/08/2013,1054543-4,48,2100967 - N Rudelhoff,NR ELECTRICAL
Tendring DC,http://statistics.data.gov.uk/id/local-authority-district/22UN,Life Opportunities,1860 - Depots General,2100 - Building Repairs,27/08/2013,1054544-1,1851,2100967 - N Rudelhoff,NR ELECTRICAL
Tendring DC,http://statistics.data.gov.uk/id/local-authority-district/22UN,Life Opportunities,1240 - Housing Services Service Unit,3302 - Car Allowances - Officers,07/08/2013,1053941-1,17.5,REDACTED PERSONAL DATA,REDACTED PERSONAL DATA
Tendring DC,http://statistics.data.gov.uk/id/local-authority-district/22UN,Life Opportunities,1240 - Housing Services Service Unit,3302 - Car Allowances - Officers,13/08/2013,1054065-1,20,REDACTED PERSONAL DATA,REDACTED PERSONAL DATA
Tendring DC,http://statistics.data.gov.uk/id/local-authority-district/22UN,Life Opportunities,1240 - Housing Services Service Unit,3302 - Car Allowances - Officers,20/08/2013,1054266-1,7.5,REDACTED PERSONAL DATA,REDACTED PERSONAL DATA
Tendring DC,http://statistics.data.gov.uk/id/local-authority-district/22UN,Life Opportunities,1240 - Housing Services Service Unit,3302 - Car Allowances - Officers,27/08/2013,1054529-1,15,REDACTED PERSONAL DATA,REDACTED PERSONAL DATA
Tendring DC,http://statistics.data.gov.uk/id/local-authority-district/22UN,Life Opportunities,7600 - Tourist Information Centres,9356 - Commission Sales,13/08/2013,2110351-1,1391.11,2110032 - National Express Ltd,Jul-13
Tendring DC,http://statistics.data.gov.uk/id/local-authority-district/22UN,Life Opportunities,5880 - Management Of Sport & Leisure Facilities,5166 - Marketing and Promotion,07/08/2013,1053905-1,72.5,2113252 - Naze Farm Shop,TEND SHOW PROMO
Tendring DC,http://statistics.data.gov.uk/id/local-authority-district/22UN,Life Opportunities,6740 - Careline,5160 - Advertising,07/08/2013,1053957-1,123,REDACTED COMMERCIAL CONFIDENTIALITY,REDACTED COMMERCIAL CONFIDENTIALITY
Tendring DC,http://statistics.data.gov.uk/id/local-authority-district/22UN,Life Opportunities,5880 - Management Of Sport & Leisure Facilities,5166 - Marketing and Promotion,20/08/2013,1054368-1,195.2,2100989 - Newsquest (London) Ltd,BOKWA AD H&MS
Tendring DC,http://statistics.data.gov.uk/id/local-authority-district/22UN,Life Opportunities,8510 - Dovercourt Swimming Pool & All Weather Facilities,4880 - Subscriptions Paid,27/08/2013,1054523-1,101.4,2100989 - Newsquest (London) Ltd,DOVERCOURT POOL PAPER
Tendring DC,http://statistics.data.gov.uk/id/local-authority-district/22UN,Life Opportunities,6160 - Princes Theatre,5160 - Advertising,07/08/2013,2110288-1,80.1,REDACTED PERSONAL DATA,REDACTED PERSONAL DATA
Tendring DC,http://statistics.data.gov.uk/id/local-authority-district/22UN,Life Opportunities,6160 - Princes Theatre,5160 - Advertising,07/08/2013,2110289-1,154.2,REDACTED PERSONAL DATA,REDACTED PERSONAL DATA
Tendring DC,http://statistics.data.gov.uk/id/local-authority-district/22UN,Life Opportunities,6160 - Princes Theatre,5160 - Advertising,07/08/2013,2110290-1,80.1,REDACTED PERSONAL DATA,REDACTED PERSONAL DATA
Tendring DC,http://statistics.data.gov.uk/id/local-authority-district/22UN,Life Opportunities,6160 - Princes Theatre,5160 - Advertising,07/08/2013,2110291-1,60,REDACTED PERSONAL DATA,REDACTED PERSONAL DATA
Tendring DC,http://statistics.data.gov.uk/id/local-authority-district/22UN,Life Opportunities,6160 - Princes Theatre,5160 - Advertising,07/08/2013,2110292-1,139.2,REDACTED PERSONAL DATA,REDACTED PERSONAL DATA
Tendring DC,http://statistics.data.gov.uk/id/local-authority-district/22UN,Life Opportunities,7520 - Tourism Publicity Marketing Promotion,5160 - Advertising,07/08/2013,2110293-1,300,REDACTED PERSONAL DATA,REDACTED PERSONAL DATA
Tendring DC,http://statistics.data.gov.uk/id/local-authority-district/22UN,Life Opportunities,6160 - Princes Theatre,5160 - Advertising,13/08/2013,2110422-1,306.33,2100989 - Newsquest (London) Ltd,GAzette 1/8/ and 2/8
Tendring DC,http://statistics.data.gov.uk/id/local-authority-district/22UN,Life Opportunities,6160 - Princes Theatre,5160 - Advertising,27/08/2013,2110647-1,80.1,REDACTED PERSONAL DATA,REDACTED PERSONAL DATA
Tendring DC,http://statistics.data.gov.uk/id/local-authority-district/22UN,Life Opportunities,5860 - Manningtree Sports Centre,4597 - Hired Services - Payments to Contractors,13/08/2013,1054201-1,100,REDACTED PERSONAL DATA,REDACTED PERSONAL DATA
Tendring DC,http://statistics.data.gov.uk/id/local-authority-district/22UN,Life Opportunities,5820 - Harwich Sports Centre,4597 - Hired Services - Payments to Contractors,27/08/2013,1054578-1,100,REDACTED PERSONAL DATA,REDACTED PERSONAL DATA
Tendring DC,http://statistics.data.gov.uk/id/local-authority-district/22UN,Life Opportunities,7520 - Tourism Publicity Marketing Promotion,4880 - Subscriptions Paid,27/08/2013,2110648-1,185,REDACTED PERSONAL DATA,REDACTED PERSONAL DATA
Tendring DC,http://statistics.data.gov.uk/id/local-authority-district/22UN,Life Opportunities,"1580 - Benefits, Revenues and Customer Contact SU",4753 - Computer - Application Software,13/08/2013,1054106-1,81397.79,2101204 - Northgate Information Solutions UK Ltd,NORTHGATE ANNUAL SOFTWARE 2013-2014
Tendring DC,http://statistics.data.gov.uk/id/local-authority-district/22UN,Life Opportunities,5260 - HRA - Rent Collection And Accounting,4757 - IT External Charges,20/08/2013,1054284-1,-297.9,2101204 - Northgate Information Solutions UK Ltd,PART 3 X BOE PROFESSIONAL
Tendring DC,http://statistics.data.gov.uk/id/local-authority-district/22UN,Life Opportunities,5260 - HRA - Rent Collection And Accounting,4757 - IT External Charges,20/08/2013,1054285-1,-604.04,2101204 - Northgate Information Solutions UK Ltd,4 X BOE
Tendring DC,http://statistics.data.gov.uk/id/local-authority-district/22UN,Life Opportunities,5260 - HRA - Rent Collection And Accounting,4757 - IT External Charges,20/08/2013,1054286-1,-1227.72,2101204 - Northgate Information Solutions UK Ltd,3 X BOE PROFESSIONAL
Tendring DC,http://statistics.data.gov.uk/id/local-authority-district/22UN,Life Opportunities,"1580 - Benefits, Revenues and Customer Contact SU",4753 - Computer - Application Software,20/08/2013,2110457-1,451.15,2101204 - Northgate Information Solutions UK Ltd,Business Objects
Tendring DC,http://statistics.data.gov.uk/id/local-authority-district/22UN,Life Opportunities,5260 - HRA - Rent Collection And Accounting,4757 - IT External Charges,20/08/2013,2110457-2,4075.26,2101204 - Northgate Information Solutions UK Ltd,Business Objects
Tendring DC,http://statistics.data.gov.uk/id/local-authority-district/22UN,Life Opportunities,5140 - Homelessness,4683 - Other Homelessness Expenses,13/08/2013,2110386-1,70,REDACTED COMMERCIAL CONFIDENTIALITY,REDACTED COMMERCIAL CONFIDENTIALITY
Tendring DC,http://statistics.data.gov.uk/id/local-authority-district/22UN,Life Opportunities,5140 - Homelessness,4683 - Other Homelessness Expenses,27/08/2013,1054440-1,800,REDACTED PERSONAL DATA,REDACTED PERSONAL DATA
Tendring DC,http://statistics.data.gov.uk/id/local-authority-district/22UN,Life Opportunities,5140 - Homelessness,4683 - Other Homelessness Expenses,20/08/2013,1054240-1,549.75,REDACTED PERSONAL DATA,REDACTED PERSONAL DATA
Tendring DC,http://statistics.data.gov.uk/id/local-authority-district/22UN,Life Opportunities,5140 - Homelessness,4683 - Other Homelessness Expenses,20/08/2013,1054246-1,575,REDACTED PERSONAL DATA,REDACTED PERSONAL DATA
Tendring DC,http://statistics.data.gov.uk/id/local-authority-district/22UN,Life Opportunities,H920 - DFGs,C400 - Grant payments,07/08/2013,1053937-1,4467.37,REDACTED PERSONAL DATA,REDACTED PERSONAL DATA
Tendring DC,http://statistics.data.gov.uk/id/local-authority-district/22UN,Life Opportunities,5380 - HRA - Other Expenses,5311 - General Provisions - Vending,13/08/2013,1054141-1,120.8,2101083 - Osgood Smith,CANTEEN GOODS
Tendring DC,http://statistics.data.gov.uk/id/local-authority-district/22UN,Life Opportunities,8520 - Frinton & Walton Swimming Pool,5311 - General Provisions - Vending,13/08/2013,1054173-1,67.35,2101083 - Osgood Smith,VENDING
Tendring DC,http://statistics.data.gov.uk/id/local-authority-district/22UN,Life Opportunities,8520 - Frinton & Walton Swimming Pool,5311 - General Provisions - Vending,13/08/2013,1054174-1,15.7,2101083 - Osgood Smith,VENDING
Tendring DC,http://statistics.data.gov.uk/id/local-authority-district/22UN,Life Opportunities,5860 - Manningtree Sports Centre,5311 - General Provisions - Vending,13/08/2013,1054188-1,13,2101083 - Osgood Smith,VENDING SUPPLIES
Tendring DC,http://statistics.data.gov.uk/id/local-authority-district/22UN,Life Opportunities,5860 - Manningtree Sports Centre,5311 - General Provisions - Vending,13/08/2013,1054189-1,2.89,2101083 - Osgood Smith,VENDING SUPPLIES
Tendring DC,http://statistics.data.gov.uk/id/local-authority-district/22UN,Life Opportunities,6160 - Princes Theatre,5306 - Confectionary,20/08/2013,1054283-1,-58.08,2101083 - Osgood Smith,CONFECTIONERY FOR THEATRE BAR APR 13
Tendring DC,http://statistics.data.gov.uk/id/local-authority-district/22UN,Life Opportunities,8520 - Frinton & Walton Swimming Pool,5311 - General Provisions - Vending,20/08/2013,1054379-1,180.48,2101083 - Osgood Smith,FWSP-VENDING STOCK
Tendring DC,http://statistics.data.gov.uk/id/local-authority-district/22UN,Life Opportunities,8520 - Frinton & Walton Swimming Pool,5311 - General Provisions - Vending,20/08/2013,1054380-1,58.48,2101083 - Osgood Smith,FWSP-VENDING STOCK
Tendring DC,http://statistics.data.gov.uk/id/local-authority-district/22UN,Life Opportunities,8520 - Frinton & Walton Swimming Pool,5311 - General Provisions - Vending,20/08/2013,1054381-1,126.59,2101083 - Osgood Smith,FWSP VENDING STOCK
Tendring DC,http://statistics.data.gov.uk/id/local-authority-district/22UN,Life Opportunities,6160 - Princes Theatre,5306 - Confectionary,20/08/2013,1054386-1,73.58,2101083 - Osgood Smith,CONFECTIONARY ORDER
Tendring DC,http://statistics.data.gov.uk/id/local-authority-district/22UN,Life Opportunities,6160 - Princes Theatre,5306 - Confectionary,20/08/2013,1054387-1,69.53,2101083 - Osgood Smith,CONFECTIONARY ORDER
Tendring DC,http://statistics.data.gov.uk/id/local-authority-district/22UN,Life Opportunities,6160 - Princes Theatre,5306 - Confectionary,20/08/2013,1054388-1,32.73,2101083 - Osgood Smith,OSGOOD
Tendring DC,http://statistics.data.gov.uk/id/local-authority-district/22UN,Life Opportunities,5820 - Harwich Sports Centre,5311 - General Provisions - Vending,27/08/2013,1054568-1,55.41,2101083 - Osgood Smith,CANTEEN GOODS
Tendring DC,http://statistics.data.gov.uk/id/local-authority-district/22UN,Life Opportunities,8510 - Dovercourt Swimming Pool & All Weather Facilities,5311 - General Provisions - Vending,27/08/2013,1054573-1,162.76,2101083 - Osgood Smith,VENDING
Tendring DC,http://statistics.data.gov.uk/id/local-authority-district/22UN,Life Opportunities,5820 - Harwich Sports Centre,5311 - General Provisions - Vending,07/08/2013,2110262-1,67.7,2101083 - Osgood Smith,Canteen Goods
Tendring DC,http://statistics.data.gov.uk/id/local-authority-district/22UN,Life Opportunities,5820 - Harwich Sports Centre,5311 - General Provisions - Vending,07/08/2013,2110262-2,12.55,2101083 - Osgood Smith,Canteen Goods
Tendring DC,http://statistics.data.gov.uk/id/local-authority-district/22UN,Life Opportunities,5860 - Manningtree Sports Centre,5311 - General Provisions - Vending,07/08/2013,2110273-1,111.2,REDACTED COMMERCIAL CONFIDENTIALITY,REDACTED COMMERCIAL CONFIDENTIALITY
Tendring DC,http://statistics.data.gov.uk/id/local-authority-district/22UN,Life Opportunities,8520 - Frinton & Walton Swimming Pool,5311 - General Provisions - Vending,07/08/2013,2110276-1,70.18,REDACTED COMMERCIAL CONFIDENTIALITY,REDACTED COMMERCIAL CONFIDENTIALITY
Tendring DC,http://statistics.data.gov.uk/id/local-authority-district/22UN,Life Opportunities,8520 - Frinton & Walton Swimming Pool,5311 - General Provisions - Vending,07/08/2013,2110277-1,158.82,REDACTED COMMERCIAL CONFIDENTIALITY,REDACTED COMMERCIAL CONFIDENTIALITY
Tendring DC,http://statistics.data.gov.uk/id/local-authority-district/22UN,Life Opportunities,6160 - Princes Theatre,5306 - Confectionary,13/08/2013,2110370-1,91.19,2101083 - Osgood Smith,Confectionery
Tendring DC,http://statistics.data.gov.uk/id/local-authority-district/22UN,Life Opportunities,6160 - Princes Theatre,5306 - Confectionary,20/08/2013,2110448-1,102.6,2101083 - Osgood Smith,Confectionery Order
Tendring DC,http://statistics.data.gov.uk/id/local-authority-district/22UN,Life Opportunities,5860 - Manningtree Sports Centre,5311 - General Provisions - Vending,20/08/2013,2110549-1,26.69,2101083 - Osgood Smith,Vending Supplier
Tendring DC,http://statistics.data.gov.uk/id/local-authority-district/22UN,Life Opportunities,8510 - Dovercourt Swimming Pool & All Weather Facilities,5311 - General Provisions - Vending,20/08/2013,2110550-1,83.34,2101083 - Osgood Smith,Vending
Tendring DC,http://statistics.data.gov.uk/id/local-authority-district/22UN,Life Opportunities,5820 - Harwich Sports Centre,5311 - General Provisions - Vending,20/08/2013,2110551-1,24.32,2101083 - Osgood Smith,Canteen Income
Tendring DC,http://statistics.data.gov.uk/id/local-authority-district/22UN,Life Opportunities,5860 - Manningtree Sports Centre,5311 - General Provisions - Vending,27/08/2013,7700507-1,46.21,2101083 - Osgood Smith,VENDING SUPPLIERS
Tendring DC,http://statistics.data.gov.uk/id/local-authority-district/22UN,Life Opportunities,5480 - HRA - Repair & Maintenance,2077 - Gas Service Contract  Servicing/Testing (Large Sca,13/08/2013,1054235-1,2873.58,2113206 - P&R Installation Company Ltd,MECHANICAL SERVICES CONTRACT (LSB)
Tendring DC,http://statistics.data.gov.uk/id/local-authority-district/22UN,Life Opportunities,5480 - HRA - Repair & Maintenance,2078 - Gas Service Contract Other Refurbishment/Repairs (,13/08/2013,1054235-2,868.44,2113206 - P&R Installation Company Ltd,MECHANICAL SERVICES CONTRACT (LSB)
Tendring DC,http://statistics.data.gov.uk/id/local-authority-district/22UN,Life Opportunities,5140 - Homelessness,4683 - Other Homelessness Expenses,20/08/2013,1054245-1,340,REDACTED PERSONAL DATA,REDACTED PERSONAL DATA
Tendring DC,http://statistics.data.gov.uk/id/local-authority-district/22UN,Life Opportunities,5480 - HRA - Repair & Maintenance,2017 - Mechanical Equipment /Extract Fans,07/08/2013,1053970-1,120,REDACTED PERSONAL DATA,REDACTED PERSONAL DATA
Tendring DC,http://statistics.data.gov.uk/id/local-authority-district/22UN,Life Opportunities,5480 - HRA - Repair & Maintenance,2017 - Mechanical Equipment /Extract Fans,07/08/2013,1053970-2,274,REDACTED PERSONAL DATA,REDACTED PERSONAL DATA
Tendring DC,http://statistics.data.gov.uk/id/local-authority-district/22UN,Life Opportunities,5480 - HRA - Repair & Maintenance,2017 - Mechanical Equipment /Extract Fans,07/08/2013,1053971-1,557,REDACTED PERSONAL DATA,REDACTED PERSONAL DATA
Tendring DC,http://statistics.data.gov.uk/id/local-authority-district/22UN,Life Opportunities,5480 - HRA - Repair & Maintenance,2017 - Mechanical Equipment /Extract Fans,07/08/2013,1053971-2,358,REDACTED PERSONAL DATA,REDACTED PERSONAL DATA
Tendring DC,http://statistics.data.gov.uk/id/local-authority-district/22UN,Life Opportunities,5480 - HRA - Repair & Maintenance,2017 - Mechanical Equipment /Extract Fans,13/08/2013,1054073-1,540,REDACTED PERSONAL DATA,REDACTED PERSONAL DATA
Tendring DC,http://statistics.data.gov.uk/id/local-authority-district/22UN,Life Opportunities,5480 - HRA - Repair & Maintenance,2017 - Mechanical Equipment /Extract Fans,13/08/2013,1054073-2,488,REDACTED PERSONAL DATA,REDACTED PERSONAL DATA
Tendring DC,http://statistics.data.gov.uk/id/local-authority-district/22UN,Life Opportunities,5480 - HRA - Repair & Maintenance,2017 - Mechanical Equipment /Extract Fans,20/08/2013,1054289-1,210,REDACTED PERSONAL DATA,REDACTED PERSONAL DATA
Tendring DC,http://statistics.data.gov.uk/id/local-authority-district/22UN,Life Opportunities,5480 - HRA - Repair & Maintenance,2017 - Mechanical Equipment /Extract Fans,20/08/2013,1054289-2,208,REDACTED PERSONAL DATA,REDACTED PERSONAL DATA
Tendring DC,http://statistics.data.gov.uk/id/local-authority-district/22UN,Life Opportunities,5480 - HRA - Repair & Maintenance,2017 - Mechanical Equipment /Extract Fans,20/08/2013,1054290-1,510,REDACTED PERSONAL DATA,REDACTED PERSONAL DATA
Tendring DC,http://statistics.data.gov.uk/id/local-authority-district/22UN,Life Opportunities,5480 - HRA - Repair & Maintenance,2017 - Mechanical Equipment /Extract Fans,20/08/2013,1054290-2,405,REDACTED PERSONAL DATA,REDACTED PERSONAL DATA
Tendring DC,http://statistics.data.gov.uk/id/local-authority-district/22UN,Life Opportunities,5480 - HRA - Repair & Maintenance,2017 - Mechanical Equipment /Extract Fans,27/08/2013,1054427-1,480,REDACTED PERSONAL DATA,REDACTED PERSONAL DATA
Tendring DC,http://statistics.data.gov.uk/id/local-authority-district/22UN,Life Opportunities,5480 - HRA - Repair & Maintenance,2017 - Mechanical Equipment /Extract Fans,27/08/2013,1054427-2,517,REDACTED PERSONAL DATA,REDACTED PERSONAL DATA
Tendring DC,http://statistics.data.gov.uk/id/local-authority-district/22UN,Life Opportunities,6160 - Princes Theatre,5160 - Advertising,27/08/2013,1054510-1,180,2113216 - Pear Media Ltd,PRINCES THEATRE BROCHURES
Tendring DC,http://statistics.data.gov.uk/id/local-authority-district/22UN,Life Opportunities,6160 - Princes Theatre,5160 - Advertising,13/08/2013,2110421-1,120,2113216 - Pear Media Ltd,Distribution of Brochure
Tendring DC,http://statistics.data.gov.uk/id/local-authority-district/22UN,Life Opportunities,"1580 - Benefits, Revenues and Customer Contact SU",4300 - Printing & Stationery,27/08/2013,2110680-1,9,2109756 - Pearl Linguistics Ltd,Mr Trolle en Braille
Tendring DC,http://statistics.data.gov.uk/id/local-authority-district/22UN,Life Opportunities,5140 - Homelessness,4683 - Other Homelessness Expenses,27/08/2013,1054444-1,429,REDACTED PERSONAL DATA,REDACTED PERSONAL DATA
Tendring DC,http://statistics.data.gov.uk/id/local-authority-district/22UN,Life Opportunities,5880 - Management Of Sport & Leisure Facilities,5166 - Marketing and Promotion,13/08/2013,1054022-1,125,2101097 - Peter Lockyer Advertising Ltd,ADVERT ARTWORK
Tendring DC,http://statistics.data.gov.uk/id/local-authority-district/22UN,Life Opportunities,5420 - HRA - Communal Cleaning,2706 - Communal Areas Cleaning Expenses,07/08/2013,1053969-1,3521.58,REDACTED COMMERCIAL CONFIDENTIALITY,REDACTED COMMERCIAL CONFIDENTIALITY
Tendring DC,http://statistics.data.gov.uk/id/local-authority-district/22UN,Life Opportunities,5240 - HRA - Managing Tenancies,5248 - Estate Management Expenses,13/08/2013,2110383-1,81,REDACTED PERSONAL DATA,REDACTED PERSONAL DATA
Tendring DC,http://statistics.data.gov.uk/id/local-authority-district/22UN,Life Opportunities,7520 - Tourism Publicity Marketing Promotion,5160 - Advertising,13/08/2013,2110380-1,90,REDACTED PERSONAL DATA,REDACTED PERSONAL DATA
Tendring DC,http://statistics.data.gov.uk/id/local-authority-district/22UN,Life Opportunities,7520 - Tourism Publicity Marketing Promotion,5160 - Advertising,27/08/2013,2110646-1,90,REDACTED PERSONAL DATA,REDACTED PERSONAL DATA
Tendring DC,http://statistics.data.gov.uk/id/local-authority-district/22UN,Life Opportunities,5480 - HRA - Repair & Maintenance,2090 - Fencing,07/08/2013,1053962-1,30,REDACTED PERSONAL DATA,REDACTED PERSONAL DATA
Tendring DC,http://statistics.data.gov.uk/id/local-authority-district/22UN,Life Opportunities,5480 - HRA - Repair & Maintenance,2090 - Fencing,13/08/2013,1054135-1,183.6,REDACTED PERSONAL DATA,REDACTED PERSONAL DATA
Tendring DC,http://statistics.data.gov.uk/id/local-authority-district/22UN,Life Opportunities,5480 - HRA - Repair & Maintenance,2090 - Fencing,13/08/2013,1054136-1,1596.33,REDACTED PERSONAL DATA,REDACTED PERSONAL DATA
Tendring DC,http://statistics.data.gov.uk/id/local-authority-district/22UN,Life Opportunities,5480 - HRA - Repair & Maintenance,2090 - Fencing,13/08/2013,1054137-1,1438.38,REDACTED PERSONAL DATA,REDACTED PERSONAL DATA
Tendring DC,http://statistics.data.gov.uk/id/local-authority-district/22UN,Life Opportunities,5480 - HRA - Repair & Maintenance,2090 - Fencing,13/08/2013,1054138-1,1213.88,REDACTED PERSONAL DATA,REDACTED PERSONAL DATA
Tendring DC,http://statistics.data.gov.uk/id/local-authority-district/22UN,Life Opportunities,5480 - HRA - Repair & Maintenance,2090 - Fencing,13/08/2013,1054187-1,683.23,REDACTED PERSONAL DATA,REDACTED PERSONAL DATA
Tendring DC,http://statistics.data.gov.uk/id/local-authority-district/22UN,Life Opportunities,H920 - DFGs,C400 - Grant payments,20/08/2013,1054264-1,1051.2,REDACTED PERSONAL DATA,REDACTED PERSONAL DATA
Tendring DC,http://statistics.data.gov.uk/id/local-authority-district/22UN,Life Opportunities,5480 - HRA - Repair & Maintenance,2090 - Fencing,27/08/2013,2110638-1,787.8,REDACTED PERSONAL DATA,REDACTED PERSONAL DATA
Tendring DC,http://statistics.data.gov.uk/id/local-authority-district/22UN,Life Opportunities,5140 - Homelessness,4689 - Special Homelessness Projects Expenses,27/08/2013,2110639-1,185,REDACTED PERSONAL DATA,REDACTED PERSONAL DATA
Tendring DC,http://statistics.data.gov.uk/id/local-authority-district/22UN,Life Opportunities,5480 - HRA - Repair & Maintenance,2090 - Fencing,27/08/2013,2110640-1,397.8,REDACTED PERSONAL DATA,REDACTED PERSONAL DATA
Tendring DC,http://statistics.data.gov.uk/id/local-authority-district/22UN,Life Opportunities,5480 - HRA - Repair & Maintenance,2090 - Fencing,27/08/2013,2110641-1,259,REDACTED PERSONAL DATA,REDACTED PERSONAL DATA
Tendring DC,http://statistics.data.gov.uk/id/local-authority-district/22UN,Life Opportunities,5480 - HRA - Repair & Maintenance,2090 - Fencing,27/08/2013,2110643-1,1666.53,REDACTED PERSONAL DATA,REDACTED PERSONAL DATA
Tendring DC,http://statistics.data.gov.uk/id/local-authority-district/22UN,Life Opportunities,5480 - HRA - Repair & Maintenance,2090 - Fencing,27/08/2013,2110644-1,292.5,REDACTED PERSONAL DATA,REDACTED PERSONAL DATA
Tendring DC,http://statistics.data.gov.uk/id/local-authority-district/22UN,Life Opportunities,6160 - Princes Theatre,4622 - Hired Services - Artistes and Production Companies,27/08/2013,1054558-1,5000,REDACTED PERSONAL DATA,REDACTED PERSONAL DATA
Tendring DC,http://statistics.data.gov.uk/id/local-authority-district/22UN,Life Opportunities,H920 - DFGs,C400 - Grant payments,07/08/2013,1053938-1,2689,REDACTED PERSONAL DATA,REDACTED PERSONAL DATA
Tendring DC,http://statistics.data.gov.uk/id/local-authority-district/22UN,Life Opportunities,H920 - DFGs,C400 - Grant payments,13/08/2013,1054051-1,3059.6,REDACTED PERSONAL DATA,REDACTED PERSONAL DATA
Tendring DC,http://statistics.data.gov.uk/id/local-authority-district/22UN,Life Opportunities,H920 - DFGs,C400 - Grant payments,13/08/2013,1054052-1,3000,REDACTED PERSONAL DATA,REDACTED PERSONAL DATA
Tendring DC,http://statistics.data.gov.uk/id/local-authority-district/22UN,Life Opportunities,H920 - DFGs,C400 - Grant payments,20/08/2013,1054251-1,4239.36,REDACTED PERSONAL DATA,REDACTED PERSONAL DATA
Tendring DC,http://statistics.data.gov.uk/id/local-authority-district/22UN,Life Opportunities,H920 - DFGs,C400 - Grant payments,27/08/2013,1054519-1,3881.08,REDACTED PERSONAL DATA,REDACTED PERSONAL DATA
Tendring DC,http://statistics.data.gov.uk/id/local-authority-district/22UN,Life Opportunities,7620 - Air Show,4800 - Hospitality,13/08/2013,2110352-1,60.21,2110447 - Premier Inn Business Account,Booking for Air Show 2013
Tendring DC,http://statistics.data.gov.uk/id/local-authority-district/22UN,Life Opportunities,6160 - Princes Theatre,4622 - Hired Services - Artistes and Production Companies,20/08/2013,1054390-1,2468.49,2112058 - Prestige Productions Ltd,BUBLE FEVER
Tendring DC,http://statistics.data.gov.uk/id/local-authority-district/22UN,Life Opportunities,H920 - DFGs,C400 - Grant payments,20/08/2013,1054252-1,2845.06,REDACTED PERSONAL DATA,REDACTED PERSONAL DATA
Tendring DC,http://statistics.data.gov.uk/id/local-authority-district/22UN,Life Opportunities,H920 - DFGs,C400 - Grant payments,20/08/2013,1054253-1,3066.1,REDACTED PERSONAL DATA,REDACTED PERSONAL DATA
Tendring DC,http://statistics.data.gov.uk/id/local-authority-district/22UN,Life Opportunities,5480 - HRA - Repair & Maintenance,2012 - Responsive Maintenance - Clearance And Cleaning,07/08/2013,2110283-1,325,REDACTED PERSONAL DATA,REDACTED PERSONAL DATA
Tendring DC,http://statistics.data.gov.uk/id/local-authority-district/22UN,Life Opportunities,5480 - HRA - Repair & Maintenance,2012 - Responsive Maintenance - Clearance And Cleaning,07/08/2013,2110284-1,550,REDACTED PERSONAL DATA,REDACTED PERSONAL DATA
Tendring DC,http://statistics.data.gov.uk/id/local-authority-district/22UN,Life Opportunities,5480 - HRA - Repair & Maintenance,2012 - Responsive Maintenance - Clearance And Cleaning,07/08/2013,2110285-1,85,REDACTED PERSONAL DATA,REDACTED PERSONAL DATA
Tendring DC,http://statistics.data.gov.uk/id/local-authority-district/22UN,Life Opportunities,6160 - Princes Theatre,5160 - Advertising,13/08/2013,2110371-1,201,2107459 - Prospector,Distribution
Tendring DC,http://statistics.data.gov.uk/id/local-authority-district/22UN,Life Opportunities,8540 - Leisure Centre Clacton,2100 - Building Repairs,07/08/2013,2110265-1,292.25,2101132 - PRS Communications Limited,Radio Repairs
Tendring DC,http://statistics.data.gov.uk/id/local-authority-district/22UN,Life Opportunities,5860 - Manningtree Sports Centre,4040 - Equipment & Tools,07/08/2013,2110275-1,14,REDACTED COMMERCIAL CONFIDENTIALITY,REDACTED COMMERCIAL CONFIDENTIALITY
Tendring DC,http://statistics.data.gov.uk/id/local-authority-district/22UN,Life Opportunities,1880 - Office Accommodation Expenses,4000 - Furniture,13/08/2013,1054223-1,175,2113149 - Quality Office Supplies Ltd,QUALITY OFFICE SUPPLIES
Tendring DC,http://statistics.data.gov.uk/id/local-authority-district/22UN,Life Opportunities,1880 - Office Accommodation Expenses,4000 - Furniture,13/08/2013,1054224-1,89.99,2113149 - Quality Office Supplies Ltd,QUALITY OFFICE SUPPLIES
Tendring DC,http://statistics.data.gov.uk/id/local-authority-district/22UN,Life Opportunities,1880 - Office Accommodation Expenses,4000 - Furniture,20/08/2013,2110478-1,175,2113149 - Quality Office Supplies Ltd,Quality Office
Tendring DC,http://statistics.data.gov.uk/id/local-authority-district/22UN,Life Opportunities,1880 - Office Accommodation Expenses,4000 - Furniture,20/08/2013,2110479-1,107.5,2113149 - Quality Office Supplies Ltd,Quality Office
Tendring DC,http://statistics.data.gov.uk/id/local-authority-district/22UN,Life Opportunities,1880 - Office Accommodation Expenses,4000 - Furniture,20/08/2013,2110480-1,175,2113149 - Quality Office Supplies Ltd,Quality Office
Tendring DC,http://statistics.data.gov.uk/id/local-authority-district/22UN,Life Opportunities,1880 - Office Accommodation Expenses,4000 - Furniture,20/08/2013,2110481-1,491.44,2113149 - Quality Office Supplies Ltd,Quality Office
Tendring DC,http://statistics.data.gov.uk/id/local-authority-district/22UN,Life Opportunities,7620 - Air Show,4627 - Hired Services - Emergency Services,13/08/2013,2110424-1,1600,REDACTED COMMERCIAL CONFIDENTIALITY,REDACTED COMMERCIAL CONFIDENTIALITY
Tendring DC,http://statistics.data.gov.uk/id/local-authority-district/22UN,Life Opportunities,8540 - Leisure Centre Clacton,2100 - Building Repairs,07/08/2013,1054035-1,4376.34,2104698 - Rentokil Initial UK Ltd,PEST CONTROL
Tendring DC,http://statistics.data.gov.uk/id/local-authority-district/22UN,Life Opportunities,5140 - Homelessness,4683 - Other Homelessness Expenses,20/08/2013,1054242-1,545,REDACTED PERSONAL DATA,REDACTED PERSONAL DATA
Tendring DC,http://statistics.data.gov.uk/id/local-authority-district/22UN,Life Opportunities,9900 - General Fund Balance Sheet,B332 - Other Public Corporations Debtors/Prepayments,20/08/2013,1054418-1,1000,REDACTED PERSONAL DATA,REDACTED PERSONAL DATA
Tendring DC,http://statistics.data.gov.uk/id/local-authority-district/22UN,Life Opportunities,H880 - New Build Initiatives and Acquisitions,C200 - Main Contractor,27/08/2013,1054548-1,440,REDACTED PERSONAL DATA,REDACTED PERSONAL DATA
Tendring DC,http://statistics.data.gov.uk/id/local-authority-district/22UN,Life Opportunities,H800 - Structural Repairs,C200 - Main Contractor,27/08/2013,1054549-1,295,REDACTED PERSONAL DATA,REDACTED PERSONAL DATA
Tendring DC,http://statistics.data.gov.uk/id/local-authority-district/22UN,Life Opportunities,"1580 - Benefits, Revenues and Customer Contact SU",4350 - Photocopier Hire,07/08/2013,1054016-1,55.41,2101090 - Ricoh UK Ltd,RENT + B/W CLICK L6886762105/CBMFB18BHFKE
Tendring DC,http://statistics.data.gov.uk/id/local-authority-district/22UN,Life Opportunities,"1580 - Benefits, Revenues and Customer Contact SU",4350 - Photocopier Hire,07/08/2013,1054017-1,46.9,2101090 - Ricoh UK Ltd,RENT L6806460317
Tendring DC,http://statistics.data.gov.uk/id/local-authority-district/22UN,Life Opportunities,"1580 - Benefits, Revenues and Customer Contact SU",4350 - Photocopier Hire,07/08/2013,1054018-1,125.93,2101090 - Ricoh UK Ltd,B/W CLICK + RENT M5583500665
Tendring DC,http://statistics.data.gov.uk/id/local-authority-district/22UN,Life Opportunities,"1580 - Benefits, Revenues and Customer Contact SU",4350 - Photocopier Hire,07/08/2013,1054019-1,105.46,2101090 - Ricoh UK Ltd,B/W CLICK + RENT M5583400749
Tendring DC,http://statistics.data.gov.uk/id/local-authority-district/22UN,Life Opportunities,6740 - Careline,4350 - Photocopier Hire,07/08/2013,2110252-1,235.89,2101090 - Ricoh UK Ltd,Ricoh Photocopier Hire
Tendring DC,http://statistics.data.gov.uk/id/local-authority-district/22UN,Life Opportunities,8520 - Frinton & Walton Swimming Pool,4400 - Maintenance Under Service Agreements,07/08/2013,2110253-1,118.03,2101090 - Ricoh UK Ltd,Frinton & Walton Pool
Tendring DC,http://statistics.data.gov.uk/id/local-authority-district/22UN,Life Opportunities,8520 - Frinton & Walton Swimming Pool,4000 - Furniture,13/08/2013,1054176-1,75,2101127 - RLSS UK Enterprises Ltd,PPE
Tendring DC,http://statistics.data.gov.uk/id/local-authority-district/22UN,Life Opportunities,H706 - Kitchen & Bathroom Replacement,C200 - Main Contractor,07/08/2013,1053972-1,3662.63,REDACTED PERSONAL DATA,REDACTED PERSONAL DATA
Tendring DC,http://statistics.data.gov.uk/id/local-authority-district/22UN,Life Opportunities,H706 - Kitchen & Bathroom Replacement,C200 - Main Contractor,07/08/2013,1053973-1,3963.96,REDACTED PERSONAL DATA,REDACTED PERSONAL DATA
Tendring DC,http://statistics.data.gov.uk/id/local-authority-district/22UN,Life Opportunities,5480 - HRA - Repair & Maintenance,2088 - Disabled Adaptations,13/08/2013,1054084-1,57.36,REDACTED PERSONAL DATA,REDACTED PERSONAL DATA
Tendring DC,http://statistics.data.gov.uk/id/local-authority-district/22UN,Life Opportunities,5480 - HRA - Repair & Maintenance,2088 - Disabled Adaptations,13/08/2013,1054085-1,90.45,REDACTED PERSONAL DATA,REDACTED PERSONAL DATA
Tendring DC,http://statistics.data.gov.uk/id/local-authority-district/22UN,Life Opportunities,5480 - HRA - Repair & Maintenance,2088 - Disabled Adaptations,13/08/2013,1054086-1,186.87,REDACTED PERSONAL DATA,REDACTED PERSONAL DATA
Tendring DC,http://statistics.data.gov.uk/id/local-authority-district/22UN,Life Opportunities,5140 - Homelessness,4689 - Special Homelessness Projects Expenses,13/08/2013,1054087-1,73.6,REDACTED PERSONAL DATA,REDACTED PERSONAL DATA
Tendring DC,http://statistics.data.gov.uk/id/local-authority-district/22UN,Life Opportunities,5480 - HRA - Repair & Maintenance,2088 - Disabled Adaptations,20/08/2013,1054291-1,88.25,REDACTED PERSONAL DATA,REDACTED PERSONAL DATA
Tendring DC,http://statistics.data.gov.uk/id/local-authority-district/22UN,Life Opportunities,5480 - HRA - Repair & Maintenance,2088 - Disabled Adaptations,20/08/2013,1054292-1,48.12,REDACTED PERSONAL DATA,REDACTED PERSONAL DATA
Tendring DC,http://statistics.data.gov.uk/id/local-authority-district/22UN,Life Opportunities,5480 - HRA - Repair & Maintenance,2088 - Disabled Adaptations,20/08/2013,1054293-1,60.15,REDACTED PERSONAL DATA,REDACTED PERSONAL DATA
Tendring DC,http://statistics.data.gov.uk/id/local-authority-district/22UN,Life Opportunities,5480 - HRA - Repair & Maintenance,2088 - Disabled Adaptations,20/08/2013,1054294-1,137.62,REDACTED PERSONAL DATA,REDACTED PERSONAL DATA
Tendring DC,http://statistics.data.gov.uk/id/local-authority-district/22UN,Life Opportunities,5480 - HRA - Repair & Maintenance,2088 - Disabled Adaptations,20/08/2013,1054295-1,153.18,REDACTED PERSONAL DATA,REDACTED PERSONAL DATA
Tendring DC,http://statistics.data.gov.uk/id/local-authority-district/22UN,Life Opportunities,5480 - HRA - Repair & Maintenance,2088 - Disabled Adaptations,20/08/2013,1054296-1,490.33,REDACTED PERSONAL DATA,REDACTED PERSONAL DATA
Tendring DC,http://statistics.data.gov.uk/id/local-authority-district/22UN,Life Opportunities,5480 - HRA - Repair & Maintenance,2088 - Disabled Adaptations,20/08/2013,1054297-1,121.63,REDACTED PERSONAL DATA,REDACTED PERSONAL DATA
Tendring DC,http://statistics.data.gov.uk/id/local-authority-district/22UN,Life Opportunities,5480 - HRA - Repair & Maintenance,2088 - Disabled Adaptations,20/08/2013,1054298-1,46.71,REDACTED PERSONAL DATA,REDACTED PERSONAL DATA
Tendring DC,http://statistics.data.gov.uk/id/local-authority-district/22UN,Life Opportunities,H860 - Disabled Adaptations,C200 - Main Contractor,20/08/2013,1054299-1,4829.76,REDACTED PERSONAL DATA,REDACTED PERSONAL DATA
Tendring DC,http://statistics.data.gov.uk/id/local-authority-district/22UN,Life Opportunities,H860 - Disabled Adaptations,C200 - Main Contractor,20/08/2013,1054300-1,4226.04,2101187 - Roalco Limited,ST MARYS COURT
Tendring DC,http://statistics.data.gov.uk/id/local-authority-district/22UN,Life Opportunities,5480 - HRA - Repair & Maintenance,2000 - Responsive Maintenance - Miscellaneous,20/08/2013,1054415-1,203574.97,2101187 - Roalco Limited,ROALCO
Tendring DC,http://statistics.data.gov.uk/id/local-authority-district/22UN,Life Opportunities,H860 - Disabled Adaptations,C200 - Main Contractor,27/08/2013,1054429-1,1660.23,2101187 - Roalco Limited,CROOKED ELMS
Tendring DC,http://statistics.data.gov.uk/id/local-authority-district/22UN,Life Opportunities,H860 - Disabled Adaptations,C200 - Main Contractor,27/08/2013,1054430-1,46.71,2101187 - Roalco Limited,SPENDELLS HOUSE
Tendring DC,http://statistics.data.gov.uk/id/local-authority-district/22UN,Life Opportunities,H860 - Disabled Adaptations,C200 - Main Contractor,27/08/2013,1054431-1,3219.84,2101187 - Roalco Limited,KATE DANIELS HOUSE
Tendring DC,http://statistics.data.gov.uk/id/local-authority-district/22UN,Life Opportunities,"1580 - Benefits, Revenues and Customer Contact SU",4040 - Equipment & Tools,13/08/2013,1054217-1,119.09,2101158 - Rocom Group Limited,ROCOM
Tendring DC,http://statistics.data.gov.uk/id/local-authority-district/22UN,Life Opportunities,7600 - Tourist Information Centres,4710 - Telephones - Charges,13/08/2013,1054217-2,146.19,2101158 - Rocom Group Limited,ROCOM
Tendring DC,http://statistics.data.gov.uk/id/local-authority-district/22UN,Life Opportunities,9900 - General Fund Balance Sheet,B382 - Rechargeable Works - Other,13/08/2013,1054088-1,491.09,REDACTED PERSONAL DATA,REDACTED PERSONAL DATA
Tendring DC,http://statistics.data.gov.uk/id/local-authority-district/22UN,Life Opportunities,9900 - General Fund Balance Sheet,B382 - Rechargeable Works - Other,13/08/2013,1054140-1,450,2101893 - Rose Builders Ltd,PARKESTON HOUSE
Tendring DC,http://statistics.data.gov.uk/id/local-authority-district/22UN,Life Opportunities,9900 - General Fund Balance Sheet,B332 - Other Public Corporations Debtors/Prepayments,13/08/2013,1054232-1,21086.01,2101893 - Rose Builders Ltd,32 WEST STREET HARWICH REBUILD
Tendring DC,http://statistics.data.gov.uk/id/local-authority-district/22UN,Life Opportunities,H800 - Structural Repairs,C200 - Main Contractor,20/08/2013,1054302-1,7795.42,REDACTED PERSONAL DATA,REDACTED PERSONAL DATA
Tendring DC,http://statistics.data.gov.uk/id/local-authority-district/22UN,Life Opportunities,5240 - HRA - Managing Tenancies,5242 - Tenant Relations,07/08/2013,1053940-1,10,REDACTED PERSONAL DATA,REDACTED PERSONAL DATA
Tendring DC,http://statistics.data.gov.uk/id/local-authority-district/22UN,Life Opportunities,"1580 - Benefits, Revenues and Customer Contact SU",4700 - Postage,07/08/2013,1054014-1,1347.69,2101139 - Royal Mail,OUTGOING POST JULY 13
Tendring DC,http://statistics.data.gov.uk/id/local-authority-district/22UN,Life Opportunities,5240 - HRA - Managing Tenancies,5242 - Tenant Relations,13/08/2013,1054170-1,315.79,REDACTED COMMERCIAL CONFIDENTIALITY,REDACTED COMMERCIAL CONFIDENTIALITY
Tendring DC,http://statistics.data.gov.uk/id/local-authority-district/22UN,Life Opportunities,"1580 - Benefits, Revenues and Customer Contact SU",4700 - Postage,20/08/2013,1054340-1,1890.29,2101139 - Royal Mail,OUTGOING POST JUL/AUG 13
Tendring DC,http://statistics.data.gov.uk/id/local-authority-district/22UN,Life Opportunities,5260 - HRA - Rent Collection And Accounting,4700 - Postage,20/08/2013,2110557-1,54.64,REDACTED COMMERCIAL CONFIDENTIALITY,REDACTED COMMERCIAL CONFIDENTIALITY
Tendring DC,http://statistics.data.gov.uk/id/local-authority-district/22UN,Life Opportunities,"1580 - Benefits, Revenues and Customer Contact SU",4700 - Postage,27/08/2013,7700522-1,1297.59,2101139 - Royal Mail,OUTGOING POST AUGUST 13
Tendring DC,http://statistics.data.gov.uk/id/local-authority-district/22UN,Life Opportunities,8540 - Leisure Centre Clacton,4400 - Maintenance Under Service Agreements,07/08/2013,2110261-1,160,2109169 - S J Leisure Contractors Ltd,Service Sauna Etc
Tendring DC,http://statistics.data.gov.uk/id/local-authority-district/22UN,Life Opportunities,8540 - Leisure Centre Clacton,2100 - Building Repairs,13/08/2013,2110417-1,347.75,2109169 - S J Leisure Contractors Ltd,Steam Room Cylinder & PCB
Tendring DC,http://statistics.data.gov.uk/id/local-authority-district/22UN,Life Opportunities,5480 - HRA - Repair & Maintenance,2088 - Disabled Adaptations,13/08/2013,1054072-1,307.22,REDACTED PERSONAL DATA,REDACTED PERSONAL DATA
Tendring DC,http://statistics.data.gov.uk/id/local-authority-district/22UN,Life Opportunities,5480 - HRA - Repair & Maintenance,2088 - Disabled Adaptations,13/08/2013,1054072-2,56.5,REDACTED PERSONAL DATA,REDACTED PERSONAL DATA
Tendring DC,http://statistics.data.gov.uk/id/local-authority-district/22UN,Life Opportunities,H860 - Disabled Adaptations,C200 - Main Contractor,27/08/2013,1054426-1,485,REDACTED PERSONAL DATA,REDACTED PERSONAL DATA
Tendring DC,http://statistics.data.gov.uk/id/local-authority-district/22UN,Life Opportunities,H860 - Disabled Adaptations,C200 - Main Contractor,27/08/2013,1054426-2,154.44,REDACTED PERSONAL DATA,REDACTED PERSONAL DATA
Tendring DC,http://statistics.data.gov.uk/id/local-authority-district/22UN,Life Opportunities,H920 - DFGs,C400 - Grant payments,07/08/2013,1053929-1,5369.97,REDACTED PERSONAL DATA,REDACTED PERSONAL DATA
Tendring DC,http://statistics.data.gov.uk/id/local-authority-district/22UN,Life Opportunities,H920 - DFGs,C400 - Grant payments,20/08/2013,1054254-1,4320.08,REDACTED PERSONAL DATA,REDACTED PERSONAL DATA
Tendring DC,http://statistics.data.gov.uk/id/local-authority-district/22UN,Life Opportunities,5240 - HRA - Managing Tenancies,5248 - Estate Management Expenses,13/08/2013,2109756-1,69.55,REDACTED COMMERCIAL CONFIDENTIALITY,REDACTED COMMERCIAL CONFIDENTIALITY
Tendring DC,http://statistics.data.gov.uk/id/local-authority-district/22UN,Life Opportunities,5240 - HRA - Managing Tenancies,5248 - Estate Management Expenses,13/08/2013,2109938-1,-69.55,REDACTED COMMERCIAL CONFIDENTIALITY,REDACTED COMMERCIAL CONFIDENTIALITY
Tendring DC,http://statistics.data.gov.uk/id/local-authority-district/22UN,Life Opportunities,H800 - Structural Repairs,C200 - Main Contractor,07/08/2013,1053974-1,1851,REDACTED PERSONAL DATA,REDACTED PERSONAL DATA
Tendring DC,http://statistics.data.gov.uk/id/local-authority-district/22UN,Life Opportunities,H800 - Structural Repairs,C200 - Main Contractor,07/08/2013,1053975-1,444,REDACTED PERSONAL DATA,REDACTED PERSONAL DATA
Tendring DC,http://statistics.data.gov.uk/id/local-authority-district/22UN,Life Opportunities,H705 - Window/Door Replacement,C200 - Main Contractor,13/08/2013,1054234-1,94808.61,2105783 - SBP Ltd,WINDOWS & DOOR CONTRACT 42298
Tendring DC,http://statistics.data.gov.uk/id/local-authority-district/22UN,Life Opportunities,9900 - General Fund Balance Sheet,B382 - Rechargeable Works - Other,20/08/2013,1054304-1,120,REDACTED PERSONAL DATA,REDACTED PERSONAL DATA
Tendring DC,http://statistics.data.gov.uk/id/local-authority-district/22UN,Life Opportunities,9900 - General Fund Balance Sheet,B382 - Rechargeable Works - Other,20/08/2013,1054305-1,120,REDACTED PERSONAL DATA,REDACTED PERSONAL DATA
Tendring DC,http://statistics.data.gov.uk/id/local-authority-district/22UN,Life Opportunities,9900 - General Fund Balance Sheet,B382 - Rechargeable Works - Other,20/08/2013,1054306-1,120,REDACTED PERSONAL DATA,REDACTED PERSONAL DATA
Tendring DC,http://statistics.data.gov.uk/id/local-authority-district/22UN,Life Opportunities,5480 - HRA - Repair & Maintenance,2096 - Asbestos testing/removal,27/08/2013,1054428-1,120,REDACTED PERSONAL DATA,REDACTED PERSONAL DATA
Tendring DC,http://statistics.data.gov.uk/id/local-authority-district/22UN,Life Opportunities,5480 - HRA - Repair & Maintenance,2096 - Asbestos testing/removal,27/08/2013,1054428-2,30,REDACTED PERSONAL DATA,REDACTED PERSONAL DATA
Tendring DC,http://statistics.data.gov.uk/id/local-authority-district/22UN,Life Opportunities,8510 - Dovercourt Swimming Pool & All Weather Facilities,4000 - Furniture,20/08/2013,1054238-1,24.67,2111139 - Shaun Williams,AFFORDABLE WEBS GROUP
Tendring DC,http://statistics.data.gov.uk/id/local-authority-district/22UN,Life Opportunities,8510 - Dovercourt Swimming Pool & All Weather Facilities,9228 - Swimming Lessons,20/08/2013,1054255-1,43,2113276 - Sherry Hammond,PAYMENT REFUND
Tendring DC,http://statistics.data.gov.uk/id/local-authority-district/22UN,Life Opportunities,5880 - Management Of Sport & Leisure Facilities,5166 - Marketing and Promotion,07/08/2013,1054021-1,43.48,2100032 - Signs Made Easy,PVC BANNER
Tendring DC,http://statistics.data.gov.uk/id/local-authority-district/22UN,Life Opportunities,7620 - Air Show,4300 - Printing & Stationery,27/08/2013,1054496-1,156,2100032 - Signs Made Easy,BANNERS FOR CLACTON AIRSHOW
Tendring DC,http://statistics.data.gov.uk/id/local-authority-district/22UN,Life Opportunities,1880 - Office Accommodation Expenses,2100 - Building Repairs,20/08/2013,2110477-1,160,2100032 - Signs Made Easy,Signs Made Easy
Tendring DC,http://statistics.data.gov.uk/id/local-authority-district/22UN,Life Opportunities,5800 - Brightlingsea Sports Centre,5160 - Advertising,27/08/2013,2110675-1,69,2103454 - Simad Publications,Look Magazine
Tendring DC,http://statistics.data.gov.uk/id/local-authority-district/22UN,Life Opportunities,5480 - HRA - Repair & Maintenance,2062 - Communal TV Aerials Repairs,13/08/2013,2110382-1,60,REDACTED PERSONAL DATA,REDACTED PERSONAL DATA
Tendring DC,http://statistics.data.gov.uk/id/local-authority-district/22UN,Life Opportunities,7000 - CCTV,4718 - Fixed Communication Lines,20/08/2013,2110510-1,63.9,2108907 - Southern Communications Ltd,Southern Communications
Tendring DC,http://statistics.data.gov.uk/id/local-authority-district/22UN,Life Opportunities,5360 - HRA - Sheltered Units,4710 - Telephones - Charges,20/08/2013,2110510-2,27.44,2108907 - Southern Communications Ltd,Southern Communications
Tendring DC,http://statistics.data.gov.uk/id/local-authority-district/22UN,Life Opportunities,5360 - HRA - Sheltered Units,4710 - Telephones - Charges,20/08/2013,2110510-3,29.2,2108907 - Southern Communications Ltd,Southern Communications
Tendring DC,http://statistics.data.gov.uk/id/local-authority-district/22UN,Life Opportunities,5360 - HRA - Sheltered Units,4710 - Telephones - Charges,20/08/2013,2110510-4,27.16,2108907 - Southern Communications Ltd,Southern Communications
Tendring DC,http://statistics.data.gov.uk/id/local-authority-district/22UN,Life Opportunities,5360 - HRA - Sheltered Units,4710 - Telephones - Charges,20/08/2013,2110510-5,22.5,2108907 - Southern Communications Ltd,Southern Communications
Tendring DC,http://statistics.data.gov.uk/id/local-authority-district/22UN,Life Opportunities,5360 - HRA - Sheltered Units,4710 - Telephones - Charges,20/08/2013,2110510-6,28.3,2108907 - Southern Communications Ltd,Southern Communications
Tendring DC,http://statistics.data.gov.uk/id/local-authority-district/22UN,Life Opportunities,5360 - HRA - Sheltered Units,4710 - Telephones - Charges,20/08/2013,2110510-7,26.95,2108907 - Southern Communications Ltd,Southern Communications
Tendring DC,http://statistics.data.gov.uk/id/local-authority-district/22UN,Life Opportunities,5360 - HRA - Sheltered Units,4710 - Telephones - Charges,20/08/2013,2110510-8,29.94,2108907 - Southern Communications Ltd,Southern Communications
Tendring DC,http://statistics.data.gov.uk/id/local-authority-district/22UN,Life Opportunities,8510 - Dovercourt Swimming Pool & All Weather Facilities,2100 - Building Repairs,27/08/2013,1054577-1,89,2101278 - Sportsafe UK Ltd,DOVERCOURT POOL-GYM FIX
Tendring DC,http://statistics.data.gov.uk/id/local-authority-district/22UN,Life Opportunities,8540 - Leisure Centre Clacton,2100 - Building Repairs,27/08/2013,1054584-1,70,2101278 - Sportsafe UK Ltd,TRAMPOLINE INSPECTION
Tendring DC,http://statistics.data.gov.uk/id/local-authority-district/22UN,Life Opportunities,8510 - Dovercourt Swimming Pool & All Weather Facilities,2100 - Building Repairs,20/08/2013,2110564-1,90,2101278 - Sportsafe UK Ltd,Cycle Repair
Tendring DC,http://statistics.data.gov.uk/id/local-authority-district/22UN,Life Opportunities,8540 - Leisure Centre Clacton,5500 - Miscellaneous Expenses,07/08/2013,2110176-1,86.87,2102268 - St John Ambulance Supplies,Ist Aid Supplies
Tendring DC,http://statistics.data.gov.uk/id/local-authority-district/22UN,Life Opportunities,6160 - Princes Theatre,4040 - Equipment & Tools,13/08/2013,1054183-1,678.96,2101300 - Stage Electrics,ELECTRICAL ITEMS FOR THEATRE
Tendring DC,http://statistics.data.gov.uk/id/local-authority-district/22UN,Life Opportunities,6160 - Princes Theatre,4040 - Equipment & Tools,20/08/2013,1054389-1,154.8,2101300 - Stage Electrics,5 X COLOUR SCROLL
Tendring DC,http://statistics.data.gov.uk/id/local-authority-district/22UN,Life Opportunities,6160 - Princes Theatre,4622 - Hired Services - Artistes and Production Companies,20/08/2013,2110568-1,696.75,2109308 - Standing Ovation Entertainments Ltd,Commission Tickets 1/7-1/8/13
Tendring DC,http://statistics.data.gov.uk/id/local-authority-district/22UN,Life Opportunities,5480 - HRA - Repair & Maintenance,2070 - Lift/Stairlift Repairs,06/08/2013,1054301-1,286,REDACTED PERSONAL DATA,REDACTED PERSONAL DATA
Tendring DC,http://statistics.data.gov.uk/id/local-authority-district/22UN,Life Opportunities,5480 - HRA - Repair & Maintenance,2070 - Lift/Stairlift Repairs,20/08/2013,1054420-1,2786,REDACTED PERSONAL DATA,REDACTED PERSONAL DATA
Tendring DC,http://statistics.data.gov.uk/id/local-authority-district/22UN,Life Opportunities,5480 - HRA - Repair & Maintenance,2069 - Lift/Stairlift Servicing,27/08/2013,1054595-1,1581.94,2101360 - Stannah Lift Services Limited,LIFT SERVICE & REPAIR
Tendring DC,http://statistics.data.gov.uk/id/local-authority-district/22UN,Life Opportunities,5480 - HRA - Repair & Maintenance,2070 - Lift/Stairlift Repairs,27/08/2013,1054595-2,5358,2101360 - Stannah Lift Services Limited,LIFT SERVICE & REPAIR
Tendring DC,http://statistics.data.gov.uk/id/local-authority-district/22UN,Life Opportunities,1880 - Office Accommodation Expenses,2100 - Building Repairs,13/08/2013,1054214-1,11.08,2101370 - Stannah Lift Services Ltd,STANNAH
Tendring DC,http://statistics.data.gov.uk/id/local-authority-district/22UN,Life Opportunities,1880 - Office Accommodation Expenses,2100 - Building Repairs,13/08/2013,1054214-2,11.09,2101370 - Stannah Lift Services Ltd,STANNAH
Tendring DC,http://statistics.data.gov.uk/id/local-authority-district/22UN,Life Opportunities,H920 - DFGs,C400 - Grant payments,07/08/2013,1053930-1,189.9,REDACTED PERSONAL DATA,REDACTED PERSONAL DATA
Tendring DC,http://statistics.data.gov.uk/id/local-authority-district/22UN,Life Opportunities,H920 - DFGs,C400 - Grant payments,07/08/2013,1053931-1,714.32,REDACTED PERSONAL DATA,REDACTED PERSONAL DATA
Tendring DC,http://statistics.data.gov.uk/id/local-authority-district/22UN,Life Opportunities,H920 - DFGs,C400 - Grant payments,07/08/2013,1053932-1,1031.3,REDACTED PERSONAL DATA,REDACTED PERSONAL DATA
Tendring DC,http://statistics.data.gov.uk/id/local-authority-district/22UN,Life Opportunities,H920 - DFGs,C400 - Grant payments,13/08/2013,1054054-1,57.88,REDACTED PERSONAL DATA,REDACTED PERSONAL DATA
Tendring DC,http://statistics.data.gov.uk/id/local-authority-district/22UN,Life Opportunities,H920 - DFGs,C400 - Grant payments,20/08/2013,1054263-1,607.1,REDACTED PERSONAL DATA,REDACTED PERSONAL DATA
Tendring DC,http://statistics.data.gov.uk/id/local-authority-district/22UN,Life Opportunities,H920 - DFGs,C400 - Grant payments,27/08/2013,1054520-1,203.93,REDACTED PERSONAL DATA,REDACTED PERSONAL DATA
Tendring DC,http://statistics.data.gov.uk/id/local-authority-district/22UN,Life Opportunities,5480 - HRA - Repair & Maintenance,2088 - Disabled Adaptations,27/08/2013,2110634-1,90,2101393 - T J B Electrical Contracting,88 Wivenhoe Road
Tendring DC,http://statistics.data.gov.uk/id/local-authority-district/22UN,Life Opportunities,6160 - Princes Theatre,4622 - Hired Services - Artistes and Production Companies,27/08/2013,1054556-1,3798.53,2112457 - Talented Artists Ltd,JOE PASQUALE
Tendring DC,http://statistics.data.gov.uk/id/local-authority-district/22UN,Life Opportunities,8540 - Leisure Centre Clacton,2100 - Building Repairs,27/08/2013,1054566-1,639.59,2106188 - Technogym UK Ltd,RUNNING M/C REPAIRS
Tendring DC,http://statistics.data.gov.uk/id/local-authority-district/22UN,Life Opportunities,8540 - Leisure Centre Clacton,2100 - Building Repairs,13/08/2013,2110418-1,166.94,2106188 - Technogym UK Ltd,E Key Reader repair
Tendring DC,http://statistics.data.gov.uk/id/local-authority-district/22UN,Life Opportunities,8540 - Leisure Centre Clacton,4000 - Furniture,13/08/2013,2110419-1,436.76,2106188 - Technogym UK Ltd,Weights Inserts & Upholstery
Tendring DC,http://statistics.data.gov.uk/id/local-authority-district/22UN,Life Opportunities,5860 - Manningtree Sports Centre,4040 - Equipment & Tools,20/08/2013,1054268-1,2.5,2101357 - Tendring District Council,PETTY CASH MANNINGTREE SPORTS CENTRE
Tendring DC,http://statistics.data.gov.uk/id/local-authority-district/22UN,Life Opportunities,5860 - Manningtree Sports Centre,4700 - Postage,20/08/2013,1054268-2,6,2101357 - Tendring District Council,PETTY CASH MANNINGTREE SPORTS CENTRE
Tendring DC,http://statistics.data.gov.uk/id/local-authority-district/22UN,Life Opportunities,8510 - Dovercourt Swimming Pool & All Weather Facilities,2100 - Building Repairs,07/08/2013,2110268-1,80,2105926 - Tendring Pool & Spa,Service on Pool
Tendring DC,http://statistics.data.gov.uk/id/local-authority-district/22UN,Life Opportunities,5800 - Brightlingsea Sports Centre,2304 - Energy Costs - Electricity,07/08/2013,2110188-1,2174.71,2101369 - The Colne Community School,Colne Community School
Tendring DC,http://statistics.data.gov.uk/id/local-authority-district/22UN,Life Opportunities,5800 - Brightlingsea Sports Centre,2308 - Energy Costs - Gas (Including LPG),07/08/2013,2110188-2,1006.38,2101369 - The Colne Community School,Colne Community School
Tendring DC,http://statistics.data.gov.uk/id/local-authority-district/22UN,Life Opportunities,5800 - Brightlingsea Sports Centre,2500 - Water Services - Metered,07/08/2013,2110188-3,639.44,2101369 - The Colne Community School,Colne Community School
Tendring DC,http://statistics.data.gov.uk/id/local-authority-district/22UN,Life Opportunities,5800 - Brightlingsea Sports Centre,4300 - Printing & Stationery,07/08/2013,2110189-1,4.8,2101369 - The Colne Community School,Colne Comm School
Tendring DC,http://statistics.data.gov.uk/id/local-authority-district/22UN,Life Opportunities,7520 - Tourism Publicity Marketing Promotion,5160 - Advertising,13/08/2013,1054181-1,300,2106910 - The Good Travel Guide,OCT/NOV/DEC 13 ISSUE
Tendring DC,http://statistics.data.gov.uk/id/local-authority-district/22UN,Life Opportunities,5140 - Homelessness,4683 - Other Homelessness Expenses,20/08/2013,1054243-1,435,REDACTED PERSONAL DATA,REDACTED PERSONAL DATA
Tendring DC,http://statistics.data.gov.uk/id/local-authority-district/22UN,Life Opportunities,5140 - Homelessness,4683 - Other Homelessness Expenses,27/08/2013,1054439-1,20,REDACTED PERSONAL DATA,REDACTED PERSONAL DATA
Tendring DC,http://statistics.data.gov.uk/id/local-authority-district/22UN,Life Opportunities,7600 - Tourist Information Centres,8530 - Resaleable Items Income,13/08/2013,1054227-1,462,REDACTED COMMERCIAL CONFIDENTIALITY,REDACTED COMMERCIAL CONFIDENTIALITY
Tendring DC,http://statistics.data.gov.uk/id/local-authority-district/22UN,Life Opportunities,5480 - HRA - Repair & Maintenance,2016 - PVCu Window And Door Repairs,07/08/2013,1053976-1,26.73,REDACTED PERSONAL DATA,REDACTED PERSONAL DATA
Tendring DC,http://statistics.data.gov.uk/id/local-authority-district/22UN,Life Opportunities,5480 - HRA - Repair & Maintenance,2016 - PVCu Window And Door Repairs,07/08/2013,1053977-1,36.77,REDACTED PERSONAL DATA,REDACTED PERSONAL DATA
Tendring DC,http://statistics.data.gov.uk/id/local-authority-district/22UN,Life Opportunities,5480 - HRA - Repair & Maintenance,2016 - PVCu Window And Door Repairs,07/08/2013,1053978-1,33.97,REDACTED PERSONAL DATA,REDACTED PERSONAL DATA
Tendring DC,http://statistics.data.gov.uk/id/local-authority-district/22UN,Life Opportunities,5480 - HRA - Repair & Maintenance,2016 - PVCu Window And Door Repairs,07/08/2013,1053979-1,30.37,REDACTED PERSONAL DATA,REDACTED PERSONAL DATA
Tendring DC,http://statistics.data.gov.uk/id/local-authority-district/22UN,Life Opportunities,5480 - HRA - Repair & Maintenance,2016 - PVCu Window And Door Repairs,07/08/2013,1053982-1,33.97,REDACTED PERSONAL DATA,REDACTED PERSONAL DATA
Tendring DC,http://statistics.data.gov.uk/id/local-authority-district/22UN,Life Opportunities,5480 - HRA - Repair & Maintenance,2016 - PVCu Window And Door Repairs,07/08/2013,1053983-1,25.84,REDACTED PERSONAL DATA,REDACTED PERSONAL DATA
Tendring DC,http://statistics.data.gov.uk/id/local-authority-district/22UN,Life Opportunities,5480 - HRA - Repair & Maintenance,2016 - PVCu Window And Door Repairs,07/08/2013,1053984-1,27.17,REDACTED PERSONAL DATA,REDACTED PERSONAL DATA
Tendring DC,http://statistics.data.gov.uk/id/local-authority-district/22UN,Life Opportunities,5480 - HRA - Repair & Maintenance,2016 - PVCu Window And Door Repairs,07/08/2013,1053985-1,36.77,REDACTED PERSONAL DATA,REDACTED PERSONAL DATA
Tendring DC,http://statistics.data.gov.uk/id/local-authority-district/22UN,Life Opportunities,5480 - HRA - Repair & Maintenance,2016 - PVCu Window And Door Repairs,07/08/2013,1053986-1,30.37,REDACTED PERSONAL DATA,REDACTED PERSONAL DATA
Tendring DC,http://statistics.data.gov.uk/id/local-authority-district/22UN,Life Opportunities,5480 - HRA - Repair & Maintenance,2016 - PVCu Window And Door Repairs,07/08/2013,1053987-1,30.61,REDACTED PERSONAL DATA,REDACTED PERSONAL DATA
Tendring DC,http://statistics.data.gov.uk/id/local-authority-district/22UN,Life Opportunities,5480 - HRA - Repair & Maintenance,2016 - PVCu Window And Door Repairs,07/08/2013,1053988-1,28.5,REDACTED PERSONAL DATA,REDACTED PERSONAL DATA
Tendring DC,http://statistics.data.gov.uk/id/local-authority-district/22UN,Life Opportunities,5480 - HRA - Repair & Maintenance,2016 - PVCu Window And Door Repairs,07/08/2013,1053989-1,74.13,REDACTED PERSONAL DATA,REDACTED PERSONAL DATA
Tendring DC,http://statistics.data.gov.uk/id/local-authority-district/22UN,Life Opportunities,5480 - HRA - Repair & Maintenance,2016 - PVCu Window And Door Repairs,07/08/2013,1053990-1,30.37,REDACTED PERSONAL DATA,REDACTED PERSONAL DATA
Tendring DC,http://statistics.data.gov.uk/id/local-authority-district/22UN,Life Opportunities,5480 - HRA - Repair & Maintenance,2016 - PVCu Window And Door Repairs,07/08/2013,1053991-1,46.32,REDACTED PERSONAL DATA,REDACTED PERSONAL DATA
Tendring DC,http://statistics.data.gov.uk/id/local-authority-district/22UN,Life Opportunities,5480 - HRA - Repair & Maintenance,2016 - PVCu Window And Door Repairs,07/08/2013,1053992-1,53.53,REDACTED PERSONAL DATA,REDACTED PERSONAL DATA
Tendring DC,http://statistics.data.gov.uk/id/local-authority-district/22UN,Life Opportunities,5480 - HRA - Repair & Maintenance,2016 - PVCu Window And Door Repairs,07/08/2013,1053993-1,36.77,REDACTED PERSONAL DATA,REDACTED PERSONAL DATA
Tendring DC,http://statistics.data.gov.uk/id/local-authority-district/22UN,Life Opportunities,5480 - HRA - Repair & Maintenance,2016 - PVCu Window And Door Repairs,07/08/2013,1053994-1,49.81,REDACTED PERSONAL DATA,REDACTED PERSONAL DATA
Tendring DC,http://statistics.data.gov.uk/id/local-authority-district/22UN,Life Opportunities,5480 - HRA - Repair & Maintenance,2016 - PVCu Window And Door Repairs,07/08/2013,1053995-1,36.47,REDACTED PERSONAL DATA,REDACTED PERSONAL DATA
Tendring DC,http://statistics.data.gov.uk/id/local-authority-district/22UN,Life Opportunities,5480 - HRA - Repair & Maintenance,2016 - PVCu Window And Door Repairs,07/08/2013,1053996-1,72.94,REDACTED PERSONAL DATA,REDACTED PERSONAL DATA
Tendring DC,http://statistics.data.gov.uk/id/local-authority-district/22UN,Life Opportunities,5480 - HRA - Repair & Maintenance,2016 - PVCu Window And Door Repairs,07/08/2013,1053997-1,28.64,REDACTED PERSONAL DATA,REDACTED PERSONAL DATA
Tendring DC,http://statistics.data.gov.uk/id/local-authority-district/22UN,Life Opportunities,5480 - HRA - Repair & Maintenance,2016 - PVCu Window And Door Repairs,07/08/2013,1053998-1,32.24,REDACTED PERSONAL DATA,REDACTED PERSONAL DATA
Tendring DC,http://statistics.data.gov.uk/id/local-authority-district/22UN,Life Opportunities,5480 - HRA - Repair & Maintenance,2016 - PVCu Window And Door Repairs,07/08/2013,1053999-1,48.68,REDACTED PERSONAL DATA,REDACTED PERSONAL DATA
Tendring DC,http://statistics.data.gov.uk/id/local-authority-district/22UN,Life Opportunities,5480 - HRA - Repair & Maintenance,2016 - PVCu Window And Door Repairs,07/08/2013,1054000-1,36.77,REDACTED PERSONAL DATA,REDACTED PERSONAL DATA
Tendring DC,http://statistics.data.gov.uk/id/local-authority-district/22UN,Life Opportunities,5480 - HRA - Repair & Maintenance,2016 - PVCu Window And Door Repairs,07/08/2013,1054001-1,27.17,REDACTED PERSONAL DATA,REDACTED PERSONAL DATA
Tendring DC,http://statistics.data.gov.uk/id/local-authority-district/22UN,Life Opportunities,5480 - HRA - Repair & Maintenance,2016 - PVCu Window And Door Repairs,13/08/2013,1054078-1,84.06,REDACTED PERSONAL DATA,REDACTED PERSONAL DATA
Tendring DC,http://statistics.data.gov.uk/id/local-authority-district/22UN,Life Opportunities,5480 - HRA - Repair & Maintenance,2016 - PVCu Window And Door Repairs,13/08/2013,1054079-1,25,REDACTED PERSONAL DATA,REDACTED PERSONAL DATA
Tendring DC,http://statistics.data.gov.uk/id/local-authority-district/22UN,Life Opportunities,5480 - HRA - Repair & Maintenance,2016 - PVCu Window And Door Repairs,13/08/2013,1054080-1,25,REDACTED PERSONAL DATA,REDACTED PERSONAL DATA
